Workbook

Sheet Summary Table
D1: Tab # | E1: Manufacturer | F1: Model | G1: Test Method | H1: Preliminary | I1: Final | J1: AK List Status | K1: Why
D2: 1 | E2: ='509 Fabrications-Optimum'!$B$2 -> 509 Fabrications, Inc. | F2: ='509 Fabrications-Optimum'!$B$3 -> 509-1 Optimum | G2: Other (ATM) | H2: ='509 Fabrications-Optimum'!$B$4 -> Requires a more thorough review | I2: ='509 Fabrications-Optimum'!$B$6 -> Pending - Major | J2: No Determination List | K2: =SUBSTITUTE('509 Fabrications-Optimum'!$I$6,"Basis: ","") -> IDU, IR, NR
A3: Start Sheet Number | B3: 6 | D3: 2 | E3: ='HHH-Accentra-2'!$B$2 -> Hearth and Home Technologies, LLC dba Harman | F3: ='HHH-Accentra-2'!$B$3 -> Accentra-2 | G3: ASTM 2779 | H3: ='HHH-Accentra-2'!$B$4 -> Requires a more thorough review | I3: ='HHH-Accentra-2'!$B$6 -> Pending - Major | J3: No Determination List | K3: =SUBSTITUTE('HHH-Accentra-2'!$I$6,"Basis: ","") -> MD, IDU, IR
D4: 3 | E4: ='HHH-Accentra 52i-TC'!$B$2 -> Hearth and Home Technologies, LLC dba Harman | F4: ='HHH-Accentra 52i-TC'!$B$3 -> Accentra 52i- TC | G4: ASTM 2779 | H4: ='HHH-Accentra 52i-TC'!$B$4 -> Requires a more thorough review | I4: ='HHH-Accentra 52i-TC'!$B$6 -> Pending - Minor | J4: No Determination List | K4: =SUBSTITUTE('HHH-Accentra 52i-TC'!$I$6,"Basis: ","") -> MD, IR
D5: 4 | E5: ='HHH-Allure 50'!$B$2 -> Hearth and Home Technologies, LLC dba Harman | F5: ='HHH-Allure 50'!$B$3 -> Allure 50 | G5: ASTM 2779 | H5: ='HHH-Allure 50'!$B$4 -> Disapproved | I5: ='HHH-Allure 50'!$B$6 -> Pending - Major | J5: No Determination List | K5: =SUBSTITUTE('HHH-Allure 50'!$I$6,"Basis: ","") -> MD, IDU, IR
D6: 5 | E6: ='US Stove 6041'!$B$2 -> United States Stove Company | F6: ='US Stove 6041'!$B$3 -> 6041, 6041I, and SP6000 | G6: ASTM 2779 | H6: ='US Stove 6041'!$B$4 -> Requires a more thorough review | I6: ='US Stove 6041'!$B$6 -> Pending - Minor | J6: Approved List - Pending | K6: =SUBSTITUTE('US Stove 6041'!$I$6,"Basis: ","") -> MD, IR
D7: 6 | E7: ='AES Baby'!$B$2 -> American Energy Systems (AES) | F7: ='AES Baby'!$B$3 -> Magnum Baby Countryside | G7: ASTM 2779 | H7: ='AES Baby'!$B$4 -> Disapproved | I7: ='AES Baby'!$B$6 -> Pending - Major | J7: No Determination List | K7: =SUBSTITUTE('AES Baby'!$I$6,"Basis: ","") -> MD, IDU, IR, NR
D8: 7 | E8: ='AES 3500P '!$B$2 -> American Energy Systems (AES) | F8: ='AES 3500P '!$B$3 -> 3500P, 35001, and 3502 | G8: ASTM 2779 | H8: ='AES 3500P '!$B$4 -> Disapproved | I8: ='AES 3500P '!$B$6 -> Pending - Major | J8: No Determination List | K8: =SUBSTITUTE('AES 3500P '!$I$6,"Basis: ","") -> IR, NR
D9: 8 | E9: ='AES Little Rascal'!$B$2 -> American Energy Systems (AES) | F9: ='AES Little Rascal'!$B$3 -> Little Rascal | G9: ASTM 2779 | H9: ='AES Little Rascal'!$B$4 -> Disapproved | I9: ='AES Little Rascal'!$B$6 -> Pending - Major | J9: No Determination List | K9: =SUBSTITUTE('AES Little Rascal'!$I$6,"Basis: ","") -> MD, IDU, IR, NR
D10: 9 | E10: ='APR 100'!$B$2 -> APR Industries Ltd. | F10: ='APR 100'!$B$3 -> Kozi 100 Free Standing and Insert and KSH 120 | G10: ASTM 2779 | H10: ='APR 100'!$B$4 -> Disapproved | I10: ='APR 100'!$B$6 -> Disapproved | J10: Disapproved List | K10: =SUBSTITUTE('APR 100'!$I$6,"Basis: ","") -> M1, MD, IR, NR
D11: 10 | E11: ='APR Baywin'!$B$2 -> APR Industries Ltd. | F11: ='APR Baywin'!$B$3 -> BayWin Free Standing and Insert | G11: ASTM 2779 | H11: ='APR Baywin'!$B$4 -> Disapproved | I11: ='APR Baywin'!$B$6 -> Disapproved | J11: Disapproved List | K11: =SUBSTITUTE('APR Baywin'!$I$6,"Basis: ","") -> M1, MD, IR, NR
D12: 11 | E12: ='APR Previa'!$B$2 -> APR Industries Ltd. | F12: ='APR Previa'!$B$3 -> Previa | G12: ASTM 2779 | H12: ='APR Previa'!$B$4 -> Disapproved | I12: ='APR Previa'!$B$6 -> Pending - Major | J12: No Determination List | K12: =SUBSTITUTE('APR Previa'!$I$6,"Basis: ","") -> MD, IR, NR
D13: 12 | E13: ='EvenTemp Eclipse'!$B$2 -> Even Temp, Inc. | F13: ='EvenTemp Eclipse'!$B$3 -> Eclipse | G13: ASTM 2779 | H13: ='EvenTemp Eclipse'!$B$4 -> Disapproved | I13: ='EvenTemp Eclipse'!$B$6 -> Pending - Major | J13: No Determination List | K13: =SUBSTITUTE('EvenTemp Eclipse'!$I$6,"Basis: ","") -> IR, NR
D14: 13 | E14: ='EvenTemp Ashby'!$B$2 -> Even Temp, Inc. | F14: ='EvenTemp Ashby'!$B$3 -> Ashby - P | G14: ASTM 2779 | H14: ='EvenTemp Ashby'!$B$4 -> Disapproved | I14: ='EvenTemp Ashby'!$B$6 -> Disapproved | J14: Disapproved List | K14: =SUBSTITUTE('EvenTemp Ashby'!$I$6,"Basis: ","") -> M1, MD, IR, NR
D15: 14 | E15: ='EvenTemp Prescott EXP'!$B$2 -> Even Temp, Inc. | F15: ='EvenTemp Prescott EXP'!$B$3 -> Prescott EXP | G15: ASTM 2779 | H15: ='EvenTemp Prescott EXP'!$B$4 -> Disapproved | I15: ='EvenTemp Prescott EXP'!$B$6 -> Pending - Major | J15: No Determination List | K15: =SUBSTITUTE('EvenTemp Prescott EXP'!$I$6,"Basis: ","") -> MD, IR, NR
D16: 15 | E16: ='EvenTemp Hastings'!$B$2 -> Even Temp, Inc. | F16: ='EvenTemp Hastings'!$B$3 -> Hastings | G16: ASTM 2779 | H16: ='EvenTemp Hastings'!$B$4 -> Disapproved | I16: ='EvenTemp Hastings'!$B$6 -> Pending - Major | J16: No Determination List | K16: =SUBSTITUTE('EvenTemp Hastings'!$I$6,"Basis: ","") -> IR, NR
D17: 16 | E17: ='HHT Santa FE-C'!$B$2 -> Hearth and Home Technologies, LLC dba Quadra fire | F17: ='HHT Santa FE-C'!$B$3 -> Santa Fe-C, Santa Fe I-C, Castile-C, Castile I-C | G17: ASTM 2779 | H17: ='HHT Santa FE-C'!$B$4 -> Requires a more thorough review | I17: ='HHT Santa FE-C'!$B$6 -> Pending - Major | J17: Approved List - Pending | K17: =SUBSTITUTE('HHT Santa FE-C'!$I$6,"Basis: ","") -> IR, NR
D18: 17 | E18: ='HHT PP60-B'!$B$2 -> Hearth and Home Technologies, LLC | F18: ='HHT PP60-B'!$B$3 -> Pel-Pro PP60-B and Pleasant Hearth PH35PS-B | G18: ASTM 2779 | H18: ='HHT PP60-B'!$B$4 -> Requires a more thorough review | I18: ='HHT PP60-B'!$B$6 -> Pending - Major | J18: Approved List - Pending | K18: =SUBSTITUTE('HHT PP60-B'!$I$6,"Basis: ","") -> IR, NR
D19: 18 | E19: ='HHT PP70'!$B$2 -> Hearth and Home Technologies, LLC | F19: ='HHT PP70'!$B$3 -> Pelpro PP70 | G19: ASTM 2779 | H19: ='HHT PP70'!$B$4 -> Requires a more thorough review | I19: ='HHT PP70'!$B$6 -> Pending - Major | J19: Approved List - Pending | K19: =SUBSTITUTE('HHT PP70'!$I$6,"Basis: ","") -> IR, NR
D20: 19 | E20: ='HHT PPC90'!$B$2 -> Hearth and Home Technologies, LLC | F20: ='HHT PPC90'!$B$3 -> PelPro PPC90, PelPro TSC90, and Pleasant Hearth PHC90 | G20: ASTM 2779 | H20: ='HHT PPC90'!$B$4 -> Requires a more thorough review | I20: ='HHT PPC90'!$B$6 -> Pending - Major | J20: No Determination List | K20: =SUBSTITUTE('HHT PPC90'!$I$6,"Basis: ","") -> MD, IDU, IR, NR
D21: 20 | E21: ='HHT PP130'!$B$2 -> Hearth and Home Technologies, LLC dba Pelpro | F21: ='HHT PP130'!$B$3 -> PP130-B | G21: ASTM 2779 | H21: ='HHT PP130'!$B$4 -> Requires a more thorough review | I21: ='HHT PP130'!$B$6 -> Pending - Major | J21: Approved List - Pending | K21: =SUBSTITUTE('HHT PP130'!$I$6,"Basis: ","") -> MD, IDU, IR
D22: 21 | E22: ='HHT Classic Bay 1200 iC'!$B$2 -> Hearth and Home Technologies, LLC dba Quadra fire | F22: ='HHT Classic Bay 1200 iC'!$B$3 -> Classic Bay 1200 i-C | G22: ASTM 2779 | H22: ='HHT Classic Bay 1200 iC'!$B$4 -> Requires a more thorough review | I22: ='HHT Classic Bay 1200 iC'!$B$6 -> Pending - Major | J22: No Determination List | K22: =SUBSTITUTE('HHT Classic Bay 1200 iC'!$I$6,"Basis: ","") -> MD, IDU, IR, NR
D23: 22 | E23: ='HHT Classic Bay 1200C'!$B$2 -> Hearth and Home Technologies, LLC dba Quadra fire | F23: ='HHT Classic Bay 1200C'!$B$3 -> Classic Bay 1200 -C | G23: ASTM 2779 | H23: ='HHT Classic Bay 1200C'!$B$4 -> Requires a more thorough review | I23: ='HHT Classic Bay 1200C'!$B$6 -> Pending - Major | J23: Approved List - Pending | K23: =SUBSTITUTE('HHT Classic Bay 1200C'!$I$6,"Basis: ","") -> MD, IDU, IR, NR
D24: 23 | E24: ='HHT PS35-C'!$B$2 -> Hearth and Home Technologies, LLC dba Heatilator EcoChoice | F24: ='HHT PS35-C'!$B$3 -> PS35-C, ECO Choice PS35-C, Quadra-Fire PS35-C | G24: ASTM 2779 | H24: ='HHT PS35-C'!$B$4 -> Requires a more thorough review | I24: ='HHT PS35-C'!$B$6 -> Pending - Major | J24: No Determination List | K24: =SUBSTITUTE('HHT PS35-C'!$I$6,"Basis: ","") -> IDU, IR
D25: 24 | E25: ='HHT P43-C'!$B$2 -> Hearth and Home Technologies, LLC dba Pelpro | F25: ='HHT P43-C'!$B$3 -> P43-C | G25: ASTM 2779 | H25: ='HHT P43-C'!$B$4 -> Requires a more thorough review | I25: ='HHT P43-C'!$B$6 -> Pending - Major | J25: No Determination List | K25: =SUBSTITUTE('HHT P43-C'!$I$6,"Basis: ","") -> MD, IDU, IR, NR
D26: 25 | E26: ='HHT CAB50-C'!$B$2 -> Hearth and Home Technologies, LLC dba Heatilator EcoChoice | F26: ='HHT CAB50-C'!$B$3 -> ECO CAB50-C and ECO PS50-C | G26: ASTM 2779 | H26: ='HHT CAB50-C'!$B$4 -> Requires a more thorough review | I26: ='HHT CAB50-C'!$B$6 -> Pending - Major | J26: Approved List - Pending | K26: =SUBSTITUTE('HHT CAB50-C'!$I$6,"Basis: ","") -> MD, IDU, IR
D27: 26 | E27: ='HHT P61-C'!$B$2 -> Hearth and Home Technologies, LLC dba Harman | F27: ='HHT P61-C'!$B$3 -> P61-C | G27: ASTM 2779 | H27: ='HHT P61-C'!$B$4 -> Requires a more thorough review | I27: ='HHT P61-C'!$B$6 -> Pending - Major | J27: Approved List - Pending | K27: =SUBSTITUTE('HHT P61-C'!$I$6,"Basis: ","") -> MD, IDU, IR, NR
D28: 27 | E28: ='HHT P68-C'!$B$2 -> Hearth and Home Technologies, LLC dba Harman | F28: ='HHT P68-C'!$B$3 -> P68-C | G28: ASTM 2779 | H28: ='HHT P68-C'!$B$4 -> Requires a more thorough review | I28: ='HHT P68-C'!$B$6 -> Pending - Major | J28: Approved List - Pending | K28: =SUBSTITUTE('HHT P68-C'!$I$6,"Basis: ","") -> MD, IDU, IR, NR
D29: 28 | E29: ='HHT Absolute 43-C'!$B$2 -> Hearth and Home Technologies, LLC dba Harman | F29: ='HHT Absolute 43-C'!$B$3 -> Absolute 43-C | G29: ASTM 2779 | H29: ='HHT Absolute 43-C'!$B$4 -> Requires a more thorough review | I29: ='HHT Absolute 43-C'!$B$6 -> Pending - Major | J29: Approved List - Pending | K29: =SUBSTITUTE('HHT Absolute 43-C'!$I$6,"Basis: ","") -> MD, IR
D30: 29 | E30: ='HHT Absolute 63'!$B$2 -> Hearth and Home Technologies, LLC dba Harman | F30: ='HHT Absolute 63'!$B$3 -> Absolute 63 | G30: ASTM 2779 | H30: ='HHT Absolute 63'!$B$4 -> Requires a more thorough review | I30: ='HHT Absolute 63'!$B$6 -> Pending - Major | J30: No Determination List | K30: =SUBSTITUTE('HHT Absolute 63'!$I$6,"Basis: ","") -> MD, IDU, IR, NR
D31: 30 | E31: ='HHT Mt. Vernon E2-C'!$B$2 -> Hearth and Home Technologies, LLC dba Quadra fire | F31: ='HHT Mt. Vernon E2-C'!$B$3 -> Quadra Fire Mount Vernon E2-C, Quadra Fire Mount Vernon E2-C Insert, Trekker, Trekker Insert | G31: ASTM 2779 | H31: ='HHT Mt. Vernon E2-C'!$B$4 -> Requires a more thorough review | I31: ='HHT Mt. Vernon E2-C'!$B$6 -> Pending - Major | J31: No Determination List | K31: =SUBSTITUTE('HHT Mt. Vernon E2-C'!$I$6,"Basis: ","") -> MD, IDU, NR, IR
D32: 31 | E32: ='HHT XXV-TC'!$B$2 -> Hearth and Home Technologies, LLC dba Harman | F32: ='HHT XXV-TC'!$B$3 -> XXV-TC | G32: ASTM 2779 | H32: ='HHT XXV-TC'!$B$4 -> Disapproved | I32: ='HHT XXV-TC'!$B$6 -> Disapproved | J32: Disapproved List | K32: =SUBSTITUTE('HHT XXV-TC'!$I$6,"Basis: ","") -> ES1, MD, IR, NR
D33: 32 | E33: ='HHT P35i-C'!$B$2 -> Hearth and Home Technologies, LLC dba Harman | F33: ='HHT P35i-C'!$B$3 -> P35i-C | G33: ASTM 2779 | H33: ='HHT P35i-C'!$B$4 -> Requires a more thorough review | I33: ='HHT P35i-C'!$B$6 -> Pending - Minor | J33: Approved List - Pending | K33: =SUBSTITUTE('HHT P35i-C'!$I$6,"Basis: ","") -> MD, IR, NR
D34: 33 | E34: ='HHT PH50PS-B'!$B$2 -> Hearth and Home Technologies, LLC dba Pleasant Hearth | F34: ='HHT PH50PS-B'!$B$3 -> PH50PS-B, PH50CABPS-B | G34: ASTM 2779 | H34: ='HHT PH50PS-B'!$B$4 -> Disapproved | I34: ='HHT PH50PS-B'!$B$6 -> Pending - Major | J34: No Determination List | K34: =SUBSTITUTE('HHT PH50PS-B'!$I$6,"Basis: ","") -> IR, NR
D35: 34 | E35: ='Castle Serenity'!$B$2 -> ARDISAM, Inc. | F35: ='Castle Serenity'!$B$3 -> Serenity Castle | G35: ASTM 2779 | H35: ='Castle Serenity'!$B$4 -> Requires a more thorough review | I35: ='Castle Serenity'!$B$6 -> Pending - Major | J35: No Determination List | K35: =SUBSTITUTE('Castle Serenity'!$I$6,"Basis: ","") -> MD, IDU, IR, NR
D36: 35 | E36: ='Englander CAB80'!$B$2 -> England Stove Works Inc | F36: ='Englander CAB80'!$B$3 -> 25CAB80, 55-SHPCAB80, 55-TRPCAB80, 55-SHPCAB80S, 55-RPCAB80S | G36: ASTM 2779 | H36: ='Englander CAB80'!$B$4 -> Disapproved | I36: ='Englander CAB80'!$B$6 -> Pending - Major | J36: No Determination List | K36: =SUBSTITUTE('Englander CAB80'!$I$6,"Basis: ","") -> NR, IR
D37: 36 | E37: ='Englander CB120'!$B$2 -> England Stove Works Inc | F37: ='Englander CB120'!$B$3 -> 25-CB120, 55-SHPCB120, 55-TRPCB120 | G37: ASTM 2779 | H37: ='Englander CB120'!$B$4 -> Disapproved | I37: ='Englander CB120'!$B$6 -> Pending - Major | J37: No Determination List | K37: =SUBSTITUTE('Englander CB120'!$I$6,"Basis: ","") -> IDU
D38: 37 | E38: ='Englander 25-CB PAH'!$B$2 -> England Stove Works Inc | F38: ='Englander 25-CB PAH'!$B$3 -> 25-CBPAH, 55-SHPCBPAH, 55-TRCBPAH | G38: ASTM 2779 | H38: ='Englander 25-CB PAH'!$B$4 -> Requires a more thorough review | I38: ='Englander 25-CB PAH'!$B$6 -> Pending - Major | J38: No Determination List | K38: =SUBSTITUTE('Englander 25-CB PAH'!$I$6,"Basis: ","") -> MD, IR, NR
D39: 38 | E39: ='Englanders 25-CBEP'!$B$2 -> England Stove Works Inc | F39: ='Englanders 25-CBEP'!$B$3 -> 25-CBEP, 55-SHPCBEP, 55-TRPCBEP | G39: ASTM 2779 | H39: ='Englanders 25-CBEP'!$B$4 -> Requires a more thorough review | I39: ='Englanders 25-CBEP'!$B$6 -> Pending - Major | J39: No Determination List | K39: =SUBSTITUTE('Englanders 25-CBEP'!$I$6,"Basis: ","") -> NR, IR
D40: 39 | E40: ='Englander 25-PDVC'!$B$2 -> England Stove Works Inc | F40: ='Englander 25-PDVC'!$B$3 -> 25-PDVC, 25-PDVCH, 55-SHP10, 55-SHP10L, and 55-TRP10 | G40: ASTM 2779 | H40: ='Englander 25-PDVC'!$B$4 -> Requires a more thorough review | I40: ='Englander 25-PDVC'!$B$6 -> Pending - Major | J40: Disapproved List | K40: =SUBSTITUTE('Englander 25-PDVC'!$I$6,"Basis: ","") -> MD, IR, NR
D41: 40 | E41: ='Englander 25-SSP'!$B$2 -> England Stove Works Inc | F41: ='Englander 25-SSP'!$B$3 -> 25-SSP01,25-SSP01S,55-SHSSP01,55SHSSP01S, 55-TRSSP01, and 55TRSSP01S | G41: ASTM 2779 | H41: ='Englander 25-SSP'!$B$4 -> Requires a more thorough review | I41: ='Englander 25-SSP'!$B$6 -> Disapproved | J41: Disapproved List | K41: =SUBSTITUTE('Englander 25-SSP'!$I$6,"Basis: ","") -> M1, MD, IR
D42: 41 | E42: ='Enviro M55'!$B$2 -> Sherwood Industries Ltd dba Enviro | F42: ='Enviro M55'!$B$3 -> M55 FS, M55C-FPI and Regency Greenfire – GC60, GCI60 | G42: ASTM 2779 | H42: ='Enviro M55'!$B$4 -> Requires a more thorough review | I42: ='Enviro M55'!$B$6 -> Pending - Major | J42: Approved List - Pending | K42: =SUBSTITUTE('Enviro M55'!$I$6,"Basis: ","") -> MD, IDU, IR, NR
D43: 42 | E43: ='Enviro Mini P3'!$B$2 -> Sherwood Industries Ltd dba Enviro | F43: ='Enviro Mini P3'!$B$3 -> Mini, P3 and Regency Greenfire – GF40 | G43: ASTM 2779 | H43: ='Enviro Mini P3'!$B$4 -> Requires a more thorough review | I43: ='Enviro Mini P3'!$B$6 -> Pending - Major | J43: Approved List - Pending | K43: =SUBSTITUTE('Enviro Mini P3'!$I$6,"Basis: ","") -> IR
D44: 43 | E44: ='Enviro Meridian & GF55'!$B$2 -> Sherwood Industries Ltd dba Enviro | F44: ='Enviro Meridian & GF55'!$B$3 -> Meridian-1, FPI, Cast Iron, GF55, GF155 | G44: ASTM 2779 | H44: ='Enviro Meridian & GF55'!$B$4 -> Disapproved | I44: ='Enviro Meridian & GF55'!$B$6 -> Pending - Major | J44: No Determination List | K44: =SUBSTITUTE('Enviro Meridian & GF55'!$I$6,"Basis: ","") -> IR
D45: 44 | E45: ='Enviro MAXX-1'!$B$2 -> Sherwood Industries Ltd dba Enviro | F45: ='Enviro MAXX-1'!$B$3 -> MAXX-1 | G45: ASTM 2779 | H45: ='Enviro MAXX-1'!$B$4 -> Disapproved | I45: ='Enviro MAXX-1'!$B$6 -> Disapproved | J45: Disapproved List | K45: =SUBSTITUTE('Enviro MAXX-1'!$I$6,"Basis: ","") -> ES1, MD, IDU, IR, NR
D46: 45 | E46: ='HRSW Chatham'!$B$2 -> Sherwood Industries Ltd dba Hudson River Stove Works | F46: ='HRSW Chatham'!$B$3 -> EF2-1, Chatham-1, Davenport-1, and Kinderhook-1 | G46: ASTM 2779 | H46: ='HRSW Chatham'!$B$4 -> Disapproved | I46: ='HRSW Chatham'!$B$6 -> Pending - Major | J46: No Determination List | K46: =SUBSTITUTE('HRSW Chatham'!$I$6,"Basis: ","") -> IR
D47: 46 | E47: ='SMG HP21'!$B$2 -> SMG Hearth & Home dba Comfortbilt | F47: ='SMG HP21'!$B$3 -> HP21 | G47: ASTM 2779 | H47: ='SMG HP21'!$B$4 -> Disapproved | I47: ='SMG HP21'!$B$6 -> Pending - Major | J47: No Determination List | K47: =SUBSTITUTE('SMG HP21'!$I$6,"Basis: ","") -> NR, IR
D48: 47 | E48: ='SMG HP22'!$B$2 -> SMG Hearth & Home dba Comfortbilt | F48: ='SMG HP22'!$B$3 -> ComfortBilt HP22N, HP22, and HP22i Insert | G48: ASTM 2779 | H48: ='SMG HP22'!$B$4 -> Disapproved | I48: ='SMG HP22'!$B$6 -> Pending - Major | J48: No Determination List | K48: =SUBSTITUTE('SMG HP22'!$I$6,"Basis: ","") -> IR, NR
D49: 48 | E49: ='SMG HP61'!$B$2 -> SMG Hearth & Home dba Comfortbilt | F49: ='SMG HP61'!$B$3 -> HP61 | G49: ASTM 2779 | H49: ='SMG HP61'!$B$4 -> Disapproved | I49: ='SMG HP61'!$B$6 -> Pending - Major | J49: No Determination List | K49: =SUBSTITUTE('SMG HP61'!$I$6,"Basis: ","") -> NR, IR
D50: 49 | E50: ='Travis Fox Fire'!$B$2 -> Travis Industries, Inc | F50: ='Travis Fox Fire'!$B$3 -> Fox Fire | G50: ASTM 2779 | H50: ='Travis Fox Fire'!$B$4 -> Requires a more thorough review | I50: ='Travis Fox Fire'!$B$6 -> Pending - Major | J50: Approved List - Pending | K50: =SUBSTITUTE('Travis Fox Fire'!$I$6,"Basis: ","") -> IR
D51: 50 | E51: ='Travis Deerfield'!$B$2 -> Travis Industries, Inc | F51: ='Travis Deerfield'!$B$3 -> Deerfield | G51: ASTM 2779 | H51: ='Travis Deerfield'!$B$4 -> Requires a more thorough review | I51: ='Travis Deerfield'!$B$6 -> Pending - Major | J51: Approved List - Pending | K51: =SUBSTITUTE('Travis Deerfield'!$I$6,"Basis: ","") -> IR
D52: 51 | E52: ='Travis AGP Insert'!$B$2 -> Travis Industries, Inc | F52: ='Travis AGP Insert'!$B$3 -> AGP Insert | G52: ASTM 2779 | H52: ='Travis AGP Insert'!$B$4 -> Requires a more thorough review | I52: ='Travis AGP Insert'!$B$6 -> Pending - Major | J52: Approved List - Pending | K52: =SUBSTITUTE('Travis AGP Insert'!$I$6,"Basis: ","") -> IR
D53: 52 | E53: ='Travis AGP PS'!$B$2 -> Travis Industries, Inc | F53: ='Travis AGP PS'!$B$3 -> AGP PS | G53: ASTM 2779 | H53: ='Travis AGP PS'!$B$4 -> Disapproved | I53: ='Travis AGP PS'!$B$6 -> Disapproved | J53: Disapproved List | K53: =SUBSTITUTE('Travis AGP PS'!$I$6,"Basis: ","") -> ES1, IR
D54: 53 | E54: ='True North 40'!$B$2 -> Pacific Energy Fireplace Products Limited dba True North | F54: ='True North 40'!$B$3 -> TN40 | G54: ASTM 2779 | H54: ='True North 40'!$B$4 -> Requires a more thorough review | I54: ='True North 40'!$B$6 -> Disapproved | J54: Disapproved List | K54: =SUBSTITUTE('True North 40'!$I$6,"Basis: ","") -> M1, IR, NR
D55: 54 | E55: ='USSC 4840'!$B$2 -> United States Stove Company | F55: ='USSC 4840'!$B$3 -> 4840, KP500, AP5000 | G55: ASTM 2779 | H55: ='USSC 4840'!$B$4 -> Requires a more thorough review | I55: ='USSC 4840'!$B$6 -> Pending - Major | J55: Approved List - Pending | K55: =SUBSTITUTE('USSC 4840'!$I$6,"Basis: ","") -> MD, IR
D56: 55 | E56: ='USSC SP24'!$B$2 -> United States Stove Company dba Breckwell | F56: ='USSC SP24'!$B$3 -> SP22(i), SP23(i), SP24(i), SP2000(i), AP2000(i), SP2700, SP4000, SPC4000, APC4000 and 5040(i) | G56: ASTM 2779 | H56: ='USSC SP24'!$B$4 -> Requires a more thorough review | I56: ='USSC SP24'!$B$6 -> Pending - Major | J56: Approved List - Pending | K56: =SUBSTITUTE('USSC SP24'!$I$6,"Basis: ","") -> MD, IR, NR
D57: 56 | E57: ='USSC SP2047'!$B$2 -> United States Stove Company dba Breckwell | F57: ='USSC SP2047'!$B$3 -> SP2047, GW7400 | G57: Other (ATM) | H57: ='USSC SP2047'!$B$4 -> Requires a more thorough review | I57: ='USSC SP2047'!$B$6 -> Pending - Major | J57: Approved List - Pending | K57: =SUBSTITUTE('USSC SP2047'!$I$6,"Basis: ","") -> IR, NR
D58: 57 | E58: ='USSC SP1000'!$B$2 -> United States Stove Company dba Breckwell | F58: ='USSC SP1000'!$B$3 -> SP1000 | G58: ASTM 2779 | H58: ='USSC SP1000'!$B$4 -> Requires a more thorough review | I58: ='USSC SP1000'!$B$6 -> Pending - Major | J58: Approved List - Pending | K58: =SUBSTITUTE('USSC SP1000'!$I$6,"Basis: ","") -> MD, IDU, IR
D59: 58 | E59: ='United States Stove-5780 Series'!$B$2 -> United States Stove Company | F59: ='United States Stove-5780 Series'!$B$3 -> 5780, AP5780, VG5780, SP5780, and SP58 | G59: ASTM 2779 | H59: ='United States Stove-5780 Series'!$B$4 -> Requires a more thorough review | I59: ='United States Stove-5780 Series'!$B$6 -> Pending - Minor | J59: No Determination List | K59: =SUBSTITUTE('United States Stove-5780 Series'!$I$6,"Basis: ","") -> IR, NR
D60: 59 | E60: ='United States Stove - 5770'!$B$2 -> United States Stove Company | F60: ='United States Stove - 5770'!$B$3 -> 5770, 5770i, VG5770, VG5770i, AP5770, AP5770i, DNMP577, DNMP577(i), 5790, VG5790, AP5790, and DNMP579 | G60: ASTM 2779 | H60: ='United States Stove - 5770'!$B$4 -> Requires a more thorough review | I60: ='United States Stove - 5770'!$B$6 -> Pending - Major | J60: Approved List - Pending | K60: =SUBSTITUTE('United States Stove - 5770'!$I$6,"Basis: ","") -> IDU, IR, NR
D61: 60 | E61: ='United States Stove - 5660E'!$B$2 -> United States Stove Company | F61: ='United States Stove - 5660E'!$B$3 -> 5660E, AP5660, AP5660L, AP5660PE and DNMP566 | G61: ASTM 2779 | H61: ='United States Stove - 5660E'!$B$4 -> Requires a more thorough review | I61: ='United States Stove - 5660E'!$B$6 -> Pending - Major | J61: Approved List - Pending | K61: =SUBSTITUTE('United States Stove - 5660E'!$I$6,"Basis: ","") -> IDU, IR, NR
D62: 61 | E62: ='United States Stove - 5710 '!$B$2 -> United States Stove Company | F62: ='United States Stove - 5710 '!$B$3 -> 5710, AP5710, VG5710, 5501S, AP5501S, VG5501S | G62: ASTM 2779 | H62: ='United States Stove - 5710 '!$B$4 -> Requires a more thorough review | I62: ='United States Stove - 5710 '!$B$6 -> Pending - Major | J62: No Determination List | K62: =SUBSTITUTE('United States Stove - 5710 '!$I$6,"Basis: ","") -> IDU, IR, NR
D63: 62 | E63: ='United States Stove - KP60'!$B$2 -> United States Stove Company | F63: ='United States Stove - KP60'!$B$3 -> King KP60, Ashley AP60, Vogelzang VG60 | G63: ASTM 2779 | H63: ='United States Stove - KP60'!$B$4 -> Requires a more thorough review | I63: ='United States Stove - KP60'!$B$6 -> Pending - Major | J63: Approved List - Pending | K63: =SUBSTITUTE('United States Stove - KP60'!$I$6,"Basis: ","") -> IDU, IR, NR
D64: 63 | E64: ='United States Stove - GW1949'!$B$2 -> United States Stove Company | F64: ='United States Stove - GW1949'!$B$3 -> GW1949, AP77, SW1117 | G64: ASTM 2779 | H64: ='United States Stove - GW1949'!$B$4 -> Requires a more thorough review | I64: ='United States Stove - GW1949'!$B$6 -> Pending - Major | J64: No Determination List | K64: =SUBSTITUTE('United States Stove - GW1949'!$I$6,"Basis: ","") -> IR, NR
D65: 64 | E65: ='United States Stoves - 5520'!$B$2 -> United States Stove Company | F65: ='United States Stoves - 5520'!$B$3 -> 5520 | G65: ASTM 2779 | H65: ='United States Stoves - 5520'!$B$4 -> Disapproved | I65: ='United States Stoves - 5520'!$B$6 -> Pending - Major | J65: Approved List - Pending | K65: =SUBSTITUTE('United States Stoves - 5520'!$I$6,"Basis: ","") -> IR
D66: 65 | E66: ='United States Stove - KP130'!$B$2 -> United States Stove Company | F66: ='United States Stove - KP130'!$B$3 -> KP130, AP130, VG130, 5502M, 5500, 5500M, and 5500XL | G66: ASTM 2779 | H66: ='United States Stove - KP130'!$B$4 -> Requires a more thorough review | I66: ='United States Stove - KP130'!$B$6 -> Pending - Minor | J66: Approved List - Pending | K66: =SUBSTITUTE('United States Stove - KP130'!$I$6,"Basis: ","") -> IR, NR
D67: 66 | E67: ='Enerco Group - PSBF66W'!$B$2 -> Enerco Group, Inc. | F67: ='Enerco Group - PSBF66W'!$B$3 -> PSBF66W | G67: ASTM 2779 | H67: ='Enerco Group - PSBF66W'!$B$4 -> Requires a more thorough review | I67: ='Enerco Group - PSBF66W'!$B$6 -> Pending - Major | J67: No Determination List | K67: =SUBSTITUTE('Enerco Group - PSBF66W'!$I$6,"Basis: ","") -> IR
D68: 67 | E68: ='LMF B-100'!$B$2 -> LMF Manufacturing Ltd dba America's Heat | F68: ='LMF B-100'!$B$3 -> America's Heat B-100 | G68: ASTM 2779 | H68: ='LMF B-100'!$B$4 -> Requires a more thorough review | I68: ='LMF B-100'!$B$6 -> Pending - Major | J68: No Determination List | K68: =SUBSTITUTE('LMF B-100'!$I$6,"Basis: ","") -> IR, NR
D69: 68 | E69: ='Ravelli - RV100 Classic'!$B$2 -> Ravelli | F69: ='Ravelli - RV100 Classic'!$B$3 -> RV100 Classic | G69: ASTM 2779 | H69: ='Ravelli - RV100 Classic'!$B$4 -> Disapproved | I69: ='Ravelli - RV100 Classic'!$B$6 -> Pending - Major | J69: No Determination List | K69: =SUBSTITUTE('Ravelli - RV100 Classic'!$I$6,"Basis: ","") -> IDU, IR, NR
D70: 69 | E70: ='Ravelli - RV80'!$B$2 -> Ravelli | F70: ='Ravelli - RV80'!$B$3 -> Monica 2015, Francesca 2015, RV80 CERAMICA | G70: ASTM 2779 | H70: ='Ravelli - RV80'!$B$4 -> Requires a more thorough review | I70: ='Ravelli - RV80'!$B$6 -> Pending - Major | J70: No Determination List | K70: =SUBSTITUTE('Ravelli - RV80'!$I$6,"Basis: ","") -> IR, NR
D71: 70 | E71: ='Enerco Group - PS130W'!$B$2 -> Enerco Group, Inc. | F71: ='Enerco Group - PS130W'!$B$3 -> PS130W | G71: ASTM 2779 | H71: ='Enerco Group - PS130W'!$B$4 -> Requires a more thorough review | I71: ='Enerco Group - PS130W'!$B$6 -> Pending - Major | J71: Approved List - Pending | K71: =SUBSTITUTE('Enerco Group - PS130W'!$I$6,"Basis: ","") -> MD, IR, NR
D72: 71 | E72: ='Sierra Products - EasyFire'!$B$2 -> Sierra Product, Inc. | F72: ='Sierra Products - EasyFire'!$B$3 -> EasyFire Pellet Stove, EF3801, EF5001, EF4001 | G72: ASTM 2779 | H72: ='Sierra Products - EasyFire'!$B$4 -> Requires a more thorough review | I72: ='Sierra Products - EasyFire'!$B$6 -> Pending - Major | J72: No Determination List | K72: =SUBSTITUTE('Sierra Products - EasyFire'!$I$6,"Basis: ","") -> IR, NR
D73: 72 | E73: ='Enerco Group - PS60W'!$B$2 -> Enerco Group, Inc. | F73: ='Enerco Group - PS60W'!$B$3 -> PS60W | G73: ASTM 2779 | H73: ='Enerco Group - PS60W'!$B$4 -> Requires a more thorough review | I73: ='Enerco Group - PS60W'!$B$6 -> Pending - Major | J73: Approved List - Pending | K73: =SUBSTITUTE('Enerco Group - PS60W'!$I$6,"Basis: ","") -> IR, NR
D74: 73 | E74: ='Heat Tech - HTP 26 Bay'!$B$2 -> Heat Tech Industries, LLC. | F74: ='Heat Tech - HTP 26 Bay'!$B$3 -> HTP 26 Bay, HTP26 Bay Pedestal/Insert | G74: ASTM 2779 | H74: ='Heat Tech - HTP 26 Bay'!$B$4 -> Requires a more thorough review | I74: ='Heat Tech - HTP 26 Bay'!$B$6 -> Pending - Major | J74: No Determination List | K74: =SUBSTITUTE('Heat Tech - HTP 26 Bay'!$I$6,"Basis: ","") -> MD, IR, NR
D75: 74 | E75: ='Heat Tech - HTP 26 Standard'!$B$2 -> Heat Tech Industries, LLC. | F75: ='Heat Tech - HTP 26 Standard'!$B$3 -> HTP 26 Standard | G75: ASTM 2779 | H75: ='Heat Tech - HTP 26 Standard'!$B$4 -> Requires a more thorough review | I75: ='Heat Tech - HTP 26 Standard'!$B$6 -> Pending - Major | J75: No Determination List | K75: =SUBSTITUTE('Heat Tech - HTP 26 Standard'!$I$6,"Basis: ","") -> MD, IR, NR
D76: 75 | E76: ='LIA Pellet Stove'!$B$2 -> Gruppo Piazzetta S.P.A. | F76: ='LIA Pellet Stove'!$B$3 -> LIA | G76: ASTM 2779 | H76: ='LIA Pellet Stove'!$B$4 -> Requires a more thorough review | I76: ='LIA Pellet Stove'!$B$6 -> Pending - Major | J76: No Determination List | K76: =SUBSTITUTE('LIA Pellet Stove'!$I$6,"Basis: ","") -> MD, IR, NR
D77: 76 | E77: ='Monia 2.0'!$B$2 -> Gruppo Piazzetta S.P.A. | F77: ='Monia 2.0'!$B$3 -> Monia 2.0, Marcella 2.0, Maya 2.0, Monica 2.0 | G77: ASTM 2779 | H77: ='Monia 2.0'!$B$4 -> Disapproved | I77: ='Monia 2.0'!$B$6 -> Disapproved | J77: No Determination List | K77: =SUBSTITUTE('Monia 2.0'!$I$6,"Basis: ","") -> M1, MD, IR, NR
D78: 77 | E78: ='Sabrina 2.0'!$B$2 -> Gruppo Piazzetta S.P.A. | F78: ='Sabrina 2.0'!$B$3 -> Sabrina 2.0, Sally 2.0, Solange 2.0, Sveva 2.0 | G78: ASTM 2779 | H78: ='Sabrina 2.0'!$B$4 -> Requires a more thorough review | I78: ='Sabrina 2.0'!$B$6 -> Pending - Major | J78: No Determination List | K78: =SUBSTITUTE('Sabrina 2.0'!$I$6,"Basis: ","") -> MD, IR, NR
D79: 78 | E79: ='Enerco 20kw'!$B$2 -> Enerco | F79: ='Enerco 20kw'!$B$3 -> Cleveland Iron Works Model PS20W | G79: ASTM 2779 | H79: ='Enerco 20kw'!$B$4 -> Requires a more thorough review | I79: ='Enerco 20kw'!$B$6 -> Pending - Major | J79: No Determination List | K79: =SUBSTITUTE('Enerco 20kw'!$I$6,"Basis: ","") -> MD, IR, NR
D80: 79 | E80: ='Ravelli Roma'!$B$2 -> Ravelli | F80: ='Ravelli Roma'!$B$3 -> Roma | G80: ASTM 2779 | H80: ='Ravelli Roma'!$B$4 -> 0 | I80: ='Ravelli Roma'!$B$6 -> Pending - Major | J80: No Determination List | K80: =SUBSTITUTE('Ravelli Roma'!$I$6,"Basis: ","") -> MD, IR, NR
D81: 80 | E81: ='SBI Osburn'!$B$2 -> Stove Builder International | F81: ='SBI Osburn'!$B$3 -> Osburn 2500, ECO-55 | G81: ASTM 2779 | H81: ='SBI Osburn'!$B$4 -> 0 | I81: ='SBI Osburn'!$B$6 -> Pending - Minor | J81: No Determination List | K81: =SUBSTITUTE('SBI Osburn'!$I$6,"Basis: ","") -> MD, IR
D82: 81 | E82: ='Thermorossi slim9'!$B$2 -> Thermorossi | F82: ='Thermorossi slim9'!$B$3 -> SlimQuatro 9 | G82: ASTM 2779 | H82: ='Thermorossi slim9'!$B$4 -> 0 | I82: ='Thermorossi slim9'!$B$6 -> Pending - Major | J82: No Determination List | K82: =SUBSTITUTE('Thermorossi slim9'!$I$6,"Basis: ","") -> MD, IR, NR
D83: 82 | E83: ='Thermorossi slim 11'!$B$2 -> Thermorossi | F83: ='Thermorossi slim 11'!$B$3 -> Slimquadro 11 | G83: ASTM 2779 | H83: ='Thermorossi slim 11'!$B$4 -> 0 | I83: ='Thermorossi slim 11'!$B$6 -> Pending - Major | J83: No Determination List | K83: =SUBSTITUTE('Thermorossi slim 11'!$I$6,"Basis: ","") -> IR, NR
D84: 83 | E84: ='SMG HP54'!$B$2 -> SMG Hearth & Home LLC | F84: ='SMG HP54'!$B$3 -> HP54 | G84: ASTM 2779 | H84: ='SMG HP54'!$B$4 -> 0 | I84: ='SMG HP54'!$B$6 -> Pending - Major | J84: No Determination List | K84: =SUBSTITUTE('SMG HP54'!$I$6,"Basis: ","") -> MD, IR, NR
D85: 84 | E85: ='SMG HP55'!$B$2 -> SMG Hearth & Home LLC | F85: ='SMG HP55'!$B$3 -> HP55 | G85: ASTM 2779 | H85: ='SMG HP55'!$B$4 -> 0 | I85: ='SMG HP55'!$B$6 -> Pending - Major | J85: No Determination List | K85: =SUBSTITUTE('SMG HP55'!$I$6,"Basis: ","") -> MD, IR, NR
D86: 85 | E86: ='SPA 3.4'!$B$2 -> Extraflame S.P.A. | F86: ='SPA 3.4'!$B$3 -> V3.4 | G86: Not reported | H86: ='SPA 3.4'!$B$4 -> 0 | I86: ='SPA 3.4'!$B$6 -> Disapproved | J86: Disapproved List | K86: =SUBSTITUTE('SPA 3.4'!$I$6,"Basis: ","") -> NTR
D87: 86 | E87: ='SPA 4.5'!$B$2 -> Extraflame S.P.A. | F87: ='SPA 4.5'!$B$3 -> V4.5 | G87: Not reported | H87: ='SPA 4.5'!$B$4 -> 0 | I87: ='SPA 4.5'!$B$6 -> Disapproved | J87: Disapproved List | K87: =SUBSTITUTE('SPA 4.5'!$I$6,"Basis: ","") -> NTR
D88: 87 | E88: ='SPA 5.2'!$B$2 -> Extraflame S.P.A. | F88: ='SPA 5.2'!$B$3 -> V5.2 | G88: Not reported | H88: ='SPA 5.2'!$B$4 -> 0 | I88: ='SPA 5.2'!$B$6 -> Disapproved | J88: Disapproved List | K88: =SUBSTITUTE('SPA 5.2'!$I$6,"Basis: ","") -> NTR
D89: 88 | E89: ='Lamonox Jessica air'!$B$2 -> Laminox | F89: ='Lamonox Jessica air'!$B$3 -> Jessica 11air and Veronica 11 air | G89: Not reported | H89: ='Lamonox Jessica air'!$B$4 -> 0 | I89: ='Lamonox Jessica air'!$B$6 -> Disapproved | J89: Disapproved List | K89: =SUBSTITUTE('Lamonox Jessica air'!$I$6,"Basis: ","") -> NTR
D90: 89 | E90: ='Laminox Jessica Natural'!$B$2 -> Laminox | F90: ='Laminox Jessica Natural'!$B$3 -> Jessica Natural and Veronica Natural | G90: Not reported | H90: ='Laminox Jessica Natural'!$B$4 -> 0 | I90: ='Laminox Jessica Natural'!$B$6 -> Disapproved | J90: Disapproved List | K90: =SUBSTITUTE('Laminox Jessica Natural'!$I$6,"Basis: ","") -> NTR
D91: 90 | E91: ='PAC True North 40i'!$B$2 -> Pacific Energy Fireplace Products Limited dba True North | F91: ='PAC True North 40i'!$B$3 -> True North 40 Insert | G91: Not reported | H91: ='PAC True North 40i'!$B$4 -> 0 | I91: ='PAC True North 40i'!$B$6 -> Disapproved | J91: Disapproved List | K91: =SUBSTITUTE('PAC True North 40i'!$I$6,"Basis: ","") -> NTR
D92: 91 | E92: ='Even Temp Element P'!$B$2 -> Even Temp | F92: ='Even Temp Element P'!$B$3 -> Element Model P | G92: Not reported | H92: ='Even Temp Element P'!$B$4 -> 0 | I92: ='Even Temp Element P'!$B$6 -> Disapproved | J92: Disapproved List | K92: =SUBSTITUTE('Even Temp Element P'!$I$6,"Basis: ","") -> NTR
D93: 92 | E93: ='Paramax Rafael 55a'!$B$2 -> Paramax International | F93: ='Paramax Rafael 55a'!$B$3 -> Rafael 55a, Europa 75a | G93: Not reported | H93: ='Paramax Rafael 55a'!$B$4 -> 0 | I93: ='Paramax Rafael 55a'!$B$6 -> Disapproved | J93: Disapproved List | K93: =SUBSTITUTE('Paramax Rafael 55a'!$I$6,"Basis: ","") -> NTR
D94: 93 | E94: ='Thermorossi Pair11'!$B$2 -> Thermorossi | F94: ='Thermorossi Pair11'!$B$3 -> Pair 11, Pair11Plus | G94: Not reported | H94: ='Thermorossi Pair11'!$B$4 -> 0 | I94: ='Thermorossi Pair11'!$B$6 -> Disapproved | J94: Disapproved List | K94: =SUBSTITUTE('Thermorossi Pair11'!$I$6,"Basis: ","") -> NTR
D95: 94 | E95: ='Ravelli 120 touch'!$B$2 -> Ravelli | F95: ='Ravelli 120 touch'!$B$3 -> RV120Touch | G95: ASTM 2779 | H95: ='Ravelli 120 touch'!$B$4 -> 0 | I95: ='Ravelli 120 touch'!$B$6 -> Pending - Major | J95: No Determination List | K95: =SUBSTITUTE('Ravelli 120 touch'!$I$6,"Basis: ","") -> IR
D96: 95 | E96: ='Thelin Company Gnome'!$B$2 -> Thelin Company | F96: ='Thelin Company Gnome'!$B$3 -> Gnome | G96: Not reported | H96: ='Thelin Company Gnome'!$B$4 -> 0 | I96: ='Thelin Company Gnome'!$B$6 -> Disapproved | J96: Disapproved List | K96: =SUBSTITUTE('Thelin Company Gnome'!$I$6,"Basis: ","") -> NTR
D97: 96 | E97: ='Thelin Company Parlour 3000'!$B$2 -> Thelin Company | F97: ='Thelin Company Parlour 3000'!$B$3 -> Parlour 3000 | G97: Not reported | H97: ='Thelin Company Parlour 3000'!$B$4 -> 0 | I97: ='Thelin Company Parlour 3000'!$B$6 -> Disapproved | J97: Disapproved List | K97: =SUBSTITUTE('Thelin Company Parlour 3000'!$I$6,"Basis: ","") -> NTR
D98: 97 | E98: ='US Stove 5780e'!$B$2 -> United States Stove Company | F98: ='US Stove 5780e'!$B$3 -> 5780e, AP5780E, VG5780E, SP5780E, SP58E | G98: ASTM 2779 | H98: ='US Stove 5780e'!$B$4 -> 0 | I98: ='US Stove 5780e'!$B$6 -> 0 | J98: No Determination List | K98: =SUBSTITUTE('US Stove 5780e'!$I$6,"Basis: ","") -> NTR
D99: 98 | E99: ='US Stove KP5513'!$B$2 -> United States Stove Company | F99: ='US Stove KP5513'!$B$3 -> KP5513, KP5513-P, KP5513-L, US5513, US5513-P, US5513-L, AP5613, AP5613-P, AP5613-L, VG5713, VG5713-P, VG5713-L, Little E (SP500), 5501S-XH | G99: ASTM 2779 | H99: ='US Stove KP5513'!$B$4 -> 0 | I99: ='US Stove KP5513'!$B$6 -> 0 | J99: No Determination List | K99: =SUBSTITUTE('US Stove KP5513'!$I$6,"Basis: ","") -> 
D100: 99 | E100: =PS20W!$B$2 -> Enerco Group Inc | F100: =PS20W!$B$3 -> PS20W, PS20WTS, C30XL, H30XL, J30XL, N30XL | G100: ASTM 2779 | H100: =PS20W!$B$4 -> 0 | I100: =PS20W!$B$6 -> 0 | J100: Disapproved List | K100: =SUBSTITUTE(PS20W!$I$6,"Basis: ","") -> 
D101: 100 | E101: =PS60W!$B$2 -> Enerco Group Inc | F101: =PS60W!$B$3 -> PS60W, PS60WTS, C80XL, H80XL, J80XL, N80XL | G101: ASTM 2779 | H101: =PS60W!$B$4 -> 0 | I101: =PS60W!$B$6 -> 0 | J101: No Determination List | K101: =SUBSTITUTE(PS60W!$I$6,"Basis: ","") -> 
D102: 101 | E102: =PS130W!$B$2 -> Enerco Group Inc | F102: =PS130W!$B$3 -> PS130W, PS130WTS, C140XL, H140XL, J140XL, N140XL | G102: ASTM 2779 | H102: =PS130W!$B$4 -> 0 | I102: =PS130W!$B$6 -> 0 | J102: No Determination List | K102: =SUBSTITUTE(PS130W!$I$6,"Basis: ","") -> 
D103: 102 | E103: =PSBF66W!$B$2 -> Enerco Group Inc. | F103: =PSBF66W!$B$3 -> PSBF66W, PSBF66WTS, C3W80XL, H3W80XL, J3W80XL, N3W80XL | G103: ASTM 2779 | H103: =PSBF66W!$B$4 -> 0 | I103: =PSBF66W!$B$6 -> 0 | J103: No Determination List | K103: =SUBSTITUTE(PSBF66W!$I$6,"Basis: ","") -> 
D104: 103 | E104: =Whitney!$B$2 -> Sun Mountain Stove Works Inc | F104: =Whitney!$B$3 -> Whitney | G104: ASTM 2779 | H104: =Whitney!$B$4 -> 0 | I104: =Whitney!$B$6 -> 0 | J104: No Determination List | K104: =SUBSTITUTE(Whitney!$I$6,"Basis: ","") -> 
D105: 104 | E105: ='Meridian II'!$B$2 -> Sherwood Industries Ltd. | F105: ='Meridian II'!$B$3 -> Enviro Meridian-2, Meridian FPI-2, Meridian Cast Iron-2, Regency Greenfire – GF55-2, GFI55-2 | G105: 0 | H105: ='Meridian II'!$B$4 -> 0 | I105: ='Meridian II'!$B$6 -> 0 | J105: Disapproved List | K105: =SUBSTITUTE('Meridian II'!$I$6,"Basis: ","") -> 
D106: 105 | E106: =#REF! ->  | F106: =#REF! ->  | G106: 0 | H106: =#REF! ->  | I106: =#REF! ->  | J106: Disapproved List | K106: =SUBSTITUTE(#REF!,"Basis: ","") -> 

Sheet 509 Fabrications-Optimum
A1: Summary of Review | L1: Summary of Review | W1: Summary of Review
A2: Manufacturer | B2: 509 Fabrications, Inc. | I2: 2021-03-31 | L2: Manufacturer | M2: 509 Fabrications, Inc. | T2: 2021-03-31 | W2: Manufacturer | X2: 509 Fabrications, Inc. | AE2: 2021-03-31
A3: Model | B3: 509-1 Optimum | L3: Model | M3: 509-1 Optimum | T3: No date - est before 2/16 | W3: Model | X3: 509-1 Optimum
A4: Prelim review recomm. | B4: Requires a more thorough review | L4: Prelim review recomm. | M4: Requires a more thorough review | W4: Prelim review recomm. | X4: Requires a more thorough review
A5: Red flags | B5: 8 | C5: Orange flags | E5: 9 | F5: Yellow flags | H5: 6 | L5: Red flags | M5: 8 | N5: Orange flags | P5: 9 | Q5: Yellow flags | S5: 6 | W5: Red flags | X5: 8 | Y5: Orange flags | AA5: 9 | AB5: Yellow flags | AD5: 6
A6: Final Determination | B6: Pending - Major | F6: Date: 9/1/2020 | I6: Basis: IDU, IR, NR | L6: Final Determination | M6: Pending - Major | Q6: Date: 9/1/2020 | T6: Basis: IDU, IR, NR | W6: Final Determination | X6: Pending - Major | AB6: Date: 9/1/2020 | AE6: Basis: IDU, IR, NR
A7: AK List Status | B7: No Determination List | L7: AK List Status | M7: No Determination List | W7: AK List Status | X7: No Determination List
A8: Testing Information | B8: Determination | I8: Notes | L8: Testing Information | M8: Determination | T8: Notes | W8: Testing Information | X8: Determination | AE8: Notes
A9: Test method | B9: Other (ATM) | I9: ATM - R1 was 2779, R2 ATM changed order of burn phases | L9: Test method | M9: Other (ATM) | T9: ATM - R1 was 2779, R2 ATM changed order of burn phases | W9: Test method | X9: Other (ATM) | AE9: ATM - R1 was 2779, R2 ATM changed order of burn phases
A10: Test Lab | B10: OMNI | I10: originally tested by myren consulting | L10: Test Lab | M10: OMNI | T10: originally tested by myren consulting | W10: Test Lab | X10: OMNI | AE10: originally tested by myren consulting
A11: Third-party certifier | B11: OMNI | L11: Third-party certifier | M11: OMNI | W11: Third-party certifier | X11: OMNI
A12: Report certified | B12: Not reported | I12: AUTHORIZED SIGNATORIES (Jared Sorenson & Sebastian Button) | L12: Report certified | M12: Not reported | T12: AUTHORIZED SIGNATORIES (Jared Sorenson & Sebastian Button) | W12: Report certified | X12: Not reported | AE12: AUTHORIZED SIGNATORIES (Jared Sorenson & Sebastian Button)
A13: Test Report Elements | B13: Determination | I13: Notes | L13: Test Report Elements | M13: Determination | T13: Notes | W13: Test Report Elements | X13: Determination | AE13: Notes
A14: Overall PM emissions (g/hr) | B14: 1.5 | D14: PM Highest 1-hr (g/hr) | G14: 1.52 | L14: Overall PM emissions (g/hr) | M14: 1.5 | O14: PM Highest 1-hr (g/hr) | R14: 1.52 | W14: Overall PM emissions (g/hr) | X14: 1.5 | Z14: PM Highest 1-hr (g/hr) | AC14: 1.52
A15: Overall HHV efficiency (%) | B15: 78.8 | L15: Overall HHV efficiency (%) | M15: 78.8 | W15: Overall HHV efficiency (%) | X15: 78.8
A16: Overall heat output (Btu/hr) | B16: 25878 | I16: 40000 | L16: Overall heat output (Btu/hr) | M16: 25878 | W16: Overall heat output (Btu/hr) | X16: 25878
A17: Overall CO (g/hr) | B17: =IFERROR(G17*60,"Not reported") -> 1.59 | D17: Overall CO (g/min) | G17: 0.0265 | I17: co g/min not reported in report | L17: Overall CO (g/hr) | M17: =IFERROR(R17*60,"Not reported") -> 1.59 | O17: Overall CO (g/min) | R17: 0.0265 | T17: co g/min not reported in report | W17: Overall CO (g/hr) | X17: =IFERROR(AC17*60,"Not reported") -> 1.59 | Z17: Overall CO (g/min) | AC17: 0.0265 | AE17: co g/min not reported in report
A18: Manufacturers Instructions to lab | B18: Reported | L18: Manufacturers Instructions to lab | M18: Reported | W18: Manufacturers Instructions to lab | X18: Reported
A19: Efficiency calculations | B19: Reported | L19: Efficiency calculations | M19: Reported | W19: Efficiency calculations | X19: Reported
A20: Burn rate calculations | B20: Reported | L20: Burn rate calculations | M20: Reported | W20: Burn rate calculations | X20: Reported
A21: Raw data sheets | B21: Reported | L21: Raw data sheets | M21: Reported | W21: Raw data sheets | X21: Reported
A22: Conditioning completed by | B22: Not reported | I22: completed 12/28/2016 through 1/1/17 | L22: Conditioning completed by | M22: Not reported | T22: completed 12/28/2016 through 1/1/17 | W22: Conditioning completed by | X22: Not reported | AE22: completed 12/28/2016 through 1/1/17
A23: Conditioning data | B23: Partially reported | I23: Aging data include in report on page 77. Included required information. Only 27 of the 51 hours are within (+/-0.5kg/hr) of average medium burn rate. | L23: Conditioning data | M23: Partially reported | T23: Aging data include in report on page 77. Included required information. Only 27 of the 51 hours are within (+/-0.5kg/hr) of average medium burn rate. | W23: Conditioning data | X23: Partially reported | AE23: Aging data include in report on page 77. Included required information. Only 27 of the 51 hours are within (+/-0.5kg/hr) of average medium burn rate.
A24: Lab technician notes | B24: Reported | L24: Lab technician notes | M24: Reported | W24: Lab technician notes | X24: Reported
A25: Doc. of run appropriateness | B25: Not reported | L25: Doc. of run appropriateness | M25: Not reported | T25: Myren consulting, Inc., in their response, dated 1/1/2021, stated that in the test report #1 (4/24/2017), all the test run was appropriate | W25: Doc. of run appropriateness | X25: Not reported | AE25: Myren consulting, Inc., in their response, dated 1/1/2021, stated that in the test report #1 (4/24/2017), all the test run was appropriate
A26: Doc. of run validity | B26: Not reported | L26: Doc. of run validity | M26: Not reported | T26: Myren consulting, Inc., in their response, dated 1/1/2021, stated that the test report #1 (4/24/2017), the rest run was valid, no specific language located in the report. | W26: Doc. of run validity | X26: Not reported | AE26: Myren consulting, Inc., in their response, dated 1/1/2021, stated that the test report #1 (4/24/2017), the rest run was valid, no specific language located in the report.
A27: Doc. of run anomolies | B27: Not reported | L27: Doc. of run anomolies | M27: Not reported | T27: Myren consulting, Inc., in their response, dated 1/1/2021, stated that in the test report #1 (4/24/2017), there were test run anomalies, no specific language located in the report. | W27: Doc. of run anomolies | X27: Not reported | AE27: Myren consulting, Inc., in their response, dated 1/1/2021, stated that in the test report #1 (4/24/2017), there were test run anomalies, no specific language located in the report.
A28: Doc. of run burn rates | B28: Not reported | L28: Doc. of run burn rates | M28: Not reported | T28: Myren consulting, Inc., in their response, dated 1/1/2021, stated that "The test run identified as Test Run # 2 in Test Report #2, dated 9/21/2017, was conducted following all of the criteria found in the relevant test methods and specified in the letters received from EPA." , no specific language located in the report. | W28: Doc. of run burn rates | X28: Not reported | AE28: Myren consulting, Inc., in their response, dated 1/1/2021, stated that "The test run identified as Test Run # 2 in Test Report #2, dated 9/21/2017, was conducted following all of the criteria found in the relevant test methods and specified in the letters received from EPA." , no specific language located in the report.
A29: Test Run Data | B29: Determination | I29: Notes | L29: Test Run Data | M29: Determination | T29: Notes | W29: Test Run Data | X29: Determination | AE29: Notes
A30: Run # | C30: 1 | D30: 1 | E30: 1 | F30: 2 | G30: 2 | H30: 2 | I30: not sure why an ATM needed, medium | L30: Run # | N30: 1 | O30: 1 | P30: 1 | Q30: 2 | R30: 2 | S30: 2 | T30: not sure why an ATM needed, medium | W30: Run # | Y30: 1 | Z30: 1 | AA30: 1 | AB30: 2 | AC30: 2 | AD30: 2 | AE30: not sure why an ATM needed, medium
A31: Run Category | C31: High | D31: Medium | E31: Low | F31: High | G31: Medium | H31: Low | I31: ouput in R1 has a burn rate 50% higher | L31: Run Category | N31: High | O31: Medium | P31: Low | Q31: High | R31: Medium | S31: Low | T31: ouput in R1 has a burn rate 50% higher | W31: Run Category | Y31: High | Z31: Medium | AA31: Low | AB31: High | AC31: Medium | AD31: Low | AE31: ouput in R1 has a burn rate 50% higher
A32: Burn rate (kg/hr) | C32: 2.32 | D32: 2.9 | E32: 1.76 | F32: 1.98 | G32: 1.55 | H32: 1.05 | I32: than the high burn rate in R2. | L32: Burn rate (kg/hr) | N32: 2.32 | O32: 2.9 | P32: 1.76 | Q32: 1.98 | R32: 1.55 | S32: 1.05 | T32: In their response, Myren stated that the medium data for two sets of run vary because the test burn sequence was reversed. | W32: Burn rate (kg/hr) | Y32: 2.32 | Z32: 2.9 | AA32: 1.76 | AB32: 1.98 | AC32: 1.55 | AD32: 1.05 | AE32: In their response, Myren stated that the medium data for two sets of run vary because the test burn sequence was reversed.
A33: Heat output (Btu/hr) | C33: 33114 | D33: 42099 | E33: 25198 | F33: 27834 | G33: 14856 | H33: 19573 | I33: 40000 | L33: Heat output (Btu/hr) | N33: 33114 | O33: 42099 | P33: 25198 | Q33: 27834 | R33: 14856 | S33: 19573 | T33: 40000 | W33: Heat output (Btu/hr) | Y33: 33114 | Z33: 42099 | AA33: 25198 | AB33: 27834 | AC33: 14856 | AD33: 19573 | AE33: 40000
A34: CO (g/min) | C34: 1.18 | D34: 1.61 | E34: 1.75 | F34: 1.97 | G34: 1.7 | H34: 1.42 | L34: CO (g/min) | N34: 1.18 | O34: 1.61 | P34: 1.75 | Q34: 1.97 | R34: 1.7 | S34: 1.42 | W34: CO (g/min) | Y34: 1.18 | Z34: 1.61 | AA34: 1.75 | AB34: 1.97 | AC34: 1.7 | AD34: 1.42
A35: HHV efficiency (%) | C35: 78.3 | D35: 79.6 | E35: 79.5 | F35: 77.2 | G35: 79.3 | H35: 78.5 | L35: HHV efficiency (%) | N35: 78.3 | O35: 79.6 | P35: 79.5 | Q35: 77.2 | R35: 79.3 | S35: 78.5 | W35: HHV efficiency (%) | Y35: 78.3 | Z35: 79.6 | AA35: 79.5 | AB35: 77.2 | AC35: 79.3 | AD35: 78.5
A36: Overall PM emissions (g/hr) | B36: 1.5 | L36: Overall PM emissions (g/hr) | M36: 1.5 | W36: Overall PM emissions (g/hr) | X36: 1.5
A37: PM 1-hr filter pull (g/hr) | B37: 1.52 | L37: PM 1-hr filter pull (g/hr) | M37: 1.52 | T37: Myren did note in their response that the 1.52 is average of two filter pulls | W37: PM 1-hr filter pull (g/hr) | X37: 1.52 | AE37: Myren did note in their response that the 1.52 is average of two filter pulls
A38: Filter data | B38: Not reported | I38: unable to locate in report | L38: Filter data | M38: Not reported | T38: Myren stated that 110 mm filters (instead of 47 mm) were used and provided a detailed explanation of filter data which the reviewer was unable to locate in either report | W38: Filter data | X38: Not reported | AE38: Myren stated that 110 mm filters (instead of 47 mm) were used and provided a detailed explanation of filter data which the reviewer was unable to locate in either report
A39: Train precision (%) | B39: Not reported | I39: Myren stated that the train precision, T1 and T2, are reported as 4.5% and 5.57%, respectively on the far right column on page 4 with the title "Summary of ASTM 2515 Particuate Emissions Sampling Train Performance", although the reviewer was unable to located in report | L39: Train precision (%) | M39: yes | W39: Train precision (%) | X39: yes
A40: Negative weights | B40: Cannot be determined | I40: Myren stated the negative of -0.0014 g shown severally on the woodstove data sheets #5s was accounted for in the acetone wash catch. Therefore, there were no actual negative weights for the ampling trains used for the testing of the device. | L40: Negative weights | M40: Yes | W40: Negative weights | X40: Yes
A41: Negs handled appropriately | B41: Yes | L41: Negs handled appropriately | M41: Yes | W41: Negs handled appropriately | X41: Yes
A42: Lowest burn rate tested | B42: Cannot be determined | L42: Lowest burn rate tested | M42: Cannot be determined | T42: Myren stated that since test run #2 was done on a reversed burn sequence, it was assumed that the dry burn rate is close to the minmum burn rate possible. Also, they said that the lowest burn rate reported (1.05 kg/h) is below 1.15 kg/h required for the ASTM E3053 and close to 1.0 kg/hr minimum DBR required for crib fuel | W42: Lowest burn rate tested | X42: Cannot be determined | AE42: Myren stated that since test run #2 was done on a reversed burn sequence, it was assumed that the dry burn rate is close to the minmum burn rate possible. Also, they said that the lowest burn rate reported (1.05 kg/h) is below 1.15 kg/h required for the ASTM E3053 and close to 1.0 kg/hr minimum DBR required for crib fuel
A43: All run data | B43: Reported | L43: All run data | M43: Reported | W43: All run data | X43: Reported
A44: Appliance Fueling | B44: Determination | I44: Notes | L44: Appliance Fueling | M44: Determination | T44: Notes | W44: Appliance Fueling | X44: Determination | AE44: Notes
A45: Pellet species/type | B45: Not reported | I45: Myren stated that the densified fuel logs are blends materials obtained from local wood products companied. They also metioned that first page contains the ultimate analysis performed on the North Idaho Energy log. | L45: Pellet species/type | M45: Blend | W45: Pellet species/type | X45: Blend
A46: Pellet fuel certification | B46: Not reported | I46: Myren claimed that they are unaware of any certification program for densified fuel logs | L46: Pellet fuel certification | M46: No certification for fuel logs | W46: Pellet fuel certification | X46: No certification for fuel logs
A47: Source of the pellet specification | B47: Not reported | I47: They stated that the densified fuel logs are products of North Idaho Energy loacted in Moyes Spring, ID | L47: Source of the pellet specification | M47: No certification for fuel logs | W47: Source of the pellet specification | X47: No certification for fuel logs
A48: Owners Manual Req. | B48: Determination | I48: Notes | L48: Owners Manual Req. | M48: Determination | T48: Notes | W48: Owners Manual Req. | X48: Determination | AE48: Notes
A49: Stack height | B49: Included | L49: Stack height | M49: Included | W49: Stack height | X49: Included
A50: Location recommendation | B50: Included | L50: Location recommendation | M50: Included | W50: Location recommendation | X50: Included
A51: Guidance on proper draft | B51: Included | L51: Guidance on proper draft | M51: Included | W51: Guidance on proper draft | X51: Included
A52: Fuel loading & reloading | B52: Not applicable | L52: Fuel loading & reloading | M52: Not applicable | W52: Fuel loading & reloading | X52: Not applicable
A53: Fuel selection recomm. | B53: Included | L53: Fuel selection recomm. | M53: Included | W53: Fuel selection recomm. | X53: Included
A54: Improper fuels warnings | B54: Insufficient data | I54: not specifically called improper fuels warning but mentioned do not burn items | L54: Improper fuels warnings | M54: Insufficient data | W54: Improper fuels warnings | X54: Insufficient data
A55: Fire starting procedures | B55: Included | L55: Fire starting procedures | M55: Included | W55: Fire starting procedures | X55: Included
A56: Proper use of air controls | B56: Included | L56: Proper use of air controls | M56: Included | W56: Proper use of air controls | X56: Included
A57: Proper operation low | B57: Included | L57: Proper operation low | M57: Included | W57: Proper operation low | X57: Included
A58: Ash removal procedures | B58: Included | L58: Ash removal procedures | M58: Included | W58: Ash removal procedures | X58: Included
A59: Replacement parts | B59: Included | L59: Replacement parts | M59: Included | W59: Replacement parts | X59: Included
A60: Federal warning (C or NC) | B60: Included | L60: Federal warning (C or NC) | M60: Included | W60: Federal warning (C or NC) | X60: Included
A61: Warranty rights | B61: Included | L61: Warranty rights | M61: Included | W61: Warranty rights | X61: Included
A62: Reporting | B62: Determination | I62: Notes | L62: Reporting | M62: Determination | T62: Notes | W62: Reporting | X62: Determination | AE62: Notes
A63: Summary tables complete | B63: All reported | L63: Summary tables complete | M63: All reported | W63: Summary tables complete | X63: All reported
A64: All run data submitted | B64: All reported | L64: All run data submitted | M64: All reported | W64: All run data submitted | X64: All reported
A65: Test report complete | B65: Partially reported minor | L65: Test report complete | M65: Partially reported minor | T65: Myren said by addressing the response, the issue will be resolved | W65: Test report complete | X65: Partially reported minor | AE65: Myren said by addressing the response, the issue will be resolved
A66: Owner manual complete | B66: Partially reported minor | L66: Owner manual complete | M66: Partially reported minor | W66: Owner manual complete | X66: Partially reported minor
A67: Test dates | B67: 1/9/17 & 9/5/17 | L67: Test dates | M67: 1/9/17 & 9/5/17 | W67: Test dates | X67: 1/9/17 & 9/5/17
A68: 30 Day notice submitted to EPA | B68: Cannot be determined | I68: Myren stated in the response that the 30-day notice titled "Wood Heater 30-Day Advance Certification Test Notification" is in the first paragraph on page xii | L68: 30 Day notice submitted to EPA | M68: Yes | W68: 30 Day notice submitted to EPA | X68: Yes
A69: Tested on the proposed date | B69: Cannot Be Determined | I69: Myren stated that the 30-day notice in the test report #1 indicated that the test would start sometime beginning the week of January 9, 2017, and the actual test was done on 1/9/2017. They also said that in the 30-day notice in test report # 2 it was stated the test would occur on September 4. 2017, but because it was national holiday (Labor Day), the test wa done on 9/5/2017 | L69: Tested on the proposed date | M69: Yes | W69: Tested on the proposed date | X69: Yes
A70: Tested in one day | B70: No | L70: Tested in one day | M70: No | T70: Myren indicated that the tests were either done on 1/9/2017 in the test report #1, or 9/5/2017 in the test report #2 | W70: Tested in one day | X70: No | AE70: Myren indicated that the tests were either done on 1/9/2017 in the test report #1, or 9/5/2017 in the test report #2
A71: 60 Day report to EPA | B71: No | L71: 60 Day report to EPA | M71: No | T71: Myren stated that while reporting of the testing was passed the 60-day mark for the test report #1 because of circumstances beyond them, they said that they shipped the report for the test report #2 on 9/5/2020. a day after the testing. They said what happened after shipping the report to OMNI was beyong their control | W71: 60 Day report to EPA | X71: No | AE71: Myren stated that while reporting of the testing was passed the 60-day mark for the test report #1 because of circumstances beyond them, they said that they shipped the report for the test report #2 on 9/5/2020. a day after the testing. They said what happened after shipping the report to OMNI was beyong their control
A72: EPA additional Review Elements | B72: Determination | I72: Notes | L72: EPA additional Review Elements | M72: Determination | T72: Notes | W72: EPA additional Review Elements | X72: Determination | AE72: Notes
A73: check owners manual and highest setting in test are they the same | L73: check owners manual and highest setting in test are they the same | W73: check owners manual and highest setting in test are they the same
A74: Test location | L74: Test location | W74: Test location | X74: Lab | AE74: Colville, Washington
A75: date lab received the unit | L75: date lab received the unit | W75: date lab received the unit | X75: Not reported
A76: date first day of conditioning | L76: date first day of conditioning | W76: date first day of conditioning | X76: 2016-12-28
A77: date first day of testing | L77: date first day of testing | W77: date first day of testing | X77: 2017-01-09 | AE77: Second run completed on 9/5/2017
A78: first hour PM emissions reported for all runs | L78: first hour PM emissions reported for all runs | W78: first hour PM emissions reported for all runs | X78: yes
A79: first hour PM emissions reported in grams per hour | L79: first hour PM emissions reported in grams per hour | W79: first hour PM emissions reported in grams per hour | X79: yes
A80: first hour PM emissions zero or negative | L80: first hour PM emissions zero or negative | W80: first hour PM emissions zero or negative | X80: no
A81: first hour PM emissions measured with front and back filter | L81: first hour PM emissions measured with front and back filter | W81: first hour PM emissions measured with front and back filter | X81: no | AE81: refer to pg 104 in report pdf
A82: Zero CO emission reported | L82: Zero CO emission reported | W82: Zero CO emission reported | X82: no
A83: Any incomplete runs | L83: Any incomplete runs | W83: Any incomplete runs | X83: no
A84: Pre-ignition data reported | L84: Pre-ignition data reported | W84: Pre-ignition data reported | X84: yes
A85: filter changes during test run | L85: filter changes during test run | W85: filter changes during test run | X85: no
A86: filter plugged during test run | L86: filter plugged during test run | W86: filter plugged during test run | X86: no
A87: What type of filter used | L87: What type of filter used | W87: What type of filter used | X87: not reported
A88: Negative probe weight >5% of PM | L88: Negative probe weight >5% of PM | W88: Negative probe weight >5% of PM | X88: no negative values
A89: Negative probe value | L89: Negative probe value | W89: Negative probe value | X89: no negative values
A90: Negative room air values | L90: Negative room air values | W90: Negative room air values | X90: no negative values
A91: Ambient background filter data | L91: Ambient background filter data | W91: Ambient background filter data | X91: no negative values
A92: Proportional sampling | L92: Proportional sampling | W92: Proportional sampling | X92: yes with allowable deviations
A93: Leak check - pre-test leak check reported | L93: Leak check - pre-test leak check reported | W93: Leak check - pre-test leak check reported | X93: Meets Specification
A94: Leak check - any filter change | L94: Leak check - any filter change | W94: Leak check - any filter change | X94: no
A95: Leak check - post leak check reported | L95: Leak check - post leak check reported | W95: Leak check - post leak check reported | X95: Meets Specification
A96: Dilution tunnel schematic meets ASTM 2515 requirements | L96: Dilution tunnel schematic meets ASTM 2515 requirements | W96: Dilution tunnel schematic meets ASTM 2515 requirements | X96: Meets Specification | AE96: pg 238 of report pdf
A97: number of conditioning hours reported in summary | L97: number of conditioning hours reported in summary | W97: number of conditioning hours reported in summary | X97: 51 | AE97: pg 78 of pdf report
A98: number of conditioning hours with data | L98: number of conditioning hours with data | W98: number of conditioning hours with data | X98: 51
A99: number of hours at correct conditioning conditions | L99: number of hours at correct conditioning conditions | W99: number of hours at correct conditioning conditions | X99: 21 | AE99: refer to cell I23
A100: used lowest air settings for low burn (ASTM 3053) or Cat 1(M28R) | L100: used lowest air settings for low burn (ASTM 3053) or Cat 1(M28R) | W100: used lowest air settings for low burn (ASTM 3053) or Cat 1(M28R)
A101: Air setting data | B101: High | D101: Medium | F101: Low | L101: Air setting data | M101: High | O101: Medium | Q101: Low | W101: Air setting data | X101: High | Z101: Medium | AB101: Low
A103: medium burn conditions met | L103: medium burn conditions met | W103: medium burn conditions met
A104: high test settings match high in OM | L104: high test settings match high in OM | W104: high test settings match high in OM
A105: Total number of runs | L105: Total number of runs | W105: Total number of runs | X105: 2 | AE105: integrated runs one in January and one in September
A106: run averaging done correctly | L106: run averaging done correctly | W106: run averaging done correctly | X106: yes | AE106: done per EPA Guidance but using a run with a different method and averaging raises questions.
A107: Calibration data | L107: Calibration data | W107: Calibration data | X107: yes | AE107: Pg 406 of report - only 4 calibrations reported
A108: Milestone Date | B108: 2022-12-06 | L108: Milestone Date | M108: 2022-12-06 | T108: missing report elements | W108: Milestone Date | X108: 2022-09-06
A109: Compliance Date | L109: Compliance Date | W109: Compliance Date | X109: 2017-09-18 | Y109: No EPA Compliance Date
A110: DEC Calculated Certification Expiration | L110: DEC Calculated Certification Expiration | W110: DEC Calculated Certification Expiration | X110: 2022-09-18

Sheet HHH-Accentra-2
A1: Summary of Review | L1: Summary of Review | W1: Summary of Review
A2: Manufacturer | B2: Hearth and Home Technologies, LLC dba Harman | L2: Manufacturer | M2: Hearth and Home Technologies, LLC dba Harman | W2: Manufacturer | X2: Hearth and Home Technologies, LLC dba Harman
A3: Model | B3: Accentra-2 | L3: Model | M3: Accentra-2 | W3: Model | X3: Accentra-2
A4: Prelim review recomm. | B4: Requires a more thorough review | L4: Prelim review recomm. | M4: Requires a more thorough review | W4: Prelim review recomm. | X4: Requires a more thorough review
A5: Red flags | B5: 3 | C5: Orange flags | E5: 3 | F5: Yellow flags | H5: 6 | L5: Red flags | M5: 3 | N5: Orange flags | P5: 3 | Q5: Yellow flags | S5: 6 | W5: Red flags | X5: 3 | Y5: Orange flags | AA5: 3 | AB5: Yellow flags | AD5: 6
A6: Final Determination | B6: Pending - Major | F6: Date: 9/1/2020 | I6: Basis: MD, IDU, IR | L6: Final Determination | M6: Pending - Major | Q6: Date: 9/1/2020 | T6: Basis: MD, IDU, IR | W6: Final Determination | X6: Pending - Major | AB6: Date: 9/1/2020 | AE6: Basis: MD, IDU, IR
A7: AK List Status | B7: Approved List - Pending | L7: AK List Status | M7: No Determination List | W7: AK List Status | X7: No Determination List
A8: Testing Information | B8: Determination | I8: Notes | L8: Testing Information | M8: Determination | T8: Notes | W8: Testing Information | X8: Determination | AE8: Notes
A9: Test method | B9: ASTM 2779 | L9: Test method | M9: ASTM 2779 | W9: Test method | X9: ASTM 2779
A10: Test Lab | B10: OMNI | I10: tested at Omni facility | L10: Test Lab | M10: OMNI | T10: tested at Omni facility | W10: Test Lab | X10: OMNI | AE10: tested at Omni facility
A11: Third-party certifier | B11: OMNI | L11: Third-party certifier | M11: OMNI | W11: Third-party certifier | X11: OMNI
A12: Report certified | B12: Not reported | I12: unable to locate certification within report, only authurized by OMNI Staff. | L12: Report certified | M12: Not reported | T12: unable to locate certification within report, only authurized by OMNI Staff. | W12: Report certified | X12: Not reported | AE12: unable to locate certification within report, only authurized by OMNI Staff.
A13: Test Report Elements | B13: Determination | I13: Notes | L13: Test Report Elements | M13: Determination | T13: Notes | W13: Test Report Elements | X13: Determination | AE13: Notes
A14: Overall PM emissions (g/hr) | B14: 0.62 | D14: PM Highest 1-hr (g/hr) | G14: 1.73 | L14: Overall PM emissions (g/hr) | M14: 0.62 | O14: PM Highest 1-hr (g/hr) | R14: 1.73 | W14: Overall PM emissions (g/hr) | X14: 0.62 | Z14: PM Highest 1-hr (g/hr) | AC14: 1.73
A15: Overall HHV efficiency (%) | B15: 71.2 | I15: 78.1 | L15: Overall HHV efficiency (%) | M15: 71.2 | T15: 78.1 | W15: Overall HHV efficiency (%) | X15: 71.2 | AE15: 78.1
A16: Overall heat output (Btu/hr) | B16: 25210 | I16: 40000 | L16: Overall heat output (Btu/hr) | M16: 25210 | T16: 40000 | W16: Overall heat output (Btu/hr) | X16: 25210 | AE16: 40000
A17: Overall CO (g/hr) | B17: =IFERROR(G17*60,"Not reported") -> 4.2 | D17: Overall CO (g/min) | G17: 0.07 | L17: Overall CO (g/hr) | M17: =IFERROR(R17*60,"Not reported") -> 4.2 | O17: Overall CO (g/min) | R17: 0.07 | W17: Overall CO (g/hr) | X17: =IFERROR(AC17*60,"Not reported") -> 4.2 | Z17: Overall CO (g/min) | AC17: 0.07
A18: Manufacturers Instructions to lab | B18: Reported | L18: Manufacturers Instructions to lab | M18: Reported | W18: Manufacturers Instructions to lab | X18: Reported
A19: Efficiency calculations | B19: Reported | L19: Efficiency calculations | M19: Reported | W19: Efficiency calculations | X19: Reported
A20: Burn rate calculations | B20: Reported | L20: Burn rate calculations | M20: Reported | W20: Burn rate calculations | X20: Reported
A21: Raw data sheets | B21: Reported | L21: Raw data sheets | M21: Reported | W21: Raw data sheets | X21: Reported
A22: Conditioning completed by | B22: Manufacturer | I22: compl 4/15, 5/1, 5/12, | L22: Conditioning completed by | M22: Manufacturer | T22: compl 4/15, 5/1, 5/12, | W22: Conditioning completed by | X22: Manufacturer | AE22: compl 4/15, 5/1, 5/12,
A23: Conditioning data | B23: Partially reported | I23: Flue temp data only. Missing time and weight for all fuel added. | L23: Conditioning data | M23: Partially reported | T23: Flue temp data only. Missing time and weight for all fuel added. | W23: Conditioning data | X23: Reported | AE23: included in updated report
A24: Lab technician notes | B24: Reported | L24: Lab technician notes | M24: Reported | W24: Lab technician notes | X24: Reported
A25: Doc. of run appropriateness | B25: Not reported | I25: no mention fo run appropriateness | L25: Doc. of run appropriateness | M25: Not reported | T25: no mention fo run appropriateness | W25: Doc. of run appropriateness | X25: Reported
A26: Doc. of run validity | B26: Not reported | I26: no mention of run validity | L26: Doc. of run validity | M26: Not reported | T26: no mention of run validity | W26: Doc. of run validity | X26: Reported
A27: Doc. of run anomolies | B27: Not reported | I27: there may have been none | L27: Doc. of run anomolies | M27: Not reported | T27: there may have been none | W27: Doc. of run anomolies | X27: Reported
A28: Doc. of run burn rates | B28: Reported | L28: Doc. of run burn rates | M28: Reported | W28: Doc. of run burn rates | X28: Reported
A29: Test Run Data | B29: Determination | I29: Notes | L29: Test Run Data | M29: Determination | T29: Notes | W29: Test Run Data | X29: Determination | AE29: Notes
A30: Run # | C30: 1 | D30: 1 | E30: 1 | I30: AIR SETTING DATA REPORTED | L30: Run # | N30: 1 | O30: 1 | P30: 1 | T30: AIR SETTING DATA REPORTED | W30: Run # | Y30: 1 | Z30: 1 | AA30: 1 | AE30: AIR SETTING DATA REPORTED
A31: Run Category | C31: High | D31: Medium | E31: Low | L31: Run Category | N31: High | O31: Medium | P31: Low | W31: Run Category | Y31: High | Z31: Medium | AA31: Low
A32: Burn rate (kg/hr) | C32: 1.95 | D32: 0.8 | E32: 0.49 | L32: Burn rate (kg/hr) | N32: 1.95 | O32: 0.8 | P32: 0.49 | W32: Burn rate (kg/hr) | Y32: 1.95 | Z32: 0.8 | AA32: 0.49
A33: Heat output (Btu/hr) | C33: 25210 | D33: 9050 | E33: 6253 | I33: 40000 | L33: Heat output (Btu/hr) | N33: 25210 | O33: 9050 | P33: 6253 | T33: 40000 | W33: Heat output (Btu/hr) | Y33: 25210 | Z33: 9050 | AA33: 6253 | AE33: 40000
A34: CO (g/min) | C34: 0.396 | D34: 0.011 | E34: 0 | L34: CO (g/min) | N34: 0.396 | O34: 0.011 | P34: 0 | W34: CO (g/min) | Y34: 0.396 | Z34: 0.011 | AA34: 0
A35: HHV efficiency (%) | C35: 69.5 | D35: 67.9 | E35: 75.4 | L35: HHV efficiency (%) | N35: 69.5 | O35: 67.9 | P35: 75.4 | W35: HHV efficiency (%) | Y35: 69.5 | Z35: 67.9 | AA35: 75.4
A36: Overall PM emissions (g/hr) | B36: 0.62 | L36: Overall PM emissions (g/hr) | M36: 0.62 | W36: Overall PM emissions (g/hr) | X36: 0.62
A37: PM 1-hr filter pull (g/hr) | B37: 1.73 | L37: PM 1-hr filter pull (g/hr) | M37: 1.73 | W37: PM 1-hr filter pull (g/hr) | X37: 1.73
A38: Filter data | B38: Reported | L38: Filter data | M38: Reported | W38: Filter data | X38: Reported
A39: Train precision (%) | B39: Not reported | L39: Train precision (%) | M39: Not reported | W39: Train precision (%) | X39: Not reported
A40: Negative weights | B40: No | L40: Negative weights | M40: No | W40: Negative weights | X40: No
A41: Negs handled appropriately | B41: Yes | L41: Negs handled appropriately | M41: Yes | W41: Negs handled appropriately | X41: Yes
A42: Lowest burn rate tested | B42: Cannot be determined | I42: no mention of minimum setting being lowest possible | L42: Lowest burn rate tested | M42: Cannot be determined | T42: no mention of minimum setting being lowest possible | W42: Lowest burn rate tested | X42: Cannot be determined | AE42: clarification included on pg 153 of updated report.
A43: All run data | B43: Not reported | I43: missing pages 21-143 of the test report | L43: All run data | M43: Not reported | T43: missing pages 21-143 of the test report | W43: All run data | X43: Not reported
A44: Appliance Fueling | B44: Determination | I44: Notes | L44: Appliance Fueling | M44: Determination | T44: Notes | W44: Appliance Fueling | X44: Determination | AE44: Notes
A45: Pellet species/type | B45: Hardwood | I45: lignetics premium hardwood | L45: Pellet species/type | M45: Hardwood | T45: lignetics premium hardwood | W45: Pellet species/type | X45: Hardwood | AE45: lignetics premium hardwood
A46: Pellet fuel certification | B46: PFI | L46: Pellet fuel certification | M46: PFI | W46: Pellet fuel certification | X46: PFI
A47: Source of the pellet specification | B47: Pellet bag label | L47: Source of the pellet specification | M47: Pellet bag label | W47: Source of the pellet specification | X47: Pellet bag label
A48: Owners Manual Req. | B48: Determination | I48: Notes | L48: Owners Manual Req. | M48: Determination | T48: Notes | W48: Owners Manual Req. | X48: Determination | AE48: Notes
A49: Stack height | B49: Included | L49: Stack height | M49: Included | W49: Stack height | X49: Included
A50: Location recommendation | B50: Included | L50: Location recommendation | M50: Included | W50: Location recommendation | X50: Included
A51: Guidance on proper draft | B51: Included | L51: Guidance on proper draft | M51: Included | W51: Guidance on proper draft | X51: Included
A52: Fuel loading & reloading | B52: Not applicable | L52: Fuel loading & reloading | M52: Not applicable | W52: Fuel loading & reloading | X52: Not applicable
A53: Fuel selection recomm. | B53: Included | L53: Fuel selection recomm. | M53: Included | W53: Fuel selection recomm. | X53: Included
A54: Improper fuels warnings | B54: Included | L54: Improper fuels warnings | M54: Included | W54: Improper fuels warnings | X54: Included
A55: Fire starting procedures | B55: Included | L55: Fire starting procedures | M55: Included | W55: Fire starting procedures | X55: Included
A56: Proper use of air controls | B56: Included | L56: Proper use of air controls | M56: Included | W56: Proper use of air controls | X56: Included
A57: Proper operation low | B57: Included | L57: Proper operation low | M57: Included | W57: Proper operation low | X57: Included
A58: Ash removal procedures | B58: Included | L58: Ash removal procedures | M58: Included | W58: Ash removal procedures | X58: Included
A59: Replacement parts | B59: Included | L59: Replacement parts | M59: Included | W59: Replacement parts | X59: Included
A60: Federal warning (C or NC) | B60: Included | L60: Federal warning (C or NC) | M60: Included | W60: Federal warning (C or NC) | X60: Included
A61: Warranty rights | B61: Included | L61: Warranty rights | M61: Included | W61: Warranty rights | X61: Included
A62: Reporting | B62: Determination | I62: Notes | L62: Reporting | M62: Determination | T62: Notes | W62: Reporting | X62: Determination | AE62: Notes
A63: Summary tables complete | B63: All reported | L63: Summary tables complete | M63: All reported | W63: Summary tables complete | X63: All reported
A64: All run data submitted | B64: All reported | L64: All run data submitted | M64: All reported | W64: All run data submitted | X64: All reported
A65: Test report complete | B65: Partially reported minor | L65: Test report complete | M65: Partially reported minor | W65: Test report complete | X65: Partially reported minor
A66: Owner manual complete | B66: All reported | L66: Owner manual complete | M66: All reported | W66: Owner manual complete | X66: All reported
A67: Test dates | B67: 2015-05-12 | I67: received 4/15/2015 | L67: Test dates | M67: 2015-05-12 | T67: received 4/15/2015 | W67: Test dates | X67: 2015-05-12 | AE67: received 4/15/2015
A68: 30 Day notice submitted to EPA | B68: Cannot be determined | L68: 30 Day notice submitted to EPA | M68: Cannot be determined | W68: 30 Day notice submitted to EPA | X68: Cannot be determined
A69: Tested on the proposed date | B69: Cannot Be Determined | L69: Tested on the proposed date | M69: Cannot Be Determined | W69: Tested on the proposed date | X69: Cannot Be Determined
A70: Tested in one day | B70: Yes | L70: Tested in one day | M70: Yes | W70: Tested in one day | X70: Yes
A71: 60 Day report to EPA | B71: Yes | L71: 60 Day report to EPA | M71: Yes | W71: 60 Day report to EPA | X71: Yes
A72: EPA additional Review Elements | B72: Determination | I72: Notes | L72: EPA additional Review Elements | M72: Determination | T72: Notes | W72: EPA additional Review Elements | X72: Determination | AE72: Notes
A73: check owners manual and highest setting in test are they the same | L73: check owners manual and highest setting in test are they the same | W73: check owners manual and highest setting in test are they the same
A74: Test location | L74: Test location | M74: Lab | T74: Portland, Oregon | W74: Test location | X74: Lab | AE74: Portland, Oregon
A75: date lab received the unit | L75: date lab received the unit | M75: 2015-04-15 | W75: date lab received the unit | X75: 2015-04-15
A76: date first day of conditioning | L76: date first day of conditioning | M76: 2015-04-30 | W76: date first day of conditioning | X76: 2015-04-30
A77: date first day of testing | L77: date first day of testing | M77: 2015-05-12 | W77: date first day of testing | X77: 2015-05-12
A78: first hour PM emissions reported for all runs | L78: first hour PM emissions reported for all runs | M78: yes | W78: first hour PM emissions reported for all runs | X78: yes
A79: first hour PM emissions reported in grams per hour | L79: first hour PM emissions reported in grams per hour | M79: yes | W79: first hour PM emissions reported in grams per hour | X79: yes
A80: first hour PM emissions zero or negative | L80: first hour PM emissions zero or negative | M80: no | W80: first hour PM emissions zero or negative | X80: no
A81: first hour PM emissions measured with front and back filter | L81: first hour PM emissions measured with front and back filter | M81: yes | W81: first hour PM emissions measured with front and back filter | X81: yes
A82: Zero CO emission reported | L82: Zero CO emission reported | M82: yes | W82: Zero CO emission reported | X82: yes
A83: Any incomplete runs | L83: Any incomplete runs | M83: no | W83: Any incomplete runs | X83: no
A84: Pre-ignition data reported | L84: Pre-ignition data reported | M84: no | W84: Pre-ignition data reported | X84: no
A85: filter changes during test run | L85: filter changes during test run | M85: no | W85: filter changes during test run | X85: no
A86: filter plugged during test run | L86: filter plugged during test run | M86: no | W86: filter plugged during test run | X86: no
A87: What type of filter used | L87: What type of filter used | M87: not reported | W87: What type of filter used | X87: not reported
A88: Negative probe weight >5% of PM | L88: Negative probe weight >5% of PM | M88: no negatives | W88: Negative probe weight >5% of PM | X88: no negatives
A89: Negative probe value | L89: Negative probe value | M89: no negatives | W89: Negative probe value | X89: no negatives
A90: Negative room air values | L90: Negative room air values | M90: no negatives | W90: Negative room air values | X90: no negatives
A91: Ambient background filter data | L91: Ambient background filter data | M91: no negatives | W91: Ambient background filter data | X91: no negatives
A92: Proportional sampling | L92: Proportional sampling | M92: yes with allowable deviations | W92: Proportional sampling | X92: yes with allowable deviations
A93: Leak check - pre-test leak check reported | L93: Leak check - pre-test leak check reported | M93: Meets Specification | W93: Leak check - pre-test leak check reported | X93: Meets Specification
A94: Leak check - any filter change | L94: Leak check - any filter change | W94: Leak check - any filter change
A95: Leak check - post leak check reported | L95: Leak check - post leak check reported | M95: Meets Specification | W95: Leak check - post leak check reported | X95: Meets Specification
A96: Dilution tunnel schematic meets ASTM 2515 requirements | L96: Dilution tunnel schematic meets ASTM 2515 requirements | M96: not reported | W96: Dilution tunnel schematic meets ASTM 2515 requirements | X96: not reported
A97: number of conditioning hours reported in summary | L97: number of conditioning hours reported in summary | M97: 50 | W97: number of conditioning hours reported in summary | X97: 50
A98: number of conditioning hours with data | L98: number of conditioning hours with data | M98: 50 | W98: number of conditioning hours with data | X98: 50
A99: number of hours at correct conditioning conditions | L99: number of hours at correct conditioning conditions | T99: see cell I22 | W99: number of hours at correct conditioning conditions | X99: 0 | AE99: All 50 hours of conditioning were above medium burn rate reported in test (0.8kg/hr or 1.76lb/hr). Avg burn rate for condition was approximately 4lb/hr
A100: used lowest air settings for low burn (ASTM 3053) or Cat 1(M28R) | L100: used lowest air settings for low burn (ASTM 3053) or Cat 1(M28R) | T100: see cell I42 | W100: used lowest air settings for low burn (ASTM 3053) or Cat 1(M28R) | AE100: see cell I42
A101: Air setting data | B101: High | D101: Medium | F101: Low | L101: Air setting data | M101: High | O101: Medium | Q101: Low | W101: Air setting data | X101: High | Z101: Medium | AB101: Low
M102: 7 | N102: 3.56 | O102: 2.99 | P102: 1.07 | Q102: 1 | R102: 0.18 | X102: 7 | Y102: 3.56 | Z102: 2.99 | AA102: 1.07 | AB102: 1 | AC102: 0.18
A103: medium burn conditions met | L103: medium burn conditions met | W103: medium burn conditions met | X103: yes
A104: high test settings match high in OM | L104: high test settings match high in OM | W104: high test settings match high in OM
A105: Total number of runs | L105: Total number of runs | M105: 1 | T105: integrated | W105: Total number of runs | X105: 1 | AE105: integrated
A106: run averaging done correctly | L106: run averaging done correctly | M106: yes | W106: run averaging done correctly | X106: yes
A107: Calibration data | L107: Calibration data | M107: partially reported | T107: Although calibration data is included in the report some are outside the 6 month requriement. | W107: Calibration data | X107: partially reported | AE107: Although calibration data is included in the report some are outside the 6 month requriement.
A108: Milestone Date | B108: 2022-12-06 | I108: missing report elements | L108: Milestone Date | M108: 2022-01-20 | W108: Milestone Date | X108: 2022-01-20
A109: Compliance Date | L109: Compliance Date | M109: 2016-05-01 | N109: No EPA Compliance Date | W109: Compliance Date | X109: 2016-05-01 | Y109: No EPA Compliance Date
A110: DEC Calculated Certification Expiration | L110: DEC Calculated Certification Expiration | M110: 2021-05-01 | W110: DEC Calculated Certification Expiration | X110: 2021-05-01

Sheet HHH-Accentra 52i-TC
A1: Summary of Review | L1: Summary of Review
A2: Manufacturer | B2: Hearth and Home Technologies, LLC dba Harman | L2: Manufacturer | M2: Hearth and Home Technologies, LLC dba Harman
A3: Model | B3: Accentra 52i- TC | L3: Model | M3: Accentra 52i- TC
A4: Prelim review recomm. | B4: Requires a more thorough review | L4: Prelim review recomm. | M4: Requires a more thorough review
A5: Red flags | B5: =0+SUMPRODUCT((B14="NR")+(B14="Not reported")+(G14="NR")+(G14="Not reported")) +COUNTIF(B14,">2")+COUNTIF(G14,">6")+COUNTIF(B18:H28,"=Not reported")+SUMPRODUCT((B36="NR")+(B36="Not reported")+(B37="NR")+(B37="Not reported")+(B38="Not reported")+(B41="No")+(B42="No")+(B43="Not reported"))+IFERROR(IF(INDEX(C32:H32,1,MATCH("High",C31:H31,0))*0.5<INDEX(C32:H32,1,MATCH("Medium",C31:H31,0)),1,0),0)+IFERROR(IF(INDEX(C32:H32,1,MATCH("Low",C31:H31,0))<>MIN(C32:H32),1,0),0) -> 2 | C5: Orange flags | E5: 5 | F5: Yellow flags | H5: 5 | L5: Red flags | M5: =0+SUMPRODUCT((M14="NR")+(M14="Not reported")+(R14="NR")+(R14="Not reported")) +COUNTIF(M14,">2")+COUNTIF(R14,">6")+COUNTIF(M18:S28,"=Not reported")+SUMPRODUCT((M36="NR")+(M36="Not reported")+(M37="NR")+(M37="Not reported")+(M38="Not reported")+(M41="No")+(M42="No")+(M43="Not reported"))+IFERROR(IF(INDEX(N32:S32,1,MATCH("High",N31:S31,0))*0.5<INDEX(N32:S32,1,MATCH("Medium",N31:S31,0)),1,0),0)+IFERROR(IF(INDEX(N32:S32,1,MATCH("Low",N31:S31,0))<>MIN(N32:S32),1,0),0) -> 2 | N5: Orange flags | P5: 5 | Q5: Yellow flags | S5: 5
A6: Final Determination | B6: Pending - Minor | F6: Date: 9/1/2020 | I6: Basis: MD, IR | L6: Final Determination | M6: Pending - Minor | Q6: Date: 9/1/2020 | T6: Basis: MD, IR
A7: AK List Status | B7: Approved List - Pending | L7: AK List Status | M7: No Determination List
A8: Testing Information | B8: Determination | I8: Notes | L8: Testing Information | M8: Determination | T8: Notes
A9: Test method | B9: ASTM 2779 | L9: Test method | M9: ASTM 2779
A10: Test Lab | B10: OMNI | I10: peformed at Omni lab | L10: Test Lab | M10: OMNI | T10: peformed at Omni lab
A11: Third-party certifier | B11: Not reported | L11: Third-party certifier | M11: Not reported
A12: Report certified | B12: Not reported | I12: unable to locate certification within report, only authurized by OMNI Staff. | L12: Report certified | M12: Not reported | T12: unable to locate certification within report, only authurized by OMNI Staff.
A13: Test Report Elements | B13: Determination | I13: Notes | L13: Test Report Elements | M13: Determination | T13: Notes
A14: Overall PM emissions (g/hr) | B14: 1.12 | D14: PM Highest 1-hr (g/hr) | G14: 3.23 | L14: Overall PM emissions (g/hr) | M14: 1.12 | O14: PM Highest 1-hr (g/hr) | R14: 3.23
A15: Overall HHV efficiency (%) | B15: 76.1 | I15: 81.3 | L15: Overall HHV efficiency (%) | M15: 76.1 | T15: 81.3
A16: Overall heat output (Btu/hr) | B16: 39724 | L16: Overall heat output (Btu/hr) | M16: 39724
A17: Overall CO (g/hr) | B17: =IFERROR(G17*60,"Not reported") -> 15.096 | D17: Overall CO (g/min) | G17: 0.2516 | L17: Overall CO (g/hr) | M17: =IFERROR(R17*60,"Not reported") -> 15.096 | O17: Overall CO (g/min) | R17: 0.2516
A18: Manufacturers Instructions to lab | B18: Reported | L18: Manufacturers Instructions to lab | M18: Reported
A19: Efficiency calculations | B19: Reported | L19: Efficiency calculations | M19: Reported
A20: Burn rate calculations | B20: Reported | L20: Burn rate calculations | M20: Reported
A21: Raw data sheets | B21: Reported | L21: Raw data sheets | M21: Reported
A22: Conditioning completed by | B22: Lab | I22: Missing time and weight for all fuel added. Lab states unit was received on 1/4/2017, however conditioning was conducted at lab between 12/6-8/2016 | L22: Conditioning completed by | M22: Lab | T22: Missing time and weight for all fuel added. Lab states unit was received on 1/4/2017, however conditioning was conducted at lab between 12/6-8/2016
A23: Conditioning data | B23: Partially reported | I23: Conditioning data pg. 125, no specific dates of testing only a range. There is no way to determine if conditioning was conducted at medium burn rate due to lack of conditioning information. | L23: Conditioning data | M23: Partially reported | T23: Conditioning data pg. 125, no specific dates of testing only a range. There is no way to determine if conditioning was conducted at medium burn rate due to lack of conditioning information.
A24: Lab technician notes | B24: Reported | L24: Lab technician notes | M24: Reported
A25: Doc. of run appropriateness | B25: Reported | L25: Doc. of run appropriateness | M25: Reported
A26: Doc. of run validity | B26: Reported | L26: Doc. of run validity | M26: Reported
A27: Doc. of run anomolies | B27: Not reported | I27: could have been none | L27: Doc. of run anomolies | M27: Not reported | T27: could have been none
A28: Doc. of run burn rates | B28: Reported | L28: Doc. of run burn rates | M28: Reported
A29: Test Run Data | B29: Determination | I29: Notes | L29: Test Run Data | M29: Determination | T29: Notes
A30: Run # | C30: 1 | D30: 1 | E30: 1 | L30: Run # | N30: 1 | O30: 1 | P30: 1
A31: Run Category | C31: High | D31: Medium | E31: Low | L31: Run Category | N31: High | O31: Medium | P31: Low
A32: Burn rate (kg/hr) | C32: 2.71 | D32: 1.15 | E32: 0.6 | L32: Burn rate (kg/hr) | N32: 2.71 | O32: 1.15 | P32: 0.6
A33: Heat output (Btu/hr) | C33: 39724 | D33: 16666 | E33: 7418 | I33: 50300 | L33: Heat output (Btu/hr) | N33: 39724 | O33: 16666 | P33: 7418 | T33: 50300
A34: CO (g/min) | C34: NR | D34: NR | E34: NR | L34: CO (g/min) | N34: NR | O34: NR | P34: NR
A35: HHV efficiency (%) | C35: 79 | D35: 78.5 | E35: 66.3 | L35: HHV efficiency (%) | N35: 79 | O35: 78.5 | P35: 66.3
A36: Overall PM emissions (g/hr) | B36: 1.12 | L36: Overall PM emissions (g/hr) | M36: 1.12
A37: PM 1-hr filter pull (g/hr) | B37: 3.23 | L37: PM 1-hr filter pull (g/hr) | M37: 3.23
A38: Filter data | B38: Reported | L38: Filter data | M38: Reported
A39: Train precision (%) | B39: Not reported | L39: Train precision (%) | M39: Not reported
A40: Negative weights | B40: No | L40: Negative weights | M40: No
A41: Negs handled appropriately | B41: Yes | L41: Negs handled appropriately | M41: Yes
A42: Lowest burn rate tested | B42: Cannot be determined | I42: there is no mention of lowest setting possible | L42: Lowest burn rate tested | M42: Cannot be determined | T42: there is no mention of lowest setting possible
A43: All run data | B43: Not reported | L43: All run data | M43: Not reported
A44: Appliance Fueling | B44: Determination | I44: Notes | L44: Appliance Fueling | M44: Determination | T44: Notes
A45: Pellet species/type | B45: Hardwood | I45: Lignetics hardwood | L45: Pellet species/type | M45: Hardwood | T45: Lignetics hardwood
A46: Pellet fuel certification | B46: PFI | L46: Pellet fuel certification | M46: PFI
A47: Source of the pellet specification | B47: From an analyzed sample | L47: Source of the pellet specification | M47: From an analyzed sample
A48: Owners Manual Req. | B48: Determination | I48: Notes | L48: Owners Manual Req. | M48: Determination | T48: Notes
A49: Stack height | B49: Included | L49: Stack height | M49: Included
A50: Location recommendation | B50: Included | L50: Location recommendation | M50: Included
A51: Guidance on proper draft | B51: Included | L51: Guidance on proper draft | M51: Included
A52: Fuel loading & reloading | B52: Not applicable | L52: Fuel loading & reloading | M52: Not applicable
A53: Fuel selection recomm. | B53: Included | L53: Fuel selection recomm. | M53: Included
A54: Improper fuels warnings | B54: Included | L54: Improper fuels warnings | M54: Included
A55: Fire starting procedures | B55: Included | L55: Fire starting procedures | M55: Included
A56: Proper use of air controls | B56: Included | L56: Proper use of air controls | M56: Included
A57: Proper operation low | B57: Included | L57: Proper operation low | M57: Included
A58: Ash removal procedures | B58: Included | L58: Ash removal procedures | M58: Included
A59: Replacement parts | B59: Included | L59: Replacement parts | M59: Included
A60: Federal warning (C or NC) | B60: Included | L60: Federal warning (C or NC) | M60: Included
A61: Warranty rights | B61: Included | L61: Warranty rights | M61: Included
A62: Reporting | B62: Determination | I62: Notes | L62: Reporting | M62: Determination | T62: Notes
A63: Summary tables complete | B63: All reported | L63: Summary tables complete | M63: All reported
A64: All run data submitted | B64: All reported | L64: All run data submitted | M64: All reported
A65: Test report complete | B65: Partially reported minor | L65: Test report complete | M65: Partially reported minor
A66: Owner manual complete | B66: All reported | L66: Owner manual complete | M66: All reported
A67: Test dates | B67: 2017-01-10 | L67: Test dates | M67: 2017-01-10
A68: 30 Day notice submitted to EPA | B68: No | L68: 30 Day notice submitted to EPA | M68: No
A69: Tested on the proposed date | B69: Cannot Be Determined | L69: Tested on the proposed date | M69: Cannot Be Determined
A70: Tested in one day | B70: Yes | L70: Tested in one day | M70: Yes
A71: 60 Day report to EPA | B71: Yes | L71: 60 Day report to EPA | M71: Yes
A72: EPA additional Review Elements | B72: Determination | I72: Notes | L72: EPA additional Review Elements | M72: Determination | T72: Notes
A73: check owners manual and highest setting in test are they the same | L73: check owners manual and highest setting in test are they the same
A74: Test location | L74: Test location | M74: Lab | T74: Portland, Oregon
A75: date lab received the unit | L75: date lab received the unit | M75: 2017-01-04
A76: date first day of conditioning | L76: date first day of conditioning | M76: 12/6-12/8/2016
A77: date first day of testing | L77: date first day of testing | M77: 2017-01-10
A78: first hour PM emissions reported for all runs | L78: first hour PM emissions reported for all runs | M78: yes
A79: first hour PM emissions reported in grams per hour | L79: first hour PM emissions reported in grams per hour | M79: yes
A80: first hour PM emissions zero or negative | L80: first hour PM emissions zero or negative | M80: no
A81: first hour PM emissions measured with front and back filter | L81: first hour PM emissions measured with front and back filter | M81: no
A82: Zero CO emission reported | L82: Zero CO emission reported | M82: not reported
A83: Any incomplete runs | L83: Any incomplete runs | M83: no
A84: Pre-ignition data reported | L84: Pre-ignition data reported | M84: yes
A85: filter changes during test run | L85: filter changes during test run | M85: no
A86: filter plugged during test run | L86: filter plugged during test run | M86: no
A87: What type of filter used | L87: What type of filter used | M87: not reported
A88: Negative probe weight >5% of PM | L88: Negative probe weight >5% of PM | M88: no negatives
A89: Negative probe value | L89: Negative probe value | M89: no negatives
A90: Negative room air values | L90: Negative room air values | M90: no negatives
A91: Ambient background filter data | L91: Ambient background filter data | M91: no negatives
A92: Proportional sampling | L92: Proportional sampling | M92: yes with allowable deviations
A93: Leak check - pre-test leak check reported | L93: Leak check - pre-test leak check reported | M93: Meets Specification
A94: Leak check - any filter change | L94: Leak check - any filter change
A95: Leak check - post leak check reported | L95: Leak check - post leak check reported | M95: Meets Specification
A96: Dilution tunnel schematic meets ASTM 2515 requirements | L96: Dilution tunnel schematic meets ASTM 2515 requirements | M96: not reported
A97: number of conditioning hours reported in summary | L97: number of conditioning hours reported in summary | M97: 50
A98: number of conditioning hours with data | L98: number of conditioning hours with data | M98: 50
A99: number of hours at correct conditioning conditions | L99: number of hours at correct conditioning conditions | T99: refer to I22
A100: used lowest air settings for low burn (ASTM 3053) or Cat 1(M28R) | L100: used lowest air settings for low burn (ASTM 3053) or Cat 1(M28R) | T100: refer to I42
A101: Air setting data | B101: High | D101: Medium | F101: Low | L101: Air setting data | M101: High | O101: Medium | Q101: Low
M102: 7 | N102: feed 40% | O102: 3.1 | P102: 0.4 | Q102: 1 | R102: 0.25
A103: medium burn conditions met | L103: medium burn conditions met
A104: high test settings match high in OM | L104: high test settings match high in OM
A105: Total number of runs | L105: Total number of runs | M105: 1 | T105: integrated
A106: run averaging done correctly | L106: run averaging done correctly | M106: yes
A107: Calibration data | L107: Calibration data | M107: partially reported | T107: Although calibration data is included in the report some of the certifications are outside the 6 month requirement
A108: Milestone Date | B108: 2022-12-06 | I108: missing report elements | L108: Milestone Date | M108: 2022-01-20
A109: Compliance Date | L109: Compliance Date | M109: 2017-02-01 | N109: No EPA Compliance Date
A110: DEC Calculated Certification Expiration | L110: DEC Calculated Certification Expiration | M110: 2022-02-01

Sheet HHH-Allure 50
A1: Summary of Review | L1: Summary of Review
A2: Manufacturer | B2: Hearth and Home Technologies, LLC dba Harman | L2: Manufacturer | M2: Hearth and Home Technologies, LLC dba Harman
A3: Model | B3: Allure 50 | L3: Model | M3: Allure 50
A4: Prelim review recomm. | B4: Disapproved | L4: Prelim review recomm. | M4: Disapproved
A5: Red flags | B5: 2 | C5: Orange flags | E5: 7 | F5: Yellow flags | H5: 4 | L5: Red flags | M5: 2 | N5: Orange flags | P5: 7 | Q5: Yellow flags | S5: 4
A6: Final Determination | B6: Pending - Major | F6: Date: 9/1/2020 | I6: Basis: MD, IDU, IR | L6: Final Determination | M6: Pending - Major | Q6: Date: 9/1/2020 | T6: Basis: MD, IDU, IR
A7: AK List Status | B7: Approved List - Pending | L7: AK List Status | M7: No Determination List
A8: Testing Information | B8: Determination | I8: Notes | L8: Testing Information | M8: Determination | T8: Notes
A9: Test method | B9: ASTM 2779 | L9: Test method | M9: ASTM 2779
A10: Test Lab | B10: OMNI | I10: performed at Omni lab | L10: Test Lab | M10: OMNI | T10: performed at Omni lab
A11: Third-party certifier | B11: Not reported | L11: Third-party certifier | M11: Not reported
A12: Report certified | B12: Not reported | I12: found only authorized signatories | L12: Report certified | M12: Not reported | T12: found only authorized signatories
A13: Test Report Elements | B13: Determination | I13: Notes | L13: Test Report Elements | M13: Determination | T13: Notes
A14: Overall PM emissions (g/hr) | B14: 1.48 | D14: PM Highest 1-hr (g/hr) | G14: 3.7 | L14: Overall PM emissions (g/hr) | M14: 1.48 | O14: PM Highest 1-hr (g/hr) | R14: 3.7
A15: Overall HHV efficiency (%) | B15: 74.6 | I15: 0.799 | L15: Overall HHV efficiency (%) | M15: 74.6 | T15: 0.799
A16: Overall heat output (Btu/hr) | B16: 39105 | L16: Overall heat output (Btu/hr) | M16: 39105
A17: Overall CO (g/hr) | B17: =IFERROR(G17*60,"Not reported") -> 1818 | D17: Overall CO (g/min) | G17: 30.3 | L17: Overall CO (g/hr) | M17: =IFERROR(R17*60,"Not reported") -> 1818 | O17: Overall CO (g/min) | R17: 30.3
A18: Manufacturers Instructions to lab | B18: Reported | L18: Manufacturers Instructions to lab | M18: Reported
A19: Efficiency calculations | B19: Reported | L19: Efficiency calculations | M19: Reported
A20: Burn rate calculations | B20: Reported | L20: Burn rate calculations | M20: Reported
A21: Raw data sheets | B21: Reported | L21: Raw data sheets | M21: Reported
A22: Conditioning completed by | B22: Lab | I22: conditioning data page 120, reported for 9/1 but testing run on 9/2 - when did 50 hours of aging occur? | L22: Conditioning completed by | M22: Lab | T22: conditioning data page 120, reported for 9/1 but testing run on 9/2 - when did 50 hours of aging occur?
A23: Conditioning data | B23: Partially reported | I23: missing fuel add, weights and times data | L23: Conditioning data | M23: Partially reported | T23: missing fuel add, weights and times data
A24: Lab technician notes | B24: Reported | L24: Lab technician notes | M24: Reported
A25: Doc. of run appropriateness | B25: Reported | L25: Doc. of run appropriateness | M25: Reported
A26: Doc. of run validity | B26: Reported | I26: Run 1 not cosidered valid | L26: Doc. of run validity | M26: Reported | T26: Run 1 not cosidered valid
A27: Doc. of run anomolies | B27: Reported | L27: Doc. of run anomolies | M27: Reported
A28: Doc. of run burn rates | B28: Reported | L28: Doc. of run burn rates | M28: Reported
A29: Test Run Data | B29: Determination | I29: Notes | L29: Test Run Data | M29: Determination | T29: Notes
A30: Run # | C30: 1 | D30: 1 | E30: 1 | F30: 2 | G30: 2 | H30: 2 | L30: Run # | N30: 2 | O30: 2 | P30: 2 | Q30: 1 | R30: 1 | S30: 1 | T30: lab determined run 1 was invalid. After results came back higher than expected lab found that there was damage to equipment. Lab repaired and retested
A31: Run Category | C31: High | D31: Medium | E31: Low | F31: High | G31: Medium | H31: Low | L31: Run Category | N31: High | O31: Medium | P31: Low | Q31: High | R31: Medium | S31: Low
A32: Burn rate (kg/hr) | C32: 2.88 | D32: 1.32 | E32: 0.94 | F32: 2.84 | G32: 1.26 | H32: 0.72 | L32: Burn rate (kg/hr) | N32: 2.88 | O32: 1.32 | P32: 0.94 | Q32: 2.84 | R32: 1.26 | S32: 0.72
A33: Heat output (Btu/hr) | C33: 32231 | D33: 18481 | E33: 12730 | F33: 39105 | G33: 17711 | H33: 9001 | I33: 52600 | L33: Heat output (Btu/hr) | N33: 32231 | O33: 18481 | P33: 12730 | Q33: 39105 | R33: 17711 | S33: 9001 | T33: 52600
A34: CO (g/min) | C34: NR | D34: NR | E34: NR | F34: NR | G34: NR | H34: NR | L34: CO (g/min) | N34: NR | O34: NR | P34: NR | Q34: NR | R34: NR | S34: NR
A35: HHV efficiency (%) | C35: 60.4 | D35: 75.9 | E35: 73.6 | F35: 74.4 | G35: 75.6 | H35: NR | L35: HHV efficiency (%) | N35: 60.4 | O35: 75.9 | P35: 73.6 | Q35: 74.4 | R35: 75.6 | S35: NR
A36: Overall PM emissions (g/hr) | B36: 1.48 | L36: Overall PM emissions (g/hr) | N36: 1.48 | Q36: 2.83
A37: PM 1-hr filter pull (g/hr) | B37: 3.7 | L37: PM 1-hr filter pull (g/hr) | N37: 3.7 | Q37: 7.23 | T37: run 2 PM found on pg 122 only
A38: Filter data | B38: Reported | L38: Filter data | M38: Reported
A39: Train precision (%) | B39: Not reported | L39: Train precision (%) | M39: Not reported
A40: Negative weights | B40: Yes | L40: Negative weights | M40: Yes
A41: Negs handled appropriately | B41: No | L41: Negs handled appropriately | M41: No
A42: Lowest burn rate tested | B42: Cannot be determined | I42: no mention of the lowest setting, although control temp set to 1 & 25% feed rate, no way to know actual lowest setting possible | L42: Lowest burn rate tested | M42: Cannot be determined | T42: no mention of the lowest setting, although control temp set to 1 & 25% feed rate, no way to know actual lowest setting possible
A43: All run data | B43: Not reported | L43: All run data | M43: Not reported
A44: Appliance Fueling | B44: Determination | I44: Notes | L44: Appliance Fueling | M44: Determination | T44: Notes
A45: Pellet species/type | B45: Hardwood | I45: Lignetics hardwood | L45: Pellet species/type | M45: Hardwood | T45: Lignetics hardwood
A46: Pellet fuel certification | B46: PFI | L46: Pellet fuel certification | M46: PFI
A47: Source of the pellet specification | B47: From an analyzed sample | L47: Source of the pellet specification | M47: From an analyzed sample
A48: Owners Manual Req. | B48: Determination | I48: Notes | L48: Owners Manual Req. | M48: Determination | T48: Notes
A49: Stack height | B49: Included | L49: Stack height | M49: Included
A50: Location recommendation | B50: Included | L50: Location recommendation | M50: Included
A51: Guidance on proper draft | B51: Included | L51: Guidance on proper draft | M51: Included
A52: Fuel loading & reloading | B52: Not applicable | L52: Fuel loading & reloading | M52: Not applicable
A53: Fuel selection recomm. | B53: Included | L53: Fuel selection recomm. | M53: Included
A54: Improper fuels warnings | B54: Included | L54: Improper fuels warnings | M54: Included
A55: Fire starting procedures | B55: Included | L55: Fire starting procedures | M55: Included
A56: Proper use of air controls | B56: Included | L56: Proper use of air controls | M56: Included
A57: Proper operation low | B57: Included | L57: Proper operation low | M57: Included
A58: Ash removal procedures | B58: Included | L58: Ash removal procedures | M58: Included
A59: Replacement parts | B59: Included | L59: Replacement parts | M59: Included
A60: Federal warning (C or NC) | B60: Included | L60: Federal warning (C or NC) | M60: Included
A61: Warranty rights | B61: Included | L61: Warranty rights | M61: Included
A62: Reporting | B62: Determination | I62: Notes | L62: Reporting | M62: Determination | T62: Notes
A63: Summary tables complete | B63: All reported | L63: Summary tables complete | M63: All reported
A64: All run data submitted | B64: All reported | L64: All run data submitted | M64: All reported
A65: Test report complete | B65: Partially reported minor | L65: Test report complete | M65: Partially reported minor
A66: Owner manual complete | B66: All reported | L66: Owner manual complete | M66: All reported
A67: Test dates | B67: 9/2/15-9/10/15 | L67: Test dates | M67: 9/2/15-9/10/15
A68: 30 Day notice submitted to EPA | B68: No | L68: 30 Day notice submitted to EPA | M68: No
A69: Tested on the proposed date | B69: Cannot Be Determined | L69: Tested on the proposed date | M69: Cannot Be Determined
A70: Tested in one day | B70: No | L70: Tested in one day | M70: No
A71: 60 Day report to EPA | B71: No | L71: 60 Day report to EPA | M71: No
A72: EPA additional Review Elements | B72: Determination | I72: Notes | L72: EPA additional Review Elements | M72: Determination | T72: Notes
A73: check owners manual and highest setting in test are they the same | L73: check owners manual and highest setting in test are they the same
A74: Test location | L74: Test location | M74: Lab | T74: Portland, Oregon
A75: date lab received the unit | L75: date lab received the unit | M75: 2015-08-27
A76: date first day of conditioning | L76: date first day of conditioning
A77: date first day of testing | L77: date first day of testing | M77: 2015-09-10
A78: first hour PM emissions reported for all runs | L78: first hour PM emissions reported for all runs | M78: yes
A79: first hour PM emissions reported in grams per hour | L79: first hour PM emissions reported in grams per hour | M79: yes
A80: first hour PM emissions zero or negative | L80: first hour PM emissions zero or negative | M80: no
A81: first hour PM emissions measured with front and back filter | L81: first hour PM emissions measured with front and back filter | M81: yes
A82: Zero CO emission reported | L82: Zero CO emission reported | M82: not reported
A83: Any incomplete runs | L83: Any incomplete runs | M83: no
A84: Pre-ignition data reported | L84: Pre-ignition data reported | M84: not reported
A85: filter changes during test run | L85: filter changes during test run | M85: no
A86: filter plugged during test run | L86: filter plugged during test run | M86: no
A87: What type of filter used | L87: What type of filter used | M87: not reported
A88: Negative probe weight >5% of PM | L88: Negative probe weight >5% of PM | M88: no negatives
A89: Negative probe value | L89: Negative probe value | M89: no negatives
A90: Negative room air values | L90: Negative room air values | M90: no negatives
A91: Ambient background filter data | L91: Ambient background filter data | M91: no negatives
A92: Proportional sampling | L92: Proportional sampling | M92: yes with allowable deviations
A93: Leak check - pre-test leak check reported | L93: Leak check - pre-test leak check reported | M93: Meets Specification
A94: Leak check - any filter change | L94: Leak check - any filter change
A95: Leak check - post leak check reported | L95: Leak check - post leak check reported | M95: Meets Specification
A96: Dilution tunnel schematic meets ASTM 2515 requirements | L96: Dilution tunnel schematic meets ASTM 2515 requirements | M96: not reported
A97: number of conditioning hours reported in summary | L97: number of conditioning hours reported in summary | M97: 50
A98: number of conditioning hours with data | L98: number of conditioning hours with data | T98: see cell I22
A99: number of hours at correct conditioning conditions | L99: number of hours at correct conditioning conditions
A100: used lowest air settings for low burn (ASTM 3053) or Cat 1(M28R) | L100: used lowest air settings for low burn (ASTM 3053) or Cat 1(M28R) | T100: see cell I42
A101: Air setting data | B101: High | D101: Medium | F101: Low | L101: Air setting data | M101: High | O101: Medium | Q101: Low
M102: 7 | N102: 100% feed | O102: 2.5 | P102: 0.41 | Q102: 1 | R102: 0.25
A103: medium burn conditions met | L103: medium burn conditions met
A104: high test settings match high in OM | L104: high test settings match high in OM
A105: Total number of runs | L105: Total number of runs | M105: 2
A106: run averaging done correctly | L106: run averaging done correctly | T106: email sent to EPA about lab's invalidation of run 1.
A107: Calibration data | L107: Calibration data | M107: partially reported | T107: although callibration data is included some certifications are outside the 6 month window
A108: Milestone Date | B108: 2022-12-06 | I108: missing report elements | L108: Milestone Date | M108: 2022-01-20
A109: Compliance Date | L109: Compliance Date | M109: 2016-03-01 | N109: No EPA Compliance Date
A110: DEC Calculated Certification Expiration | L110: DEC Calculated Certification Expiration | M110: 2021-03-01

Sheet US Stove 6041
A1: Summary of Review | L1: Summary of Review
A2: Manufacturer | B2: United States Stove Company | I2: 2021-03-31 | L2: Manufacturer | M2: United States Stove Company | T2: 2021-03-31
A3: Model | B3: 6041, 6041I, and SP6000 | L3: Model | M3: 6041, 6041I, and SP6000
A4: Prelim review recomm. | B4: Requires a more thorough review | L4: Prelim review recomm. | M4: Requires a more thorough review
A5: Red flags | B5: 0 | C5: Orange flags | E5: 7 | F5: Yellow flags | H5: 4 | L5: Red flags | M5: 0 | N5: Orange flags | P5: 7 | Q5: Yellow flags | S5: 4
A6: Final Determination | B6: Pending - Minor | F6: Date: 9/1/2020 | I6: Basis: MD, IR | L6: Final Determination | M6: Pending - Minor | Q6: Date: 9/1/2020 | T6: Basis: MD, IR
A7: AK List Status | B7: Approved List - Pending | L7: AK List Status | M7: Approved List - Pending
A8: Testing Information | B8: Determination | I8: Notes | L8: Testing Information | M8: Determination | T8: Notes
A9: Test method | B9: ASTM 2779 | I9: only tested with wood. Multi fuel unit required by the method to test with all fuels. | L9: Test method | M9: ASTM 2779 | T9: only tested with wood. Multi fuel unit required by the method to test with all fuels.
A10: Test Lab | B10: PFS-TECO | I10: performed at PFS facility | L10: Test Lab | M10: PFS-TECO | T10: performed at PFS facility
A11: Third-party certifier | B11: Not reported | L11: Third-party certifier | M11: Not reported
A12: Report certified | B12: PFS-TECO | I12: signed by Sebastian Button | L12: Report certified | M12: PFS-TECO | T12: signed by Sebastian Button
A13: Test Report Elements | B13: Determination | I13: Notes | L13: Test Report Elements | M13: Determination | T13: Notes
A14: Overall PM emissions (g/hr) | B14: 1.28 | D14: PM Highest 1-hr (g/hr) | G14: 0.33 | I14: advertised as multi-fuel unit but not tested with other fuels. | L14: Overall PM emissions (g/hr) | M14: 1.28 | O14: PM Highest 1-hr (g/hr) | R14: 0.33 | T14: advertised as multi-fuel unit but not tested with other fuels.
A15: Overall HHV efficiency (%) | B15: 57.6 | I15: 57 | L15: Overall HHV efficiency (%) | M15: 57.6 | T15: 57
A16: Overall heat output (Btu/hr) | B16: 21811 | L16: Overall heat output (Btu/hr) | M16: 21811
A17: Overall CO (g/hr) | B17: =IFERROR(G17*60,"Not reported") -> 27.6 | D17: Overall CO (g/min) | G17: 0.46 | L17: Overall CO (g/hr) | M17: =IFERROR(R17*60,"Not reported") -> 27.6 | O17: Overall CO (g/min) | R17: 0.46
A18: Manufacturers Instructions to lab | B18: Reported | L18: Manufacturers Instructions to lab | M18: Reported
A19: Efficiency calculations | B19: Reported | L19: Efficiency calculations | M19: Reported
A20: Burn rate calculations | B20: Reported | L20: Burn rate calculations | M20: Reported
A21: Raw data sheets | B21: Reported | L21: Raw data sheets | M21: Reported
A22: Conditioning completed by | B22: Lab | I22: Lab received unit 6/3/2019 testing began 7/17/2019 | L22: Conditioning completed by | M22: Lab | T22: Lab received unit 6/3/2019 testing began 7/17/2019
A23: Conditioning data | B23: Reported | L23: Conditioning data | M23: Reported
A24: Lab technician notes | B24: Reported | L24: Lab technician notes | M24: Reported
A25: Doc. of run appropriateness | B25: Reported | L25: Doc. of run appropriateness | M25: Reported
A26: Doc. of run validity | B26: Reported | L26: Doc. of run validity | M26: Reported
A27: Doc. of run anomolies | B27: Reported | L27: Doc. of run anomolies | M27: Reported
A28: Doc. of run burn rates | B28: Reported | L28: Doc. of run burn rates | M28: Reported
A29: Test Run Data | B29: Determination | I29: Notes | L29: Test Run Data | M29: Determination | T29: Notes
A30: Run # | C30: 1 | D30: 1 | E30: 1 | L30: Run # | N30: 1 | O30: 1 | P30: 1
A31: Run Category | C31: High | D31: Medium | E31: Low | L31: Run Category | N31: High | O31: Medium | P31: Low
A32: Burn rate (kg/hr) | C32: 1.67 | D32: 0.79 | E32: 0.75 | L32: Burn rate (kg/hr) | N32: 1.67 | O32: 0.79 | P32: 0.75
A33: Heat output (Btu/hr) | C33: 21811 | D33: 8311 | E33: 7540 | I33: 52300 | L33: Heat output (Btu/hr) | N33: 21811 | O33: 8311 | P33: 7540 | T33: 52300
A34: CO (g/min) | C34: 0.58 | D34: 0.48 | E34: 0.42 | L34: CO (g/min) | N34: 0.58 | O34: 0.48 | P34: 0.42
A35: HHV efficiency (%) | C35: 67.4 | D35: 54.2 | E35: 52.1 | L35: HHV efficiency (%) | N35: 67.4 | O35: 54.2 | P35: 52.1
A36: Overall PM emissions (g/hr) | B36: 1.28 | L36: Overall PM emissions (g/hr) | M36: 1.28
A37: PM 1-hr filter pull (g/hr) | B37: 0.33 | L37: PM 1-hr filter pull (g/hr) | M37: 0.33
A38: Filter data | B38: Reported | L38: Filter data | M38: Reported
A39: Train precision (%) | B39: 4 | L39: Train precision (%) | M39: 4
A40: Negative weights | B40: No | L40: Negative weights | M40: No
A41: Negs handled appropriately | B41: Yes | L41: Negs handled appropriately | M41: Yes
A42: Lowest burn rate tested | B42: Cannot be determined | I42: both med and low test segment ran at same setting "#1" | L42: Lowest burn rate tested | M42: Cannot be determined | T42: both med and low test segment ran at same setting "#1"
A43: All run data | B43: Reported | L43: All run data | M43: Reported
A44: Appliance Fueling | B44: Determination | I44: Notes | L44: Appliance Fueling | M44: Determination | T44: Notes
A45: Pellet species/type | B45: Not reported | I45: Pre-to-Logs pellet | L45: Pellet species/type | M45: Not reported | T45: Pre-to-Logs pellet
A46: Pellet fuel certification | B46: PFI | L46: Pellet fuel certification | M46: PFI
A47: Source of the pellet specification | B47: Other - specify → | L47: Source of the pellet specification | M47: Other - specify →
A48: Owners Manual Req. | B48: Determination | I48: Notes | L48: Owners Manual Req. | M48: Determination | T48: Notes
A49: Stack height | B49: Included | L49: Stack height | M49: Included
A50: Location recommendation | B50: Included | L50: Location recommendation | M50: Included
A51: Guidance on proper draft | B51: Included | L51: Guidance on proper draft | M51: Included
A52: Fuel loading & reloading | B52: Not applicable | L52: Fuel loading & reloading | M52: Not applicable
A53: Fuel selection recomm. | B53: Included | L53: Fuel selection recomm. | M53: Included
A54: Improper fuels warnings | B54: Not included | L54: Improper fuels warnings | M54: Not included
A55: Fire starting procedures | B55: Included | L55: Fire starting procedures | M55: Included
A56: Proper use of air controls | B56: Included | L56: Proper use of air controls | M56: Included
A57: Proper operation low | B57: Included | L57: Proper operation low | M57: Included
A58: Ash removal procedures | B58: Included | L58: Ash removal procedures | M58: Included
A59: Replacement parts | B59: Not included | L59: Replacement parts | M59: Not included
A60: Federal warning (C or NC) | B60: Included | L60: Federal warning (C or NC) | M60: Included
A61: Warranty rights | B61: Included | L61: Warranty rights | M61: Included
A62: Reporting | B62: Determination | I62: Notes | L62: Reporting | M62: Determination | T62: Notes
A63: Summary tables complete | B63: All reported | L63: Summary tables complete | M63: All reported
A64: All run data submitted | B64: All reported | L64: All run data submitted | M64: All reported
A65: Test report complete | B65: Partially reported minor | L65: Test report complete | M65: Partially reported minor
A66: Owner manual complete | B66: Partially reported minor | L66: Owner manual complete | M66: Partially reported minor
A67: Test dates | B67: 2019-07-26 | L67: Test dates | M67: 2019-07-26
A68: 30 Day notice submitted to EPA | B68: No | L68: 30 Day notice submitted to EPA | M68: No
A69: Tested on the proposed date | B69: Cannot Be Determined | L69: Tested on the proposed date | M69: Cannot Be Determined
A70: Tested in one day | B70: Yes | L70: Tested in one day | M70: Yes
A71: 60 Day report to EPA | B71: Yes | L71: 60 Day report to EPA | M71: Yes
A72: EPA additional Review Elements | B72: Determination | I72: Notes | L72: EPA additional Review Elements | M72: Determination | T72: Notes
A73: check owners manual and highest setting in test are they the same | L73: check owners manual and highest setting in test are they the same
A74: Test location | L74: Test location | M74: Lab | T74: Portland, OR
A75: date lab received the unit | L75: date lab received the unit | M75: 2019-06-03
A76: date first day of conditioning | L76: date first day of conditioning | M76: Not Reported | T76: conditioning data does not have any dates
A77: date first day of testing | L77: date first day of testing | M77: 2019-07-17
A78: first hour PM emissions reported for all runs | L78: first hour PM emissions reported for all runs | M78: yes
A79: first hour PM emissions reported in grams per hour | L79: first hour PM emissions reported in grams per hour | M79: yes
A80: first hour PM emissions zero or negative | L80: first hour PM emissions zero or negative | M80: no
A81: first hour PM emissions measured with front and back filter | L81: first hour PM emissions measured with front and back filter | M81: yes
A82: Zero CO emission reported | L82: Zero CO emission reported | M82: no
A83: Any incomplete runs | L83: Any incomplete runs | M83: no
A84: Pre-ignition data reported | L84: Pre-ignition data reported | M84: yes
A85: filter changes during test run | L85: filter changes during test run | M85: yes | T85: Front filters changed on sample A at one hour after the test began
A86: filter plugged during test run | L86: filter plugged during test run | M86: no
A87: What type of filter used | L87: What type of filter used | M87: not reported
A88: Negative probe weight >5% of PM | L88: Negative probe weight >5% of PM | M88: no negatives
A89: Negative probe value | L89: Negative probe value | M89: no negatives
A90: Negative room air values | L90: Negative room air values | M90: no negatives
A91: Ambient background filter data | L91: Ambient background filter data | M91: no negatives
A92: Proportional sampling | L92: Proportional sampling | M92: yes with allowable deviations
A93: Leak check - pre-test leak check reported | L93: Leak check - pre-test leak check reported | M93: Meets Specification
A94: Leak check - any filter change | L94: Leak check - any filter change
A95: Leak check - post leak check reported | L95: Leak check - post leak check reported | M95: Meets Specification
A96: Dilution tunnel schematic meets ASTM 2515 requirements | L96: Dilution tunnel schematic meets ASTM 2515 requirements | M96: not reported
A97: number of conditioning hours reported in summary | L97: number of conditioning hours reported in summary | M97: 50
A98: number of conditioning hours with data | L98: number of conditioning hours with data | M98: 50
A99: number of hours at correct conditioning conditions | L99: number of hours at correct conditioning conditions
A100: used lowest air settings for low burn (ASTM 3053) or Cat 1(M28R) | L100: used lowest air settings for low burn (ASTM 3053) or Cat 1(M28R)
A101: Air setting data | B101: High | D101: Medium | F101: Low | L101: Air setting data | M101: High | O101: Medium | Q101: Low
M102: High | N102: 5 | O102: Medium | P102: 1 | Q102: Low | R102: 1
A103: medium burn conditions met | L103: medium burn conditions met
A104: high test settings match high in OM | L104: high test settings match high in OM
A105: Total number of runs | L105: Total number of runs | M105: 1
A106: run averaging done correctly | L106: run averaging done correctly | M106: yes
A107: Calibration data | L107: Calibration data | M107: partially reported | T107: Although calibration data is reported certifications are outside the 6 month requirement
A108: Milestone Date | B108: 2022-12-06 | I108: missing report elements | L108: Milestone Date | M108: 2022-12-06
A109: Compliance Date | L109: Compliance Date | M109: 2019-09-18 | N109: No EPA Compliance Date
A110: DEC Calculated Certification Expiration | L110: DEC Calculated Certification Expiration | M110: 2024-09-18

Sheet AES Baby
A1: Summary of Review
A2: Manufacturer | B2: American Energy Systems (AES)
A3: Model | B3: Magnum Baby Countryside
A4: Prelim review recomm. | B4: Disapproved
A5: Red flags | B5: 12 | C5: Orange flags | E5: 8 | F5: Yellow flags | H5: 10
A6: Final Determination | B6: Pending - Major | F6: Date: 9/1/2020 | I6: Basis: MD, IDU, IR, NR
A7: AK List Status | B7: No Determination List
A8: Testing Information | B8: Determination | I8: Notes
A9: Test method | B9: ASTM 2779 | I9: only tested with wood. Multi fuel unit required by the method to test with all fuels.
A10: Test Lab | B10: Intertek | I10: performed at Intertek facility
A11: Third-party certifier | B11: Not reported | I11: manufacturer modified operating instruction mid-test.
A12: Report certified | B12: Not reported
A13: Test Report Elements | B13: Determination | I13: Notes
A14: Overall PM emissions (g/hr) | B14: 0.986 | D14: PM Highest 1-hr (g/hr) | G14: 0.97 | I14: 0.69
A15: Overall HHV efficiency (%) | B15: 72.6 | I15: 0.83
A16: Overall heat output (Btu/hr) | B16: 25519
A17: Overall CO (g/hr) | B17: =IFERROR(G17*60,"Not reported") -> 406.8 | D17: Overall CO (g/min) | G17: 6.78
A18: Manufacturers Instructions to lab | B18: Reported
A19: Efficiency calculations | B19: Not reported | I19: shown in table of contents but not included in posted report
A20: Burn rate calculations | B20: Not reported
A21: Raw data sheets | B21: Not reported
A22: Conditioning completed by | B22: Lab | I22: states lab did testing on 3/2-4/15 but also states that they did not receive it until 4/10/2015. How were all AES units aged on the same days?
A23: Conditioning data | B23: Not reported | I23: preburn 3/2-4/2015 (same days as LR) but not tested until
A24: Lab technician notes | B24: Not reported | I24: 4/21/2015 why was the delay so long.
A25: Doc. of run appropriateness | B25: Not reported
A26: Doc. of run validity | B26: Not reported
A27: Doc. of run anomolies | B27: Reported | I27: Mentions anomaly in run 1
A28: Doc. of run burn rates | B28: Reported
A29: Test Run Data | B29: Determination | I29: Notes
A30: Run # | C30: 1 | D30: 2 | E30: 2 | F30: 2
A31: Run Category | C31: Other | D31: High | E31: Medium | F31: Low | I31: states it can burn corn but does not
A32: Burn rate (kg/hr) | C32: 1.63 | D32: 1.9 | E32: 1 | F32: 0.75 | I32: appear to have tested with that fuel.
A33: Heat output (Btu/hr) | C33: NR | D33: 25519 | E33: 13039 | F33: 10330 | I33: 32000
A34: CO (g/min) | C34: NR | D34: 11.13 | E34: 10.39 | F34: 3.02 | I34: could not maintain sample flow rate so aborted test run 1.
A35: HHV efficiency (%) | C35: NR | D35: 71.2 | E35: 69.6 | F35: 73.3
A36: Overall PM emissions (g/hr) | B36: 0.986
A37: PM 1-hr filter pull (g/hr) | B37: 0.97
A38: Filter data | B38: Not reported
A39: Train precision (%) | B39: 0.83
A40: Negative weights | B40: No
A41: Negs handled appropriately | B41: Yes
A42: Lowest burn rate tested | B42: No | I42: See Run 2 note, air flap was not completely closed. settings are reported in run summary.
A43: All run data | B43: Not reported | I43: no individual run data included in posted report
A44: Appliance Fueling | B44: Determination | I44: Notes
A45: Pellet species/type | B45: Not reported
A46: Pellet fuel certification | B46: Not reported
A47: Source of the pellet specification | B47: Default values
A48: Owners Manual Req. | B48: Determination | I48: Notes
A49: Stack height | B49: Included | I49: no manual included in posted test report
A50: Location recommendation | B50: Included
A51: Guidance on proper draft | B51: Included
A52: Fuel loading & reloading | B52: Not applicable
A53: Fuel selection recomm. | B53: Included
A54: Improper fuels warnings | B54: Insufficient data | I54: unble to locate information
A55: Fire starting procedures | B55: Included
A56: Proper use of air controls | B56: Included
A57: Proper operation low | B57: Included
A58: Ash removal procedures | B58: Included
A59: Replacement parts | B59: Insufficient data | I59: unble to locate information
A60: Federal warning (C or NC) | B60: Included
A61: Warranty rights | B61: Included
A62: Reporting | B62: Determination | I62: Notes
A63: Summary tables complete | B63: Partially reported | I63: did not include run 1
A64: All run data submitted | B64: Not reported | I64: not included in posted report
A65: Test report complete | B65: Partially reported major | I65: posted report containted only 15 pages
A66: Owner manual complete | B66: Partially reported minor | I66: no data to support summary or R1 data
A67: Test dates | B67: 4/21/15 - 4/22/15 | I67: received 4/10/2015
A68: 30 Day notice submitted to EPA | B68: No
A69: Tested on the proposed date | B69: Cannot Be Determined
A70: Tested in one day | B70: No
A71: 60 Day report to EPA | B71: Yes
A72: EPA additional Review Elements | B72: Determination | I72: Notes
A73: check owners manual and highest setting in test are they the same
A74: Test location | B74: Lab
A75: date lab received the unit
A76: date first day of conditioning
A77: date first day of testing
A78: first hour PM emissions reported for all runs
A79: first hour PM emissions reported in grams per hour
A80: first hour PM emissions zero or negative
A81: first hour PM emissions measured with front and back filter
A82: Zero CO emission reported
A83: Any incomplete runs
A84: Pre-ignition data reported
A85: filter changes during test run
A86: filter plugged during test run
A87: What type of filter used
A88: Negative probe weight >5% of PM
A89: Negative probe value
A90: Negative room air values
A91: Ambient background filter data
A92: Proportional sampling
A93: Leak check - pre-test leak check reported
A94: Leak check - any filter change
A95: Leak check - post leak check reported
A96: Dilution tunnel schematic meets ASTM 2515 requirements
A97: number of conditioning hours reported in summary
A98: number of conditioning hours with data
A99: number of hours at correct conditioning conditions
A100: used lowest air settings for low burn (ASTM 3053) or Cat 1(M28R)
A101: Air setting data | B101: High | D101: Medium | F101: Low
A103: medium burn conditions met
A104: high test settings match high in OM
A105: Total number of runs
A106: run averaging done correctly | B106: no | I106: medium burn rate is not less than 50% of max. burn rate.
A107: Calibration data
A108: Milestone Date | B108: 2022-12-06
A109: Compliance Date
A110: DEC Calculated Certification Expiration

Sheet AES 3500P
A1: Summary of Review
A2: Manufacturer | B2: American Energy Systems (AES)
A3: Model | B3: 3500P, 35001, and 3502
A4: Prelim review recomm. | B4: Disapproved
A5: Red flags | B5: 11 | C5: Orange flags | E5: 8 | F5: Yellow flags | H5: 7
A6: Final Determination | B6: Pending - Major | F6: Date: 9/1/2020 | I6: Basis: IR, NR
A7: AK List Status | B7: No Determination List
A8: Testing Information | B8: Determination | I8: Notes
A9: Test method | B9: ASTM 2779 | I9: only tested with wood. Multi fuel unit required by the method to test with all fuels.
A10: Test Lab | B10: Intertek | I10: performed at Intertek facility
A11: Third-party certifier | B11: Not reported
A12: Report certified | B12: Not reported
A13: Test Report Elements | B13: Determination | I13: Notes
A14: Overall PM emissions (g/hr) | B14: 1.007 | D14: PM Highest 1-hr (g/hr) | G14: 0.89
A15: Overall HHV efficiency (%) | B15: 66.5 | I15: 0.713
A16: Overall heat output (Btu/hr) | B16: 20607
A17: Overall CO (g/hr) | B17: =IFERROR(G17*60,"Not reported") -> 811.8 | D17: Overall CO (g/min) | G17: 13.53
A18: Manufacturers Instructions to lab | B18: Reported
A19: Efficiency calculations | B19: Not reported
A20: Burn rate calculations | B20: Not reported
A21: Raw data sheets | B21: Not reported
A22: Conditioning completed by | B22: Lab | I22: preburn 3/2-4/2015 (same days as LR) but not tested until 4/17/2015 why was the delay so long?
A23: Conditioning data | B23: Not reported
A24: Lab technician notes | B24: Not reported
A25: Doc. of run appropriateness | B25: Not reported
A26: Doc. of run validity | B26: Not reported
A27: Doc. of run anomolies | B27: Not reported | I27: could have been none but wasn't specifically stated
A28: Doc. of run burn rates | B28: Reported
A29: Test Run Data | B29: Determination | I29: Notes
A30: Run # | C30: 1 | D30: 1 | E30: 1
A31: Run Category | C31: High | D31: Medium | E31: Low
A32: Burn rate (kg/hr) | C32: 1.59 | D32: 0.67 | E32: 0.42
A33: Heat output (Btu/hr) | C33: 20607 | D33: 7901 | E33: 4917 | I33: 56000
A34: CO (g/min) | C34: 15.64 | D34: 11.47 | E34: 13.66
A35: HHV efficiency (%) | C35: 68.7 | D35: 62.8 | E35: 62.2
A36: Overall PM emissions (g/hr) | B36: 1.007
A37: PM 1-hr filter pull (g/hr) | B37: 0.89
A38: Filter data | B38: Not reported
A39: Train precision (%) | B39: 9.65
A40: Negative weights | B40: No
A41: Negs handled appropriately | B41: Yes
A42: Lowest burn rate tested | B42: No | I42: Summary data indicates air shutter not fully closed for low fire setting.
A43: All run data | B43: Not reported
A44: Appliance Fueling | B44: Determination | I44: Notes
A45: Pellet species/type | B45: Not reported | I45: Marthwood 5.1 db moisture no additional pellet data provided
A46: Pellet fuel certification | B46: Not reported
A47: Source of the pellet specification | B47: Not reported
A48: Owners Manual Req. | B48: Determination | I48: Notes
A49: Stack height | B49: Included | I49: Manual not included in posted report
A50: Location recommendation | B50: Included
A51: Guidance on proper draft | B51: Included
A52: Fuel loading & reloading | B52: Not applicable
A53: Fuel selection recomm. | B53: Included
A54: Improper fuels warnings | B54: Insufficient data
A55: Fire starting procedures | B55: Included
A56: Proper use of air controls | B56: Included
A57: Proper operation low | B57: Included
A58: Ash removal procedures | B58: Included
A59: Replacement parts | B59: Insufficient data
A60: Federal warning (C or NC) | B60: Included
A61: Warranty rights | B61: Included
A62: Reporting | B62: Determination | I62: Notes
A63: Summary tables complete | B63: All reported
A64: All run data submitted | B64: Not reported
A65: Test report complete | B65: Partially reported major | I65: posted report containted only 15 pages
A66: Owner manual complete | B66: Partially reported minor
A67: Test dates | B67: 2015-04-20
A68: 30 Day notice submitted to EPA | B68: No
A69: Tested on the proposed date | B69: Cannot Be Determined
A70: Tested in one day | B70: Yes
A71: 60 Day report to EPA | B71: Cannot be Determined
A72: EPA additional Review Elements | B72: Determination | I72: Notes
A73: check owners manual and highest setting in test are they the same
A74: Test location
A75: date lab received the unit
A76: date first day of conditioning
A77: date first day of testing
A78: first hour PM emissions reported for all runs
A79: first hour PM emissions reported in grams per hour
A80: first hour PM emissions zero or negative
A81: first hour PM emissions measured with front and back filter
A82: Zero CO emission reported
A83: Any incomplete runs
A84: Pre-ignition data reported
A85: filter changes during test run
A86: filter plugged during test run
A87: What type of filter used
A88: Negative probe weight >5% of PM
A89: Negative probe value
A90: Negative room air values
A91: Ambient background filter data
A92: Proportional sampling
A93: Leak check - pre-test leak check reported
A94: Leak check - any filter change
A95: Leak check - post leak check reported
A96: Dilution tunnel schematic meets ASTM 2515 requirements
A97: number of conditioning hours reported in summary
A98: number of conditioning hours with data
A99: number of hours at correct conditioning conditions
A100: used lowest air settings for low burn (ASTM 3053) or Cat 1(M28R)
A101: Air setting data | B101: High | D101: Medium | F101: Low
A103: medium burn conditions met
A104: high test settings match high in OM
A105: Total number of runs
A106: run averaging done correctly | B106: yes
A107: Calibration data
A108: Milestone Date | B108: 2020-09-01 | I108: missing report elements
A109: Compliance Date
A110: DEC Calculated Certification Expiration

Sheet AES Little Rascal
A1: Summary of Review
A2: Manufacturer | B2: American Energy Systems (AES)
A3: Model | B3: Little Rascal
A4: Prelim review recomm. | B4: Disapproved
A5: Red flags | B5: 12 | C5: Orange flags | E5: 7 | F5: Yellow flags | H5: 6
A6: Final Determination | B6: Pending - Major | F6: Date: 9/1/2020 | I6: Basis: MD, IDU, IR, NR
A7: AK List Status | B7: No Determination List
A8: Testing Information | B8: Determination | I8: Notes
A9: Test method | B9: ASTM 2779
A10: Test Lab | B10: Intertek | I10: performed at Intertek facility
A11: Third-party certifier | B11: Not reported
A12: Report certified | B12: Not reported
A13: Test Report Elements | B13: Determination | I13: Notes
A14: Overall PM emissions (g/hr) | B14: 1.132 | D14: PM Highest 1-hr (g/hr) | G14: 1.07
A15: Overall HHV efficiency (%) | B15: 71.3
A16: Overall heat output (Btu/hr) | B16: 24028
A17: Overall CO (g/hr) | B17: =IFERROR(G17*60,"Not reported") -> 868.2 | D17: Overall CO (g/min) | G17: 14.47
A18: Manufacturers Instructions to lab | B18: Reported
A19: Efficiency calculations | B19: Not reported
A20: Burn rate calculations | B20: Not reported
A21: Raw data sheets | B21: Not reported
A22: Conditioning completed by | B22: Manufacturer | I22: preburn 3/2-4/2015 (same days as LR) but not tested until
A23: Conditioning data | B23: Not reported | I23: 4/23/2015 why was the delay so long.
A24: Lab technician notes | B24: Not reported
A25: Doc. of run appropriateness | B25: Not reported
A26: Doc. of run validity | B26: Not reported
A27: Doc. of run anomolies | B27: Not reported | I27: could have been none but not specifically mentioned
A28: Doc. of run burn rates | B28: Reported
A29: Test Run Data | B29: Determination | I29: Notes
A30: Run # | C30: 1 | D30: 1 | E30: 1
A31: Run Category | C31: High | D31: Medium | E31: Low
A32: Burn rate (kg/hr) | C32: 1.86 | D32: 1 | E32: 0.72
A33: Heat output (Btu/hr) | C33: 24028 | D33: 12376 | E33: 10247 | I33: 40000
A34: CO (g/min) | C34: 25.51 | D34: 21.18 | E34: 4.96
A35: HHV efficiency (%) | C35: 68.7 | D35: 66 | E35: 75.3
A36: Overall PM emissions (g/hr) | B36: 1.132
A37: PM 1-hr filter pull (g/hr) | B37: 1.07
A38: Filter data | B38: Not reported
A39: Train precision (%) | B39: 1.1
A40: Negative weights | B40: Cannot be determined
A41: Negs handled appropriately | B41: Cannot be determined
A42: Lowest burn rate tested | B42: Cannot be determined | I42: air settings reported p 6 but no information if fan was used or fan settings.
A43: All run data | B43: Not reported
A44: Appliance Fueling | B44: Determination | I44: Notes
A45: Pellet species/type | B45: Not reported | I45: Marthwood, moisture 5.56% db
A46: Pellet fuel certification | B46: Not reported
A47: Source of the pellet specification | B47: Not reported
A48: Owners Manual Req. | B48: Determination | I48: Notes
A49: Stack height | B49: Included | I49: Manual not included in posted report
A50: Location recommendation | B50: Included
A51: Guidance on proper draft | B51: Included
A52: Fuel loading & reloading | B52: Not applicable
A53: Fuel selection recomm. | B53: Included
A54: Improper fuels warnings | B54: Insufficient data | I54: unable to located
A55: Fire starting procedures | B55: Included
A56: Proper use of air controls | B56: Included
A57: Proper operation low | B57: Included
A58: Ash removal procedures | B58: Included
A59: Replacement parts | B59: Insufficient data | I59: unable to located
A60: Federal warning (C or NC) | B60: Included
A61: Warranty rights | B61: Included
A62: Reporting | B62: Determination | I62: Notes
A63: Summary tables complete | B63: All reported
A64: All run data submitted | B64: Not reported
A65: Test report complete | B65: Partially reported major | I65: posted report containted only 15 pages
A66: Owner manual complete | B66: Partially reported minor
A67: Test dates | B67: 2015-04-23
A68: 30 Day notice submitted to EPA | B68: No
A69: Tested on the proposed date | B69: Cannot Be Determined
A70: Tested in one day | B70: Yes
A71: 60 Day report to EPA | B71: Yes
A72: EPA additional Review Elements | B72: Determination | I72: Notes
A73: check owners manual and highest setting in test are they the same | B73: Cannot be determined | I73: Owners manual not in report and no longer available on website
A74: Test location | B74: Lab | I74: Intertek in Middleton
A75: date lab received the unit | B75: 2015-04-10
A76: date first day of conditioning | B76: 2015-03-02
A77: date first day of testing | B77: 2015-04-23
A78: first hour PM emissions reported for all runs | B78: yes
A79: first hour PM emissions reported in grams per hour | B79: yes
A80: first hour PM emissions zero or negative | B80: no
A81: first hour PM emissions measured with front and back filter | B81: not reported
A82: Zero CO emission reported | B82: no
A83: Any incomplete runs | B83: no
A84: Pre-ignition data reported | B84: not reported
A85: filter changes during test run | B85: not reported
A86: filter plugged during test run | B86: no
A87: What type of filter used | B87: not reported
A88: Negative probe weight >5% of PM | B88: not reported
A89: Negative probe value | B89: not reported
A90: Negative room air values | B90: not reported
A91: Ambient background filter data | B91: not reported
A92: Proportional sampling | B92: not reported | I92: no run data provided
A93: Leak check - pre-test leak check reported | B93: not reported | I93: Leak check listed in procedures but no data
A94: Leak check - any filter change | B94: not reported
A95: Leak check - post leak check reported | B95: not reported
A96: Dilution tunnel schematic meets ASTM 2515 requirements | B96: no | I96: Mixing baffles diagramed pg 10
A97: number of conditioning hours reported in summary | B97: 50
A98: number of conditioning hours with data | B98: 0
A99: number of hours at correct conditioning conditions | B99: Cannot be determined
A100: used lowest air settings for low burn (ASTM 3053) or Cat 1(M28R) | B100: not reported | I100: see cell i42
A101: Air setting data | B101: High | D101: Medium | F101: Low
B102: level 5 | C102: .5" | D102: Level 2 | E102: .25" | F102: Level 1 | G102: closed
A103: medium burn conditions met | B103: not reported
A104: high test settings match high in OM | B104: not reported | I104: Owners manual not in report and no longer available on website
A105: Total number of runs | B105: 1
A106: run averaging done correctly | B106: no | I106: medium burn rate is not less than 50% of max. burn rate.
A107: Calibration data | B107: not reported
A108: Milestone Date | B108: 2022-12-06 | I108: missing report elements
A109: Compliance Date | B109: 2015-06-16 | C109: No EPA Compliance Date
A110: DEC Calculated Certification Expiration | B110: 2020-06-16

Sheet APR 100
A1: Summary of Review
A2: Manufacturer | B2: APR Industries Ltd.
A3: Model | B3: Kozi 100 Free Standing and Insert and KSH 120
A4: Prelim review recomm. | B4: Disapproved
A5: Red flags | B5: 14 | C5: Orange flags | E5: 10 | F5: Yellow flags | H5: 5
A6: Final Determination | B6: Disapproved | F6: Date: 9/1/2020 | I6: Basis: M1, MD, IR, NR
A7: AK List Status | B7: Disapproved List
A8: Testing Information | B8: Determination | I8: Notes
A9: Test method | B9: ASTM 2779
A10: Test Lab | B10: Intertek | I10: performed at Intertek
A11: Third-party certifier | B11: Not reported
A12: Report certified | B12: Not reported
A13: Test Report Elements | B13: Determination | I13: Notes
A14: Overall PM emissions (g/hr) | B14: 0.609 | D14: PM Highest 1-hr (g/hr) | G14: NR | I14: no 1 hr filter pull completed
A15: Overall HHV efficiency (%) | B15: 78.6
A16: Overall heat output (Btu/hr) | B16: 30596
A17: Overall CO (g/hr) | B17: =IFERROR(G17*60,"Not reported") -> 3.618 | D17: Overall CO (g/min) | G17: 0.0603
A18: Manufacturers Instructions to lab | B18: Not reported
A19: Efficiency calculations | B19: Not reported
A20: Burn rate calculations | B20: Not reported
A21: Raw data sheets | B21: Not reported
A22: Conditioning completed by | B22: Lab | I22: Unit received on 2/2/2015. Preburn conducted 2/23-2/25/2015
A23: Conditioning data | B23: Not reported
A24: Lab technician notes | B24: Not reported
A25: Doc. of run appropriateness | B25: Not reported
A26: Doc. of run validity | B26: Not reported
A27: Doc. of run anomolies | B27: Not reported | I27: could have been none but not specifically mentioned
A28: Doc. of run burn rates | B28: Reported
A29: Test Run Data | B29: Determination | I29: Notes
A30: Run # | C30: 1 | D30: 1 | E30: 1
A31: Run Category | C31: High | D31: Medium | E31: Low
A32: Burn rate (kg/hr) | C32: 2.27 | D32: 0.9 | E32: 0.53
A33: Heat output (Btu/hr) | C33: 30596 | D33: 13390 | E33: 8420 | I33: 40000
A34: CO (g/min) | C34: 0.265 | D34: 0.0402 | E34: 0
A35: HHV efficiency (%) | C35: 71.4 | D35: 78.9 | E35: 48.5
A36: Overall PM emissions (g/hr) | B36: 0.609
A37: PM 1-hr filter pull (g/hr) | B37: NR
A38: Filter data | B38: Not reported
A39: Train precision (%) | B39: 0.86
A40: Negative weights | B40: Cannot be determined
A41: Negs handled appropriately | B41: Cannot be determined
A42: Lowest burn rate tested | B42: No | I42: summary data states air shutter wasn't fully closed.
A43: All run data | B43: Not reported
A44: Appliance Fueling | B44: Determination | I44: Notes
A45: Pellet species/type | B45: Not reported
A46: Pellet fuel certification | B46: Not reported
A47: Source of the pellet specification | B47: Not reported
A48: Owners Manual Req. | B48: Determination | I48: Notes
A49: Stack height | B49: Included
A50: Location recommendation | B50: Included
A51: Guidance on proper draft | B51: Included
A52: Fuel loading & reloading | B52: Not applicable
A53: Fuel selection recomm. | B53: Included
A54: Improper fuels warnings | B54: Included
A55: Fire starting procedures | B55: Included
A56: Proper use of air controls | B56: Included
A57: Proper operation low | B57: Included
A58: Ash removal procedures | B58: Included
A59: Replacement parts | B59: Insufficient data | I59: mentions contacting dealer for parts
A60: Federal warning (C or NC) | B60: Included
A61: Warranty rights | B61: Included
A62: Reporting | B62: Determination | I62: Notes
A63: Summary tables complete | B63: All reported
A64: All run data submitted | B64: Not reported
A65: Test report complete | B65: Partially reported major | I65: posted report containted only 15 pages
A66: Owner manual complete | B66: Partially reported minor
A67: Test dates | B67: 2015-02-26 | I67: received 2/2/15, aging 2/23-25/15
A68: 30 Day notice submitted to EPA | B68: No
A69: Tested on the proposed date | B69: Cannot Be Determined
A70: Tested in one day | B70: Yes
A71: 60 Day report to EPA | B71: No
A72: EPA additional Review Elements | B72: Determination | I72: Notes
A73: check owners manual and highest setting in test are they the same
A74: Test location
A75: date lab received the unit
A76: date first day of conditioning
A77: date first day of testing
A78: first hour PM emissions reported for all runs
A79: first hour PM emissions reported in grams per hour
A80: first hour PM emissions zero or negative
A81: first hour PM emissions measured with front and back filter
A82: Zero CO emission reported
A83: Any incomplete runs
A84: Pre-ignition data reported
A85: filter changes during test run
A86: filter plugged during test run
A87: What type of filter used
A88: Negative probe weight >5% of PM
A89: Negative probe value
A90: Negative room air values
A91: Ambient background filter data
A92: Proportional sampling
A93: Leak check - pre-test leak check reported
A94: Leak check - any filter change
A95: Leak check - post leak check reported
A96: Dilution tunnel schematic meets ASTM 2515 requirements
A97: number of conditioning hours reported in summary
A98: number of conditioning hours with data
A99: number of hours at correct conditioning conditions
A100: used lowest air settings for low burn (ASTM 3053) or Cat 1(M28R)
A101: Air setting data | B101: High | D101: Medium | F101: Low
A103: medium burn conditions met
A104: high test settings match high in OM
A105: Total number of runs
A106: run averaging done correctly | B106: yes
A107: Calibration data
A108: Milestone Date | B108: 2022-12-06 | I108: missing report elements
A109: Compliance Date
A110: DEC Calculated Certification Expiration

Sheet APR Baywin
A1: Summary of Review
A2: Manufacturer | B2: APR Industries Ltd.
A3: Model | B3: BayWin Free Standing and Insert
A4: Prelim review recomm. | B4: Disapproved
A5: Red flags | B5: 11 | C5: Orange flags | E5: 8 | F5: Yellow flags | H5: 7
A6: Final Determination | B6: Disapproved | F6: Date: 9/1/2020 | I6: Basis: M1, MD, IR, NR
A7: AK List Status | B7: Disapproved List
A8: Testing Information | B8: Determination | I8: Notes
A9: Test method | B9: ASTM 2779
A10: Test Lab | B10: Intertek | I10: performed at Intertek
A11: Third-party certifier | B11: Not reported | I11: Testing discussed with client during test violation of rule requirements.
A12: Report certified | B12: Not reported
A13: Test Report Elements | B13: Determination | I13: Notes
A14: Overall PM emissions (g/hr) | B14: 0.562 | D14: PM Highest 1-hr (g/hr) | G14: NR | I14: R1 and R2 no 1 hr filter pull data reported
A15: Overall HHV efficiency (%) | B15: 78.2 | I15: conducted a one hour test a year later.
A16: Overall heat output (Btu/hr) | B16: 27818
A17: Overall CO (g/hr) | B17: =IFERROR(G17*60,"Not reported") -> 3.192 | D17: Overall CO (g/min) | G17: 0.0532
A18: Manufacturers Instructions to lab | B18: Reported
A19: Efficiency calculations | B19: Not reported
A20: Burn rate calculations | B20: Not reported
A21: Raw data sheets | B21: Not reported
A22: Conditioning completed by | B22: Lab | I22: Unit received by lab on 2/2/2015 testing took place 2/23-25/2015, the same dates as the APR Kozy 100
A23: Conditioning data | B23: Not reported
A24: Lab technician notes | B24: Not reported
A25: Doc. of run appropriateness | B25: Not reported
A26: Doc. of run validity | B26: Not reported
A27: Doc. of run anomolies | B27: Partially reported | I27: run one was stopped due to plugged filter
A28: Doc. of run burn rates | B28: Reported
A29: Test Run Data | B29: Determination | I29: Notes
A30: Run # | C30: 2 | D30: 2 | E30: 2 | I30: No R1 data reported
A31: Run Category | C31: High | D31: Medium | E31: Low
A32: Burn rate (kg/hr) | C32: 2.06 | D32: 0.79 | E32: 0.47
A33: Heat output (Btu/hr) | C33: 27818 | D33: 11844 | E33: 7441 | I33: 40000
A34: CO (g/min) | C34: 13.65 | D34: 1.77 | E34: 0.13
A35: HHV efficiency (%) | C35: 71.6 | D35: 79.1 | E35: 83.3
A36: Overall PM emissions (g/hr) | B36: 0.562
A37: PM 1-hr filter pull (g/hr) | B37: 1.66
A38: Filter data | B38: Not reported
A39: Train precision (%) | B39: 2.17
A40: Negative weights | B40: Cannot be determined
A41: Negs handled appropriately | B41: Cannot be determined
A42: Lowest burn rate tested | B42: No | I42: Setting data reported, air flap not fully closed for low setting.
A43: All run data | B43: Not reported
A44: Appliance Fueling | B44: Determination | I44: Notes
A45: Pellet species/type | B45: Not reported
A46: Pellet fuel certification | B46: Not reported
A47: Source of the pellet specification | B47: Not reported
A48: Owners Manual Req. | B48: Determination | I48: Notes
A49: Stack height | B49: Included
A50: Location recommendation | B50: Included
A51: Guidance on proper draft | B51: Included
A52: Fuel loading & reloading | B52: Not applicable
A53: Fuel selection recomm. | B53: Included
A54: Improper fuels warnings | B54: Included
A55: Fire starting procedures | B55: Included
A56: Proper use of air controls | B56: Included
A57: Proper operation low | B57: Included
A58: Ash removal procedures | B58: Included
A59: Replacement parts | B59: Insufficient data | I59: mentions contacting dealer for parts
A60: Federal warning (C or NC) | B60: Included
A61: Warranty rights | B61: Included
A62: Reporting | B62: Determination | I62: Notes
A63: Summary tables complete | B63: Partially reported | I63: missing data from run #3 conducted to obtain 1hr filter pull 1 year after original testing
A64: All run data submitted | B64: Not reported
A65: Test report complete | B65: Partially reported major | I65: posted report containted only 15 pages
A66: Owner manual complete | B66: Partially reported minor
A67: Test dates | B67: 2/27/15, 3/2/15 & 6/21/2016 | I67: 6/21/16 test just for 1hr filter pull
A68: 30 Day notice submitted to EPA | B68: No
A69: Tested on the proposed date | B69: Cannot Be Determined
A70: Tested in one day | B70: Yes
A71: 60 Day report to EPA | B71: Cannot be Determined
A72: EPA additional Review Elements | B72: Determination | I72: Notes
A73: check owners manual and highest setting in test are they the same
A74: Test location
A75: date lab received the unit
A76: date first day of conditioning
A77: date first day of testing
A78: first hour PM emissions reported for all runs
A79: first hour PM emissions reported in grams per hour
A80: first hour PM emissions zero or negative
A81: first hour PM emissions measured with front and back filter
A82: Zero CO emission reported
A83: Any incomplete runs
A84: Pre-ignition data reported
A85: filter changes during test run
A86: filter plugged during test run
A87: What type of filter used
A88: Negative probe weight >5% of PM
A89: Negative probe value
A90: Negative room air values
A91: Ambient background filter data
A92: Proportional sampling
A93: Leak check - pre-test leak check reported
A94: Leak check - any filter change
A95: Leak check - post leak check reported
A96: Dilution tunnel schematic meets ASTM 2515 requirements
A97: number of conditioning hours reported in summary
A98: number of conditioning hours with data
A99: number of hours at correct conditioning conditions
A100: used lowest air settings for low burn (ASTM 3053) or Cat 1(M28R)
A101: Air setting data | B101: High | D101: Medium | F101: Low
A103: medium burn conditions met
A104: high test settings match high in OM
A105: Total number of runs
A106: run averaging done correctly | I106: Did not complete a filter change on run 1 with 21 minutes left in the test, indicative of high emissions.
A107: Calibration data
A108: Milestone Date | B108: 2022-12-06 | I108: missing report elements
A109: Compliance Date
A110: DEC Calculated Certification Expiration

Sheet APR Previa
A1: Summary of Review
A2: Manufacturer | B2: APR Industries Ltd.
A3: Model | B3: Previa
A4: Prelim review recomm. | B4: Disapproved
A5: Red flags | B5: 12 | C5: Orange flags | E5: 10 | F5: Yellow flags | H5: =COUNTIF(B9:H12,"=Not reported")+COUNTIF(B30:B35,"=Partially reported")+COUNTIF(B49:B61,"Insufficient data")+COUNTIF(B63:B67,"Partially reported")+COUNTIF(B63:B67,"Partially reported minor")++COUNTIF(B68:B71,"=Cannot be determined")+COUNTIF(#REF!,"=NR")+COUNTIF(#REF!,"=Not reported") -> 
A6: Final Determination | B6: Pending - Major | F6: Date: 9/1/2020 | I6: Basis: MD, IR, NR
A7: AK List Status | B7: No Determination List
A8: Testing Information | B8: Determination | I8: Notes
A9: Test method | B9: ASTM 2779
A10: Test Lab | B10: Intertek
A11: Third-party certifier | B11: Not reported
A12: Report certified | B12: Not reported
A13: Test Report Elements | B13: Determination | I13: Notes
A14: Overall PM emissions (g/hr) | B14: 1.02 | D14: PM Highest 1-hr (g/hr) | G14: 4.82
A15: Overall HHV efficiency (%) | B15: 76.1
A16: Overall heat output (Btu/hr) | B16: 27113
A17: Overall CO (g/hr) | B17: =IFERROR(G17*60,"Not reported") -> 7.62 | D17: Overall CO (g/min) | G17: 0.127
A18: Manufacturers Instructions to lab | B18: Reported
A19: Efficiency calculations | B19: Not reported
A20: Burn rate calculations | B20: Not reported
A21: Raw data sheets | B21: Not reported
A22: Conditioning completed by | B22: Lab | I22: Unit received 2/2/2015 and testing began It is noted that condition took place on 9/02/2015 by intertek staff, and the unit was setup for testing on 9/8/2015. Only 10 hours of conditioning completed & at "high-to-medium" burn rates
A23: Conditioning data | B23: Not reported
A24: Lab technician notes | B24: Not reported
A25: Doc. of run appropriateness | B25: Not reported
A26: Doc. of run validity | B26: Not reported
A27: Doc. of run anomolies | B27: Not reported | I27: could have been none but not specifically mentioned
A28: Doc. of run burn rates | B28: Reported
A29: Test Run Data | B29: Determination | I29: Notes
A30: Run # | C30: 1 | D30: 1 | E30: 1
A31: Run Category | C31: High | D31: Medium | E31: Low
A32: Burn rate (kg/hr) | C32: 2.08 | D32: 0.83 | E32: 0.52
A33: Heat output (Btu/hr) | C33: 27113 | D33: 11858 | E33: 8077 | I33: 40000
A34: CO (g/min) | C34: 0.24 | D34: 0.135 | E34: 0.093
A35: HHV efficiency (%) | C35: 69 | D35: 75.7 | E35: 81.8
A36: Overall PM emissions (g/hr) | B36: 1.02
A37: PM 1-hr filter pull (g/hr) | B37: 4.82
A38: Filter data | B38: Not reported
A39: Train precision (%) | B39: 20.12
A40: Negative weights | B40: Cannot be determined
A41: Negs handled appropriately | B41: Cannot be determined
A42: Lowest burn rate tested | B42: No | I42: Summary run information states air shutter was not fully closed during low burn testing.
A43: All run data | B43: Not reported
A44: Appliance Fueling | B44: Determination | I44: Notes
A45: Pellet species/type | B45: Not reported
A46: Pellet fuel certification | B46: Not reported
A47: Source of the pellet specification | B47: Not reported
A48: Owners Manual Req. | B48: Determination | I48: Notes
A49: Stack height | B49: Included
A50: Location recommendation | B50: Included
A51: Guidance on proper draft | B51: Included
A52: Fuel loading & reloading | B52: Not applicable
A53: Fuel selection recomm. | B53: Included
A54: Improper fuels warnings | B54: Included
A55: Fire starting procedures | B55: Included
A56: Proper use of air controls | B56: Included
A57: Proper operation low | B57: Included
A58: Ash removal procedures | B58: Included
A59: Replacement parts | B59: Insufficient data | I59: manual mentions contacting dealer for replacement parts
A60: Federal warning (C or NC) | B60: Included
A61: Warranty rights | B61: Included
A62: Reporting | B62: Determination | I62: Notes
A63: Summary tables complete | B63: All reported
A64: All run data submitted | B64: Not reported
A65: Test report complete | B65: Partially reported major | I65: posted report containted only 15 pages
A66: Owner manual complete | B66: Partially reported minor
A67: Test dates | B67: 2015-09-08
A68: 30 Day notice submitted to EPA | B68: No
A69: Tested on the proposed date | B69: Cannot Be Determined
A70: Tested in one day | B70: Yes
A71: 60 Day report to EPA | B71: No
A72: EPA additional Review Elements | B72: Determination | I72: Notes
A73: check owners manual and highest setting in test are they the same
A74: Test location
A75: date lab received the unit
A76: date first day of conditioning
A77: date first day of testing
A78: first hour PM emissions reported for all runs
A79: first hour PM emissions reported in grams per hour
A80: first hour PM emissions zero or negative
A81: first hour PM emissions measured with front and back filter
A82: Zero CO emission reported
A83: Any incomplete runs
A84: Pre-ignition data reported
A85: filter changes during test run
A86: filter plugged during test run
A87: What type of filter used
A88: Negative probe weight >5% of PM
A89: Negative probe value
A90: Negative room air values
A91: Ambient background filter data
A92: Proportional sampling
A93: Leak check - pre-test leak check reported
A94: Leak check - any filter change
A95: Leak check - post leak check reported
A96: Dilution tunnel schematic meets ASTM 2515 requirements
A97: number of conditioning hours reported in summary
A98: number of conditioning hours with data
A99: number of hours at correct conditioning conditions
A100: used lowest air settings for low burn (ASTM 3053) or Cat 1(M28R)
A101: Air setting data | B101: High | D101: Medium | F101: Low
A103: medium burn conditions met
A104: high test settings match high in OM
A105: Total number of runs
A106: run averaging done correctly | B106: yes
A107: Calibration data
A108: Milestone Date | B108: 2020-09-01 | I108: missing report elements
A109: Compliance Date
A110: DEC Calculated Certification Expiration

Sheet EvenTemp Eclipse
A1: Summary of Review
A2: Manufacturer | B2: Even Temp, Inc.
A3: Model | B3: Eclipse
A4: Prelim review recomm. | B4: Disapproved
A5: Red flags | B5: 12 | C5: Orange flags | E5: 11 | F5: Yellow flags | H5: 3
A6: Final Determination | B6: Pending - Major | F6: Date: 9/1/2020 | I6: Basis: IR, NR
A7: AK List Status | B7: No Determination List
A8: Testing Information | B8: Determination | I8: Notes
A9: Test method | B9: ASTM 2779
A10: Test Lab | B10: Intertek | I10: testing at Intertek facility
A11: Third-party certifier | B11: Not reported
A12: Report certified | B12: Not reported
A13: Test Report Elements | B13: Determination | I13: Notes
A14: Overall PM emissions (g/hr) | B14: 1.562 | D14: PM Highest 1-hr (g/hr) | G14: 0.37
A15: Overall HHV efficiency (%) | B15: 67.3 | I15: 0.78
A16: Overall heat output (Btu/hr) | B16: 35989
A17: Overall CO (g/hr) | B17: =IFERROR(G17*60,"Not reported") -> 1170 | D17: Overall CO (g/min) | G17: 19.5
A18: Manufacturers Instructions to lab | B18: Reported
A19: Efficiency calculations | B19: Not reported
A20: Burn rate calculations | B20: Not reported
A21: Raw data sheets | B21: Not reported
A22: Conditioning completed by | B22: Lab | I22: Preburns done the same day as the Ashby? Unit received by lab 2/5/2015, 50+ hours of conditioning done on 2/10-12/2015
A23: Conditioning data | B23: Not reported
A24: Lab technician notes | B24: Not reported
A25: Doc. of run appropriateness | B25: Not reported
A26: Doc. of run validity | B26: Not reported
A27: Doc. of run anomolies | B27: Not reported | I27: not specifically mentioned
A28: Doc. of run burn rates | B28: Reported
A29: Test Run Data | B29: Determination | I29: Notes
A30: Run # | C30: 1 | D30: 1 | E30: 1
A31: Run Category | C31: High | D31: Medium | E31: Low
A32: Burn rate (kg/hr) | C32: 2.86 | D32: 1.941 | E32: 1.24
A33: Heat output (Btu/hr) | C33: 35989 | D33: 22726 | E33: 13723 | I33: 40000
A34: CO (g/min) | C34: 51.19 | D34: 25.08 | E34: 7.32
A35: HHV efficiency (%) | C35: 70.5 | D35: 66.7 | E35: 62
A36: Overall PM emissions (g/hr) | B36: 1.562
A37: PM 1-hr filter pull (g/hr) | B37: 0.37
A38: Filter data | B38: Not reported | I38: not included in posted test
A39: Train precision (%) | B39: 9.56
A40: Negative weights | B40: Cannot be determined | I40: not included in posted test
A41: Negs handled appropriately | B41: Cannot be determined
A42: Lowest burn rate tested | B42: No | I42: Air Shutter was not fully closed during low load testing.
A43: All run data | B43: Not reported
A44: Appliance Fueling | B44: Determination | I44: Notes
A45: Pellet species/type | B45: Not reported | I45: Marthwood
A46: Pellet fuel certification | B46: Not reported
A47: Source of the pellet specification | B47: Not reported
A48: Owners Manual Req. | B48: Determination | I48: Notes
A49: Stack height | B49: Included
A50: Location recommendation | B50: Included
A51: Guidance on proper draft | B51: Included
A52: Fuel loading & reloading | B52: Not applicable
A53: Fuel selection recomm. | B53: Included
A54: Improper fuels warnings | B54: Included
A55: Fire starting procedures | B55: Included
A56: Proper use of air controls | B56: Included
A57: Proper operation low | B57: Included
A58: Ash removal procedures | B58: Included
A59: Replacement parts | B59: Included
A60: Federal warning (C or NC) | B60: Included
A61: Warranty rights | B61: Included
A62: Reporting | B62: Determination | I62: Notes
A63: Summary tables complete | B63: All reported
A64: All run data submitted | B64: Not reported
A65: Test report complete | B65: Partially reported major
A66: Owner manual complete | B66: All reported
A67: Test dates | B67: 2015-02-23
A68: 30 Day notice submitted to EPA | B68: No
A69: Tested on the proposed date | B69: Cannot Be Determined
A70: Tested in one day | B70: Yes
A71: 60 Day report to EPA | B71: No
A72: EPA additional Review Elements | B72: Determination | I72: Notes
A73: check owners manual and highest setting in test are they the same
A74: Test location | B74: Lab | I74: Middleton WI
A75: date lab received the unit | B75: 2015-02-05
A76: date first day of conditioning | B76: 2015-02-10
A77: date first day of testing | B77: 2015-02-23
A78: first hour PM emissions reported for all runs | B78: yes
A79: first hour PM emissions reported in grams per hour | B79: yes
A80: first hour PM emissions zero or negative | B80: no
A81: first hour PM emissions measured with front and back filter | B81: not reported
A82: Zero CO emission reported | B82: no
A83: Any incomplete runs | B83: no
A84: Pre-ignition data reported | B84: no
A85: filter changes during test run | B85: no
A86: filter plugged during test run | B86: no
A87: What type of filter used | B87: other | I87: Gelman A/E 61631 binder free, 47-mm diameter filters
A88: Negative probe weight >5% of PM | B88: not reported
A89: Negative probe value | B89: not reported
A90: Negative room air values | B90: not reported
A91: Ambient background filter data | B91: not reported
A92: Proportional sampling | B92: not reported
A93: Leak check - pre-test leak check reported | B93: not reported
A94: Leak check - any filter change
A95: Leak check - post leak check reported | B95: not reported
A96: Dilution tunnel schematic meets ASTM 2515 requirements | B96: no | I96: pg 9 shows mixing baffles
A97: number of conditioning hours reported in summary | B97: 50
A98: number of conditioning hours with data | B98: 0
A99: number of hours at correct conditioning conditions | B99: Cannot be determined
A100: used lowest air settings for low burn (ASTM 3053) or Cat 1(M28R) | B100: no
A101: Air setting data | B101: High | D101: Medium | F101: Low
B102: lvl 5 | C102: .25" | D102: lvl 3 | E102: 5/64" | F102: lvl 1 | G102: 3/16"
A103: medium burn conditions met | B103: not reported
A104: high test settings match high in OM | B104: not reported
A105: Total number of runs | B105: 1
A106: run averaging done correctly | B106: no | I106: medium burn rate is not less than 50% of max. burn rate.
A107: Calibration data | B107: not reported
A108: Milestone Date | B108: 2022-12-06 | I108: missing report elements
A109: Compliance Date | B109: 2015-10-16 | C109: No EPA Compliance Date
A110: DEC Calculated Certification Expiration | B110: 2020-10-16

Sheet EvenTemp Ashby
A1: Summary of Review
A2: Manufacturer | B2: Even Temp, Inc.
A3: Model | B3: Ashby - P
A4: Prelim review recomm. | B4: Disapproved
A5: Red flags | B5: 11 | C5: Orange flags | E5: 9 | F5: Yellow flags | H5: 3
A6: Final Determination | B6: Disapproved | F6: Date: 9/1/2020 | I6: Basis: M1, MD, IR, NR
A7: AK List Status | B7: Disapproved List
A8: Testing Information | B8: Determination | I8: Notes
A9: Test method | B9: ASTM 2779 | I9: only tested with wood. Multi fuel unit required by the method to test with all fuels.
A10: Test Lab | B10: Intertek | I10: testing at Intertek facility
A11: Third-party certifier | B11: Not reported
A12: Report certified
A13: Test Report Elements | B13: Determination | I13: Notes
A14: Overall PM emissions (g/hr) | B14: 0.981 | D14: PM Highest 1-hr (g/hr) | G14: NR
A15: Overall HHV efficiency (%) | B15: 65.8
A16: Overall heat output (Btu/hr) | B16: 31713
A17: Overall CO (g/hr) | B17: =IFERROR(G17*60,"Not reported") -> 7.8 | D17: Overall CO (g/min) | G17: 0.13
A18: Manufacturers Instructions to lab | B18: Not reported
A19: Efficiency calculations | B19: Not reported
A20: Burn rate calculations | B20: Not reported
A21: Raw data sheets | B21: Not reported
A22: Conditioning completed by | B22: Manufacturer | I22: Unit received by lab on 2/5/2015. Manufacturer completed aging, manufacturer conduction another 50 hours of aging from 2/10-12/2015. Why did lab need to conduct an additional three days of pre-burns?
A23: Conditioning data | B23: Not reported
A24: Lab technician notes | B24: Not reported
A25: Doc. of run appropriateness | B25: Not reported
A26: Doc. of run validity | B26: Not reported
A27: Doc. of run anomolies | B27: Not reported | I27: not specifically mentioned
A28: Doc. of run burn rates | B28: Reported
A29: Test Run Data | B29: Determination | I29: Notes
A30: Run # | C30: 1 | D30: 1 | E30: 1
A31: Run Category | C31: High | D31: Medium | E31: Low
A32: Burn rate (kg/hr) | C32: 2.31 | D32: 0.9 | E32: 0.54
A33: Heat output (Btu/hr) | C33: 31713 | D33: 10550 | E33: 5682 | I33: 40000
A34: CO (g/min) | C34: NR | D34: 0 | E34: 0 | I34: report states "*CO measurement was recorded at around 0%; therefore, the CO emissions could not be accurately calculated."
A35: HHV efficiency (%) | C35: 72.7 | D35: 62.1 | E35: 55.3
A36: Overall PM emissions (g/hr) | B36: 0.981
A37: PM 1-hr filter pull (g/hr) | B37: NR
A38: Filter data | B38: Not reported
A39: Train precision (%) | B39: 4.53
A40: Negative weights | B40: Cannot be determined
A41: Negs handled appropriately | B41: Cannot be determined
A42: Lowest burn rate tested | B42: Cannot be determined
A43: All run data | B43: Not reported
A44: Appliance Fueling | B44: Determination | I44: Notes
A45: Pellet species/type | B45: Not reported | I45: Marthwood
A46: Pellet fuel certification | B46: Not reported
A47: Source of the pellet specification | B47: Not reported
A48: Owners Manual Req. | B48: Determination | I48: Notes
A49: Stack height | B49: Included
A50: Location recommendation | B50: Included
A51: Guidance on proper draft | B51: Included
A52: Fuel loading & reloading | B52: Not applicable
A53: Fuel selection recomm. | B53: Included
A54: Improper fuels warnings | B54: Included
A55: Fire starting procedures | B55: Included
A56: Proper use of air controls | B56: Included
A57: Proper operation low | B57: Included
A58: Ash removal procedures | B58: Included
A59: Replacement parts | B59: Included
A60: Federal warning (C or NC) | B60: Included
A61: Warranty rights | B61: Included
A62: Reporting | B62: Determination | I62: Notes
A63: Summary tables complete | B63: Partially reported | I63: 1 hr filter pull listed as NA
A64: All run data submitted | B64: Not reported
A65: Test report complete | B65: Partially reported major
A66: Owner manual complete | B66: All reported
A67: Test dates | B67: 2015-02-17
A68: 30 Day notice submitted to EPA | B68: No
A69: Tested on the proposed date | B69: Cannot Be Determined
A70: Tested in one day | B70: Yes
A71: 60 Day report to EPA | B71: No
A72: EPA additional Review Elements | B72: Determination | I72: Notes
A73: check owners manual and highest setting in test are they the same
A74: Test location
A75: date lab received the unit
A76: date first day of conditioning
A77: date first day of testing
A78: first hour PM emissions reported for all runs
A79: first hour PM emissions reported in grams per hour
A80: first hour PM emissions zero or negative
A81: first hour PM emissions measured with front and back filter
A82: Zero CO emission reported
A83: Any incomplete runs
A84: Pre-ignition data reported
A85: filter changes during test run
A86: filter plugged during test run
A87: What type of filter used
A88: Negative probe weight >5% of PM
A89: Negative probe value
A90: Negative room air values
A91: Ambient background filter data
A92: Proportional sampling
A93: Leak check - pre-test leak check reported
A94: Leak check - any filter change
A95: Leak check - post leak check reported
A96: Dilution tunnel schematic meets ASTM 2515 requirements
A97: number of conditioning hours reported in summary
A98: number of conditioning hours with data
A99: number of hours at correct conditioning conditions
A100: used lowest air settings for low burn (ASTM 3053) or Cat 1(M28R)
A101: Air setting data | B101: High | D101: Medium | F101: Low
A103: medium burn conditions met
A104: high test settings match high in OM
A105: Total number of runs
A106: run averaging done correctly | B106: yes
A107: Calibration data
A108: Milestone Date | B108: 2022-12-06 | I108: missing report elements
A109: Compliance Date
A110: DEC Calculated Certification Expiration

Sheet EvenTemp Prescott EXP
A1: Summary of Review
A2: Manufacturer | B2: Even Temp, Inc.
A3: Model | B3: Prescott EXP
A4: Prelim review recomm. | B4: Disapproved
A5: Red flags | B5: 11 | C5: Orange flags | E5: 10 | F5: Yellow flags | H5: 3
A6: Final Determination | B6: Pending - Major | F6: Date: 9/1/2020 | I6: Basis: MD, IR, NR
A7: AK List Status | B7: No Determination List
A8: Testing Information | B8: Determination | I8: Notes
A9: Test method | B9: ASTM 2779
A10: Test Lab | B10: Intertek | I10: testing at Intertek facility
A11: Third-party certifier | B11: Not reported
A12: Report certified | B12: Not reported
A13: Test Report Elements | B13: Determination | I13: Notes
A14: Overall PM emissions (g/hr) | B14: 0.532 | D14: PM Highest 1-hr (g/hr) | G14: 2.29
A15: Overall HHV efficiency (%) | B15: 70.3
A16: Overall heat output (Btu/hr) | B16: 30089
A17: Overall CO (g/hr) | B17: =IFERROR(G17*60,"Not reported") -> Not reported | D17: Overall CO (g/min) | G17: Not reported
A18: Manufacturers Instructions to lab | B18: Reported
A19: Efficiency calculations | B19: Not reported
A20: Burn rate calculations | B20: Not reported
A21: Raw data sheets | B21: Not reported
A22: Conditioning completed by | B22: Manufacturer | I22: Unit received by lab on 2/5/2015, same day as APR stoves, report states manufacturer did the pre-burn but it also states that lab conducted 50 hours of testing over 3 days (2/10-12/2015), why was this needed?
A23: Conditioning data | B23: Not reported
A24: Lab technician notes | B24: Not reported
A25: Doc. of run appropriateness | B25: Not reported
A26: Doc. of run validity | B26: Not reported
A27: Doc. of run anomolies | B27: Not reported | I27: not specifically mentioned
A28: Doc. of run burn rates | B28: Reported
A29: Test Run Data | B29: Determination | I29: Notes
A30: Run # | C30: 1 | D30: 1 | E30: 1
A31: Run Category | C31: High | D31: Medium | E31: Low
A32: Burn rate (kg/hr) | C32: 2.15 | D32: 1.2 | E32: 0.55
A33: Heat output (Btu/hr) | C33: 30089 | D33: 15751 | E33: 6293 | I33: 40000
A34: CO (g/min) | C34: 0.77 | D34: 0 | E34: 0
A35: HHV efficiency (%) | C35: 74.3 | D35: 69.8 | E35: 61.2
A36: Overall PM emissions (g/hr) | B36: 0.532
A37: PM 1-hr filter pull (g/hr) | B37: 2.29
A38: Filter data | B38: Not reported
A39: Train precision (%) | B39: 11.13
A40: Negative weights | B40: Cannot be determined
A41: Negs handled appropriately | B41: Cannot be determined
A42: Lowest burn rate tested | B42: No | I42: Shutter was 1/16" from closed
A43: All run data | B43: Not reported
A44: Appliance Fueling | B44: Determination | I44: Notes
A45: Pellet species/type | B45: Not reported | I45: Marthwood
A46: Pellet fuel certification | B46: Not reported
A47: Source of the pellet specification | B47: Not reported
A48: Owners Manual Req. | B48: Determination | I48: Notes
A49: Stack height | B49: Included
A50: Location recommendation | B50: Included
A51: Guidance on proper draft | B51: Included
A52: Fuel loading & reloading | B52: Not applicable
A53: Fuel selection recomm. | B53: Included
A54: Improper fuels warnings | B54: Included
A55: Fire starting procedures | B55: Included
A56: Proper use of air controls | B56: Included
A57: Proper operation low | B57: Included
A58: Ash removal procedures | B58: Included
A59: Replacement parts | B59: Included
A60: Federal warning (C or NC) | B60: Included
A61: Warranty rights | B61: Included
A62: Reporting | B62: Determination | I62: Notes
A63: Summary tables complete | B63: All reported
A64: All run data submitted | B64: Not reported
A65: Test report complete | B65: Partially reported major | I65: posted report only 15 pages
A66: Owner manual complete | B66: All reported
A67: Test dates | B67: 2015-02-17
A68: 30 Day notice submitted to EPA | B68: No
A69: Tested on the proposed date | B69: Cannot Be Determined
A70: Tested in one day | B70: Yes
A71: 60 Day report to EPA | B71: No
A72: EPA additional Review Elements | B72: Determination | I72: Notes
A73: check owners manual and highest setting in test are they the same | B73: Cannot be determined
A74: Test location | B74: Lab | I74: Middleton WI
A75: date lab received the unit | B75: 2015-02-05
A76: date first day of conditioning | B76: 2015-02-16
A77: date first day of testing | B77: 2015-02-19
A78: first hour PM emissions reported for all runs | B78: yes
A79: first hour PM emissions reported in grams per hour | B79: yes
A80: first hour PM emissions zero or negative | B80: no
A81: first hour PM emissions measured with front and back filter | B81: not reported
A82: Zero CO emission reported | B82: yes
A83: Any incomplete runs | B83: no
A84: Pre-ignition data reported | B84: not reported
A85: filter changes during test run | B85: not reported
A86: filter plugged during test run | B86: no
A87: What type of filter used | B87: other | I87: Gelman A/E 61631 binder free, 47-mm diameter filters
A88: Negative probe weight >5% of PM | B88: not reported
A89: Negative probe value | B89: not reported
A90: Negative room air values | B90: not reported
A91: Ambient background filter data | B91: not reported
A92: Proportional sampling | B92: not reported
A93: Leak check - pre-test leak check reported | B93: not reported
A94: Leak check - any filter change
A95: Leak check - post leak check reported | B95: not reported
A96: Dilution tunnel schematic meets ASTM 2515 requirements | B96: no | I96: pg 10 shows mixing baffle
A97: number of conditioning hours reported in summary | B97: 50
A98: number of conditioning hours with data | B98: 0
A99: number of hours at correct conditioning conditions | B99: Cannot be determined
A100: used lowest air settings for low burn (ASTM 3053) or Cat 1(M28R) | B100: no
A101: Air setting data | B101: High | D101: Medium | F101: Low
B102: lvl 5 | C102: 5/32" | D102: lvl 2 | E102: 3/32" | F102: lvl 1 | G102: 1/16"
A103: medium burn conditions met | B103: not reported
A104: high test settings match high in OM | B104: not reported
A105: Total number of runs | B105: 1
A106: run averaging done correctly | B106: no | I106: medium burn rate is not less than 50% of max. burn rate.
A107: Calibration data | B107: not reported
A108: Milestone Date | B108: 2022-12-06 | I108: missing report elements
A109: Compliance Date | B109: 2015-08-10 | C109: No EPA Compliance Date
A110: DEC Calculated Certification Expiration | B110: 2020-08-10

Sheet EvenTemp Hastings
A1: Summary of Review
A2: Manufacturer | B2: Even Temp, Inc.
A3: Model | B3: Hastings
A4: Prelim review recomm. | B4: Disapproved
A5: Red flags | B5: 11 | C5: Orange flags | E5: 9 | F5: Yellow flags | H5: 3
A6: Final Determination | B6: Pending - Major | F6: Date: 9/1/2020 | I6: Basis: IR, NR
A7: AK List Status | B7: No Determination List
A8: Testing Information | B8: Determination | I8: Notes
A9: Test method | B9: ASTM 2779
A10: Test Lab | B10: Intertek | I10: testing at Intertek facility
A11: Third-party certifier | B11: Not reported
A12: Report certified | B12: Not reported
A13: Test Report Elements | B13: Determination | I13: Notes
A14: Overall PM emissions (g/hr) | B14: 1.134 | D14: PM Highest 1-hr (g/hr) | G14: 3.7
A15: Overall HHV efficiency (%) | B15: 66.4
A16: Overall heat output (Btu/hr) | B16: 37455
A17: Overall CO (g/hr) | B17: =IFERROR(G17*60,"Not reported") -> 11.31 | D17: Overall CO (g/min) | G17: 0.1885
A18: Manufacturers Instructions to lab | B18: Reported
A19: Efficiency calculations | B19: Not reported
A20: Burn rate calculations | B20: Not reported
A21: Raw data sheets | B21: Not reported
A22: Conditioning completed by | B22: Manufacturer | I22: Unit received by lab on 2/5/2015, same day as APR stoves, report states manufacturer did the pre-burn but it also states that lab conducted 50 hours of testing over 3 days (2/16-18/2015), why was this needed?
A23: Conditioning data | B23: Not reported
A24: Lab technician notes | B24: Not reported
A25: Doc. of run appropriateness | B25: Not reported
A26: Doc. of run validity | B26: Not reported
A27: Doc. of run anomolies | B27: Not reported | I27: not specifically mentioned
A28: Doc. of run burn rates | B28: Reported
A29: Test Run Data | B29: Determination | I29: Notes
A30: Run # | C30: 1 | D30: 1 | E30: 1
A31: Run Category | C31: High | D31: Medium | E31: Low
A32: Burn rate (kg/hr) | C32: 2.06 | D32: 1.18 | E32: 0.66
A33: Heat output (Btu/hr) | C33: 37455 | D33: 14698 | E33: 7232 | I33: 40000
A34: CO (g/min) | C34: 22.82 | D34: 10.23 | E34: 8.2
A35: HHV efficiency (%) | C35: 70.8 | D35: 66 | E35: 58.2
A36: Overall PM emissions (g/hr) | B36: 1.134
A37: PM 1-hr filter pull (g/hr) | B37: 3.7
A38: Filter data | B38: Not reported | I38: not included in posted report
A39: Train precision (%) | B39: 3.66
A40: Negative weights | B40: Cannot be determined
A41: Negs handled appropriately | B41: Cannot be determined
A42: Lowest burn rate tested | B42: No | I42: Air Shutter was not fully closed during low load testing.
A43: All run data | B43: Not reported
A44: Appliance Fueling | B44: Determination | I44: Notes
A45: Pellet species/type | B45: Not reported | I45: Marthwood
A46: Pellet fuel certification | B46: Not reported
A47: Source of the pellet specification | B47: Not reported
A48: Owners Manual Req. | B48: Determination | I48: Notes
A49: Stack height | B49: Included
A50: Location recommendation | B50: Included
A51: Guidance on proper draft | B51: Included
A52: Fuel loading & reloading | B52: Not applicable
A53: Fuel selection recomm. | B53: Included
A54: Improper fuels warnings | B54: Included
A55: Fire starting procedures | B55: Included
A56: Proper use of air controls | B56: Included
A57: Proper operation low | B57: Included
A58: Ash removal procedures | B58: Included
A59: Replacement parts | B59: Included
A60: Federal warning (C or NC) | B60: Included
A61: Warranty rights | B61: Included
A62: Reporting | B62: Determination | I62: Notes
A63: Summary tables complete | B63: All reported
A64: All run data submitted | B64: Not reported
A65: Test report complete | B65: Partially reported major | I65: posted report only 15 pages
A66: Owner manual complete | B66: All reported
A67: Test dates | B67: 2015-02-20
A68: 30 Day notice submitted to EPA | B68: No
A69: Tested on the proposed date | B69: Cannot Be Determined
A70: Tested in one day | B70: Yes
A71: 60 Day report to EPA | B71: No
A72: EPA additional Review Elements | B72: Determination | I72: Notes
A73: check owners manual and highest setting in test are they the same | B73: Cannot be determined
A74: Test location | B74: Lab | I74: Middleton, WI
A75: date lab received the unit | B75: 2015-02-05
A76: date first day of conditioning | B76: 2015-02-16
A77: date first day of testing | B77: 2015-02-20
A78: first hour PM emissions reported for all runs | B78: yes
A79: first hour PM emissions reported in grams per hour | B79: yes
A80: first hour PM emissions zero or negative | B80: no
A81: first hour PM emissions measured with front and back filter | B81: not reported
A82: Zero CO emission reported | B82: no
A83: Any incomplete runs | B83: no
A84: Pre-ignition data reported | B84: no
A85: filter changes during test run | B85: not reported
A86: filter plugged during test run | B86: no
A87: What type of filter used | B87: other | I87: Gelman A/E 61631 binder free, 47-mm diameter filters
A88: Negative probe weight >5% of PM | B88: not reported
A89: Negative probe value | B89: not reported
A90: Negative room air values | B90: not reported
A91: Ambient background filter data | B91: not reported
A92: Proportional sampling | B92: not reported
A93: Leak check - pre-test leak check reported | B93: not reported
A94: Leak check - any filter change | B94: not reported
A95: Leak check - post leak check reported | B95: not reported
A96: Dilution tunnel schematic meets ASTM 2515 requirements | B96: no | I96: pg 10 shows mixing baffle
A97: number of conditioning hours reported in summary | B97: 50
A98: number of conditioning hours with data | B98: 0
A99: number of hours at correct conditioning conditions | B99: Cannot be determined
A100: used lowest air settings for low burn (ASTM 3053) or Cat 1(M28R) | B100: no | I100: see cell i42
A101: Air setting data | B101: High | D101: Medium | F101: Low
B102: lvl 5 | C102: 5/16" | D102: lvl2 | E102: 3/16" | F102: lvl 1 | G102: 1/8"
A103: medium burn conditions met | B103: not reported
A104: high test settings match high in OM | B104: not reported
A105: Total number of runs | B105: 1
A106: run averaging done correctly | B106: no | I106: E
A107: Calibration data | B107: not reported
A108: Milestone Date | B108: 2022-12-06 | I108: missing report elements
A109: Compliance Date | B109: 2015-10-16 | C109: No EPA Compliance Date
A110: DEC Calculated Certification Expiration | B110: 2020-10-16

Sheet HHT Santa FE-C
A1: Summary of Review | L1: Summary of Review
A2: Manufacturer | B2: Hearth and Home Technologies, LLC dba Quadra fire | I2: 2021-03-31 | L2: Manufacturer | M2: Hearth and Home Technologies, LLC dba Quadra fire | T2: 2021-03-31
A3: Model | B3: Santa Fe-C, Santa Fe I-C, Castile-C, Castile I-C | L3: Model | M3: Santa Fe-C, Santa Fe I-C, Castile-C, Castile I-C
A4: Prelim review recomm. | B4: Requires a more thorough review | L4: Prelim review recomm. | M4: Requires a more thorough review
A5: Red flags | B5: 1 | C5: Orange flags | E5: 2 | F5: Yellow flags | H5: 7 | L5: Red flags | M5: 1 | N5: Orange flags | P5: 2 | Q5: Yellow flags | S5: 7
A6: Final Determination | B6: Pending - Major | F6: Date: 9/1/2020 | I6: Basis: IR, NR | L6: Final Determination | M6: Pending - Major | Q6: Date: 9/1/2020 | T6: Basis: IR, NR
A7: AK List Status | B7: Approved List - Pending | L7: AK List Status | M7: Approved List - Pending
A8: Testing Information | B8: Determination | I8: Notes | L8: Testing Information | M8: Determination | T8: Notes
A9: Test method | B9: ASTM 2779 | L9: Test method | M9: ASTM 2779
A10: Test Lab | B10: OMNI | I10: did not report test location | L10: Test Lab | M10: OMNI | T10: did not report test location
A11: Third-party certifier | B11: Not reported | L11: Third-party certifier | M11: Not reported
A12: Report certified | B12: Not reported | I12: authurized signatories only (Ken Morgan & Bruce Davis) | L12: Report certified | M12: Not reported | T12: authurized signatories only (Ken Morgan & Bruce Davis)
A13: Test Report Elements | B13: Determination | I13: Notes | L13: Test Report Elements | M13: Determination | T13: Notes
A14: Overall PM emissions (g/hr) | B14: 1.098 | D14: PM Highest 1-hr (g/hr) | G14: 1.597 | L14: Overall PM emissions (g/hr) | M14: 1.098 | O14: PM Highest 1-hr (g/hr) | R14: 1.597
A15: Overall HHV efficiency (%) | B15: 66.1 | I15: 0.704 | L15: Overall HHV efficiency (%) | M15: 66.1 | T15: 0.704
A16: Overall heat output (Btu/hr) | B16: 9097 | L16: Overall heat output (Btu/hr) | M16: 9097
A17: Overall CO (g/hr) | B17: =IFERROR(G17*60,"Not reported") -> 10.2 | D17: Overall CO (g/min) | G17: 0.17 | L17: Overall CO (g/hr) | M17: =IFERROR(R17*60,"Not reported") -> 10.2 | O17: Overall CO (g/min) | R17: 0.17
A18: Manufacturers Instructions to lab | B18: Reported | L18: Manufacturers Instructions to lab | M18: Reported
A19: Efficiency calculations | B19: Reported | L19: Efficiency calculations | M19: Reported
A20: Burn rate calculations | B20: Reported | L20: Burn rate calculations | M20: Reported
A21: Raw data sheets | B21: Reported | L21: Raw data sheets | M21: Reported
A22: Conditioning completed by | B22: Not reported | I22: Mentions manufacuter's instructions stating preburn was to be conducted at maximum setting but no specific mention of who conducted the preburn | L22: Conditioning completed by | M22: Not reported | T22: Mentions manufacuter's instructions stating preburn was to be conducted at maximum setting but no specific mention of who conducted the preburn
A23: Conditioning data | B23: Partially reported | I23: Preburn data located on pg 16 of report does not show scale data or specific dates. Fuel added is shown in lbs but data shows 300+ added every hour. | L23: Conditioning data | M23: Partially reported | T23: Preburn data located on pg 16 of report does not show scale data or specific dates. Fuel added is shown in lbs but data shows 300+ added every hour.
A24: Lab technician notes | B24: Reported | L24: Lab technician notes | M24: Reported
A25: Doc. of run appropriateness | B25: Reported | L25: Doc. of run appropriateness | M25: Reported
A26: Doc. of run validity | B26: Reported | L26: Doc. of run validity | M26: Reported
A27: Doc. of run anomolies | B27: Reported | L27: Doc. of run anomolies | M27: Reported
A28: Doc. of run burn rates | B28: Reported | L28: Doc. of run burn rates | M28: Reported
A29: Test Run Data | B29: Determination | I29: Notes | L29: Test Run Data | M29: Determination | T29: Notes
A30: Run # | C30: 1 | D30: 1 | E30: 1 | L30: Run # | N30: 1 | O30: 1 | P30: 1
A31: Run Category | C31: High | D31: Medium | E31: Low | L31: Run Category | N31: High | O31: Medium | P31: Low
A32: Burn rate (kg/hr) | C32: 1.531 | D32: 0.595 | E32: 0.468 | L32: Burn rate (kg/hr) | N32: 1.531 | O32: 0.595 | P32: 0.468
A33: Heat output (Btu/hr) | C33: 22440 | D33: 7299 | E33: 5831 | I33: 30600 | L33: Heat output (Btu/hr) | N33: 22440 | O33: 7299 | P33: 5831 | T33: 30600
A34: CO (g/min) | C34: 0.03 | D34: 0.17 | E34: 0.21 | L34: CO (g/min) | N34: 0.03 | O34: 0.17 | P34: 0.21
A35: HHV efficiency (%) | C35: 73.3 | D35: 61.3 | E35: 62.3 | L35: HHV efficiency (%) | N35: 73.3 | O35: 61.3 | P35: 62.3
A36: Overall PM emissions (g/hr) | B36: 1.098 | L36: Overall PM emissions (g/hr) | M36: 1.098
A37: PM 1-hr filter pull (g/hr) | B37: 1.597 | L37: PM 1-hr filter pull (g/hr) | M37: 1.597
A38: Filter data | B38: Reported | L38: Filter data | M38: Reported
A39: Train precision (%) | B39: Not reported | L39: Train precision (%) | M39: Not reported
A40: Negative weights | B40: No | L40: Negative weights | M40: No
A41: Negs handled appropriately | B41: Yes | L41: Negs handled appropriately | M41: Yes
A42: Lowest burn rate tested | B42: Cannot be determined | I42: Report notes that they were instructed to test at minimum heat setting with control board switch set to 6. "The manufacturer’s instructions specified operating the preburn and high burn segments atmaximum heat setting, the “FRAP” (feed rate adjustment plate) fully open, and the controlboard trim switch set to 7. The medium burn segment was operated at heat setting low, FRAPset to fully open, and the control board switch set to 7. The low burn segment at minimum heatsetting, FRAP set to full closed, and the control board switch set to 6." | L42: Lowest burn rate tested | M42: Cannot be determined | T42: Report notes that they were instructed to test at minimum heat setting with control board switch set to 6. "The manufacturer’s instructions specified operating the preburn and high burn segments atmaximum heat setting, the “FRAP” (feed rate adjustment plate) fully open, and the controlboard trim switch set to 7. The medium burn segment was operated at heat setting low, FRAPset to fully open, and the control board switch set to 7. The low burn segment at minimum heatsetting, FRAP set to full closed, and the control board switch set to 6."
A43: All run data | B43: Not reported | L43: All run data | M43: Not reported
A44: Appliance Fueling | B44: Determination | I44: Notes | L44: Appliance Fueling | M44: Determination | T44: Notes
A45: Pellet species/type | B45: Softwood | I45: pres-to-log brand | L45: Pellet species/type | M45: Softwood | T45: pres-to-log brand
A46: Pellet fuel certification | B46: PFI | L46: Pellet fuel certification | M46: PFI
A47: Source of the pellet specification | B47: from an analyzed sample | L47: Source of the pellet specification | M47: from an analyzed sample
A48: Owners Manual Req. | B48: Determination | I48: Notes | L48: Owners Manual Req. | M48: Determination | T48: Notes
A49: Stack height | B49: Included | L49: Stack height | M49: Included
A50: Location recommendation | B50: Included | L50: Location recommendation | M50: Included
A51: Guidance on proper draft | B51: Included | L51: Guidance on proper draft | M51: Included
A52: Fuel loading & reloading | B52: Not applicable | L52: Fuel loading & reloading | M52: Not applicable
A53: Fuel selection recomm. | B53: Included | L53: Fuel selection recomm. | M53: Included
A54: Improper fuels warnings | B54: Insufficient data | I54: notes that certain fuels shouldn't be burned, but not in one location in manual | L54: Improper fuels warnings | M54: Insufficient data | T54: notes that certain fuels shouldn't be burned, but not in one location in manual
A55: Fire starting procedures | B55: Included | L55: Fire starting procedures | M55: Included
A56: Proper use of air controls | B56: Included | L56: Proper use of air controls | M56: Included
A57: Proper operation low | B57: Included | L57: Proper operation low | M57: Included
A58: Ash removal procedures | B58: Included | L58: Ash removal procedures | M58: Included
A59: Replacement parts | B59: Included | L59: Replacement parts | M59: Included
A60: Federal warning (C or NC) | B60: Included | L60: Federal warning (C or NC) | M60: Included
A61: Warranty rights | B61: Included | L61: Warranty rights | M61: Included
A62: Reporting | B62: Determination | I62: Notes | L62: Reporting | M62: Determination | T62: Notes
A63: Summary tables complete | B63: All reported | L63: Summary tables complete | M63: All reported
A64: All run data submitted | B64: All reported | L64: All run data submitted | M64: All reported
A65: Test report complete | B65: Partially reported minor | L65: Test report complete | M65: Partially reported minor
A66: Owner manual complete | B66: Partially reported minor | L66: Owner manual complete | M66: Partially reported minor
A67: Test dates | B67: 2018-12-17 | L67: Test dates | M67: 2018-12-17
A68: 30 Day notice submitted to EPA | B68: Cannot be determined | L68: 30 Day notice submitted to EPA | M68: Cannot be determined
A69: Tested on the proposed date | B69: Cannot Be Determined | L69: Tested on the proposed date | M69: Cannot Be Determined
A70: Tested in one day | B70: Yes | L70: Tested in one day | M70: Yes
A71: 60 Day report to EPA | B71: Cannot be determined | I71: report date 2/13/2019 | L71: 60 Day report to EPA | M71: Cannot be determined | T71: report date 2/13/2019
A72: EPA additional Review Elements | B72: Determination | I72: Notes | L72: EPA additional Review Elements | M72: Determination | T72: Notes
A73: check owners manual and highest setting in test are they the same | L73: check owners manual and highest setting in test are they the same
A74: Test location | L74: Test location | M74: Lab | T74: Portland, OR
A75: date lab received the unit | L75: date lab received the unit | M75: Not Reported
A76: date first day of conditioning | L76: date first day of conditioning | M76: Not Reported | T76: see I23
A77: date first day of testing | L77: date first day of testing | M77: 2018-12-17
A78: first hour PM emissions reported for all runs | L78: first hour PM emissions reported for all runs | M78: yes
A79: first hour PM emissions reported in grams per hour | L79: first hour PM emissions reported in grams per hour | M79: yes
A80: first hour PM emissions zero or negative | L80: first hour PM emissions zero or negative | M80: no
A81: first hour PM emissions measured with front and back filter | L81: first hour PM emissions measured with front and back filter | M81: yes
A82: Zero CO emission reported | L82: Zero CO emission reported | M82: no
A83: Any incomplete runs | L83: Any incomplete runs | M83: no
A84: Pre-ignition data reported | L84: Pre-ignition data reported | M84: yes
A85: filter changes during test run | L85: filter changes during test run | M85: no
A86: filter plugged during test run | L86: filter plugged during test run | M86: no
A87: What type of filter used | L87: What type of filter used | M87: not reported
A88: Negative probe weight >5% of PM | L88: Negative probe weight >5% of PM | M88: no negatives
A89: Negative probe value | L89: Negative probe value | M89: no negatives
A90: Negative room air values | L90: Negative room air values | M90: no negatives
A91: Ambient background filter data | L91: Ambient background filter data | M91: no negatives
A92: Proportional sampling | L92: Proportional sampling | M92: yes with allowable deviations
A93: Leak check - pre-test leak check reported | L93: Leak check - pre-test leak check reported | M93: Meets Specification
A94: Leak check - any filter change | L94: Leak check - any filter change
A95: Leak check - post leak check reported | L95: Leak check - post leak check reported | M95: Meets Specification
A96: Dilution tunnel schematic meets ASTM 2515 requirements | L96: Dilution tunnel schematic meets ASTM 2515 requirements | M96: not reported
A97: number of conditioning hours reported in summary | L97: number of conditioning hours reported in summary | M97: 50
A98: number of conditioning hours with data | L98: number of conditioning hours with data | M98: 0 | T98: see I23
A99: number of hours at correct conditioning conditions | L99: number of hours at correct conditioning conditions | T99: see I23
A100: used lowest air settings for low burn (ASTM 3053) or Cat 1(M28R) | L100: used lowest air settings for low burn (ASTM 3053) or Cat 1(M28R)
A101: Air setting data | B101: High | D101: Medium | F101: Low | L101: Air setting data | M101: High | O101: Medium | Q101: Low
M102: Max | N102: 7 | O102: Medium | P102: 7 | Q102: Min | R102: 6
A103: medium burn conditions met | L103: medium burn conditions met
A104: high test settings match high in OM | L104: high test settings match high in OM
A105: Total number of runs | L105: Total number of runs
A106: run averaging done correctly | L106: run averaging done correctly
A107: Calibration data | L107: Calibration data | M107: yes
A108: Milestone Date | B108: 2022-12-06 | I108: missing report elements | L108: Milestone Date | M108: 2022-12-06
A109: Compliance Date | L109: Compliance Date | M109: 2019-03-05 | N109: No EPA Compliance Date
A110: DEC Calculated Certification Expiration | L110: DEC Calculated Certification Expiration | M110: 2024-03-05

Sheet HHT PP60-B
A1: Summary of Review | L1: Summary of Review
A2: Manufacturer | B2: Hearth and Home Technologies, LLC | I2: 2021-03-31 | L2: Manufacturer | M2: Hearth and Home Technologies, LLC | T2: 2021-03-31
A3: Model | B3: Pel-Pro PP60-B and Pleasant Hearth PH35PS-B | L3: Model | M3: Pel-Pro PP60-B and Pleasant Hearth PH35PS-B
A4: Prelim review recomm. | B4: Requires a more thorough review | L4: Prelim review recomm. | M4: Requires a more thorough review
A5: Red flags | B5: 1 | C5: Orange flags | E5: 3 | F5: Yellow flags | H5: 6 | L5: Red flags | M5: 1 | N5: Orange flags | P5: 3 | Q5: Yellow flags | S5: 6
A6: Final Determination | B6: Pending - Major | F6: Date: 9/1/2020 | I6: Basis: IR, NR | L6: Final Determination | M6: Pending - Major | Q6: Date: 9/1/2020 | T6: Basis: IR, NR
A7: AK List Status | B7: Approved List - Pending | L7: AK List Status | M7: Approved List - Pending
A8: Testing Information | B8: Determination | I8: Notes | L8: Testing Information | M8: Determination | T8: Notes
A9: Test method | B9: ASTM 2779 | L9: Test method | M9: ASTM 2779
A10: Test Lab | B10: OMNI | I10: testing location not identified | L10: Test Lab | M10: OMNI | T10: testing location not identified
A11: Third-party certifier | B11: Not reported | L11: Third-party certifier | M11: Not reported
A12: Report certified | B12: Not reported | I12: Authorized signatories (Bruce Davis & Aaron Kravitz) | L12: Report certified | M12: Not reported | T12: Authorized signatories (Bruce Davis & Aaron Kravitz)
A13: Test Report Elements | B13: Determination | I13: Notes | L13: Test Report Elements | M13: Determination | T13: Notes
A14: Overall PM emissions (g/hr) | B14: 0.74 | D14: PM Highest 1-hr (g/hr) | G14: 0.277 | I14: 0.34 g/hr | L14: Overall PM emissions (g/hr) | M14: 0.74 | O14: PM Highest 1-hr (g/hr) | R14: 0.277 | T14: 0.34 g/hr
A15: Overall HHV efficiency (%) | B15: 74.6 | I15: 0.85 | L15: Overall HHV efficiency (%) | M15: 74.6 | T15: 0.85
A16: Overall heat output (Btu/hr) | B16: 11314 | L16: Overall heat output (Btu/hr) | M16: 11314
A17: Overall CO (g/hr) | B17: =IFERROR(G17*60,"Not reported") -> 13.2 | D17: Overall CO (g/min) | G17: 0.22 | L17: Overall CO (g/hr) | M17: =IFERROR(R17*60,"Not reported") -> 13.2 | O17: Overall CO (g/min) | R17: 0.22
A18: Manufacturers Instructions to lab | B18: Reported | L18: Manufacturers Instructions to lab | M18: Reported
A19: Efficiency calculations | B19: Reported | L19: Efficiency calculations | M19: Reported
A20: Burn rate calculations | B20: Reported | L20: Burn rate calculations | M20: Reported
A21: Raw data sheets | B21: Reported | L21: Raw data sheets | M21: Reported
A22: Conditioning completed by | B22: Not reported | I22: Notes manufacturers instruction for preburn to be conducted at maximum setting. But no specific information of who conducted | L22: Conditioning completed by | M22: Not reported | T22: Notes manufacturers instruction for preburn to be conducted at maximum setting. But no specific information of who conducted
A23: Conditioning data | B23: Partially reported | I23: Preburn data located on pg 20, changes show only .1 (no units) change every 1-2 hours. Unable to determine burn rate of conditioning | L23: Conditioning data | M23: Partially reported | T23: Preburn data located on pg 20, changes show only .1 (no units) change every 1-2 hours. Unable to determine burn rate of conditioning
A24: Lab technician notes | B24: Reported | L24: Lab technician notes | M24: Reported
A25: Doc. of run appropriateness | B25: Reported | L25: Doc. of run appropriateness | M25: Reported
A26: Doc. of run validity | B26: Reported | L26: Doc. of run validity | M26: Reported
A27: Doc. of run anomolies | B27: Reported | L27: Doc. of run anomolies | M27: Reported
A28: Doc. of run burn rates | B28: Reported | L28: Doc. of run burn rates | M28: Reported
A29: Test Run Data | B29: Determination | I29: Notes | L29: Test Run Data | M29: Determination | T29: Notes
A30: Run # | C30: 1 | D30: 1 | E30: 1 | L30: Run # | N30: 1 | O30: 1 | P30: 1
A31: Run Category | C31: High | D31: Medium | E31: Low | L31: Run Category | N31: High | O31: Medium | P31: Low
A32: Burn rate (kg/hr) | C32: 1.65 | D32: 0.723 | E32: 0.482 | L32: Burn rate (kg/hr) | N32: 1.65 | O32: 0.723 | P32: 0.482
A33: Heat output (Btu/hr) | C33: 26020 | D33: 10665 | E33: 6815 | I33: 35000 | L33: Heat output (Btu/hr) | N33: 26020 | O33: 10665 | P33: 6815 | T33: 35000
A34: CO (g/min) | C34: NR | D34: NR | E34: NR | L34: CO (g/min) | N34: 0.02 | O34: 0.1 | P34: 0.36
A35: HHV efficiency (%) | C35: 78.4 | D35: 73.7 | E35: 70.7 | L35: HHV efficiency (%) | N35: 78.4 | O35: 73.7 | P35: 70.7
A36: Overall PM emissions (g/hr) | B36: 0.74 | L36: Overall PM emissions (g/hr) | M36: 0.74
A37: PM 1-hr filter pull (g/hr) | B37: 0.277 | L37: PM 1-hr filter pull (g/hr) | M37: 0.277
A38: Filter data | B38: Reported | L38: Filter data | M38: Reported
A39: Train precision (%) | B39: Not reported | L39: Train precision (%) | M39: Not reported
A40: Negative weights | B40: No | L40: Negative weights | M40: No
A41: Negs handled appropriately | B41: Yes | L41: Negs handled appropriately | M41: Yes
A42: Lowest burn rate tested | B42: No | I42: The low burn segment at minimum heat setting (power level 1), and the trim switch set to -4. Photos show low setting was not set at lowest setting. | L42: Lowest burn rate tested | M42: No | T42: The low burn segment at minimum heat setting (power level 1), and the trim switch set to -4. Photos show low setting was not set at lowest setting.
A43: All run data | B43: Not reported | L43: All run data | M43: Not reported
A44: Appliance Fueling | B44: Determination | I44: Notes | L44: Appliance Fueling | M44: Determination | T44: Notes
A45: Pellet species/type | B45: Softwood | I45: pres-to-logs | L45: Pellet species/type | M45: Softwood | T45: pres-to-logs
A46: Pellet fuel certification | B46: PFI | I46: 0.25 | L46: Pellet fuel certification | M46: PFI | T46: 0.25
A47: Source of the pellet specification | B47: Pellet bag lable | L47: Source of the pellet specification | M47: Pellet bag lable
A48: Owners Manual Req. | B48: Determination | I48: Notes | L48: Owners Manual Req. | M48: Determination | T48: Notes
A49: Stack height | B49: Included | L49: Stack height | M49: Included
A50: Location recommendation | B50: Included | L50: Location recommendation | M50: Included
A51: Guidance on proper draft | B51: Included | L51: Guidance on proper draft | M51: Included
A52: Fuel loading & reloading | B52: Not applicable | L52: Fuel loading & reloading | M52: Not applicable
A53: Fuel selection recomm. | B53: Included | L53: Fuel selection recomm. | M53: Included
A54: Improper fuels warnings | B54: Not included | I54: unable to located in manual | L54: Improper fuels warnings | M54: Not included | T54: unable to located in manual
A55: Fire starting procedures | B55: Included | L55: Fire starting procedures | M55: Included
A56: Proper use of air controls | B56: Included | L56: Proper use of air controls | M56: Included
A57: Proper operation low | B57: Included | L57: Proper operation low | M57: Included
A58: Ash removal procedures | B58: Included | L58: Ash removal procedures | M58: Included
A59: Replacement parts | B59: Included | L59: Replacement parts | M59: Included
A60: Federal warning (C or NC) | B60: Included | L60: Federal warning (C or NC) | M60: Included
A61: Warranty rights | B61: Included | L61: Warranty rights | M61: Included
A62: Reporting | B62: Determination | I62: Notes | L62: Reporting | M62: Determination | T62: Notes
A63: Summary tables complete | B63: All reported | L63: Summary tables complete | M63: All reported
A64: All run data submitted | B64: All reported | L64: All run data submitted | M64: All reported
A65: Test report complete | B65: Partially reported minor | L65: Test report complete | M65: Partially reported minor
A66: Owner manual complete | B66: Partially reported minor | L66: Owner manual complete | M66: Partially reported minor
A67: Test dates | B67: 2019-01-22 | L67: Test dates | M67: 2019-01-22
A68: 30 Day notice submitted to EPA | B68: No | L68: 30 Day notice submitted to EPA | M68: No
A69: Tested on the proposed date | B69: Cannot Be Determined | L69: Tested on the proposed date | M69: Cannot Be Determined
A70: Tested in one day | B70: Yes | L70: Tested in one day | M70: Yes
A71: 60 Day report to EPA | B71: Cannot be determined | L71: 60 Day report to EPA | M71: Cannot be determined
A72: EPA additional Review Elements | B72: Determination | I72: Notes | L72: EPA additional Review Elements | M72: Determination | T72: Notes
A73: check owners manual and highest setting in test are they the same | L73: check owners manual and highest setting in test are they the same
A74: Test location | L74: Test location | M74: Not reported
A75: date lab received the unit | L75: date lab received the unit | M75: not reported
A76: date first day of conditioning | L76: date first day of conditioning | M76: 2019-01-01
A77: date first day of testing | L77: date first day of testing | M77: 2019-01-22
A78: first hour PM emissions reported for all runs | L78: first hour PM emissions reported for all runs | M78: yes
A79: first hour PM emissions reported in grams per hour | L79: first hour PM emissions reported in grams per hour | M79: yes
A80: first hour PM emissions zero or negative | L80: first hour PM emissions zero or negative | M80: no
A81: first hour PM emissions measured with front and back filter | L81: first hour PM emissions measured with front and back filter | M81: no
A82: Zero CO emission reported | L82: Zero CO emission reported | M82: no
A83: Any incomplete runs | L83: Any incomplete runs | M83: no
A84: Pre-ignition data reported | L84: Pre-ignition data reported | M84: yes
A85: filter changes during test run | L85: filter changes during test run | M85: no
A86: filter plugged during test run | L86: filter plugged during test run | M86: no
A87: What type of filter used | L87: What type of filter used | M87: not reported
A88: Negative probe weight >5% of PM | L88: Negative probe weight >5% of PM | M88: no negatives
A89: Negative probe value | L89: Negative probe value | M89: no negatives
A90: Negative room air values | L90: Negative room air values | M90: no negatives
A91: Ambient background filter data | L91: Ambient background filter data | M91: no negatives
A92: Proportional sampling | L92: Proportional sampling | M92: yes with allowable deviations
A93: Leak check - pre-test leak check reported | L93: Leak check - pre-test leak check reported | M93: Meets Specification
A94: Leak check - any filter change | L94: Leak check - any filter change
A95: Leak check - post leak check reported | L95: Leak check - post leak check reported | M95: Meets Specification
A96: Dilution tunnel schematic meets ASTM 2515 requirements | L96: Dilution tunnel schematic meets ASTM 2515 requirements | M96: not reported
A97: number of conditioning hours reported in summary | L97: number of conditioning hours reported in summary | M97: 50
A98: number of conditioning hours with data | L98: number of conditioning hours with data | M98: 0 | T98: only stack temps reported
A99: number of hours at correct conditioning conditions | L99: number of hours at correct conditioning conditions | M99: Cannot Be Determined
A100: used lowest air settings for low burn (ASTM 3053) or Cat 1(M28R) | L100: used lowest air settings for low burn (ASTM 3053) or Cat 1(M28R) | M100: no
A101: Air setting data | B101: High | D101: Medium | F101: Low | L101: Air setting data | M101: High | O101: Medium | Q101: Low
M102: level 5 | N102: 4 trim | O102: level 2 | P102: -3 | Q102: Level 1 | R102: -4
A103: medium burn conditions met | L103: medium burn conditions met
A104: high test settings match high in OM | L104: high test settings match high in OM
A105: Total number of runs | L105: Total number of runs | M105: 1 | T105: integrated
A106: run averaging done correctly | L106: run averaging done correctly | M106: yes
A107: Calibration data | L107: Calibration data | M107: yes
A108: Milestone Date | B108: 2022-12-06 | I108: missing report elements | L108: Milestone Date | M108: 2022-12-06
A109: Compliance Date | L109: Compliance Date | M109: 2019-04-25 | N109: No EPA Compliance Date
A110: DEC Calculated Certification Expiration | L110: DEC Calculated Certification Expiration | M110: 2024-04-25

Sheet HHT PP70
A1: Summary of Review | L1: Summary of Review | W1: Summary of Review
A2: Manufacturer | B2: Hearth and Home Technologies, LLC | I2: 2021-03-31 | L2: Manufacturer | M2: Hearth and Home Technologies, LLC | T2: 2021-03-31 | W2: Manufacturer | X2: Hearth and Home Technologies, LLC | AE2: 2021-03-31
A3: Model | B3: Pelpro PP70 | L3: Model | M3: Pelpro PP70 | W3: Model | X3: Pelpro PP70
A4: Prelim review recomm. | B4: Requires a more thorough review | L4: Prelim review recomm. | M4: Requires a more thorough review | W4: Prelim review recomm. | X4: Requires a more thorough review
A5: Red flags | B5: 7 | C5: Orange flags | E5: 8 | F5: Yellow flags | H5: 5 | L5: Red flags | M5: 7 | N5: Orange flags | P5: 8 | Q5: Yellow flags | S5: 5 | W5: Red flags | X5: 7 | Y5: Orange flags | AA5: 8 | AB5: Yellow flags | AD5: 5
A6: Final Determination | B6: Pending - Major | F6: Date: 9/1/2020 | I6: Basis: IR, NR | L6: Final Determination | M6: Pending - Major | Q6: Date: 9/1/2020 | T6: Basis: IR, NR | W6: Final Determination | X6: Pending - Major | AB6: Date: 9/1/2020 | AE6: Basis: IR, NR
A7: AK List Status | B7: Approved List - Pending | L7: AK List Status | M7: Approved List - Pending | W7: AK List Status | X7: Approved List - Pending
A8: Testing Information | B8: Determination | I8: Notes | L8: Testing Information | M8: Determination | T8: Notes | W8: Testing Information | X8: Determination | AE8: Notes
A9: Test method | B9: ASTM 2779 | L9: Test method | M9: ASTM 2779 | W9: Test method | X9: ASTM 2779
A10: Test Lab | B10: OMNI | I10: TESTED AT OMNI FACILITY | L10: Test Lab | M10: OMNI | T10: TESTED AT OMNI FACILITY | W10: Test Lab | X10: OMNI | AE10: TESTED AT OMNI FACILITY
A11: Third-party certifier | B11: Not reported | I11: Manufacturer states that the certifier was Omni | L11: Third-party certifier | M11: OMNI | W11: Third-party certifier | X11: OMNI
A12: Report certified | B12: Not reported | I12: authorized signatories (Bruce Davis & Ken Morgan) | L12: Report certified | M12: Omni | T12: authorized signatories (Bruce Davis & Ken Morgan) | W12: Report certified | X12: Omni | AE12: authorized signatories (Bruce Davis & Ken Morgan)
A13: Test Report Elements | B13: Determination | I13: Notes | L13: Test Report Elements | M13: Determination | T13: Notes | W13: Test Report Elements | X13: Determination | AE13: Notes
A14: Overall PM emissions (g/hr) | B14: 0.49 | D14: PM Highest 1-hr (g/hr) | G14: 0.96 | L14: Overall PM emissions (g/hr) | M14: 0.49 | O14: PM Highest 1-hr (g/hr) | R14: 0.96 | W14: Overall PM emissions (g/hr) | X14: 0.49 | Z14: PM Highest 1-hr (g/hr) | AC14: 0.96
A15: Overall HHV efficiency (%) | B15: 82.8 | I15: 0.885 | L15: Overall HHV efficiency (%) | M15: 82.8 | T15: 0.885 | W15: Overall HHV efficiency (%) | X15: 82.8 | AE15: 0.885
A16: Overall heat output (Btu/hr) | B16: 14961 | L16: Overall heat output (Btu/hr) | M16: 14961 | W16: Overall heat output (Btu/hr) | X16: 14961
A17: Overall CO (g/hr) | B17: =IFERROR(G17*60,"Not reported") -> 3.948 | D17: Overall CO (g/min) | G17: 0.0658 | L17: Overall CO (g/hr) | M17: =IFERROR(R17*60,"Not reported") -> 3.948 | O17: Overall CO (g/min) | R17: 0.0658 | W17: Overall CO (g/hr) | X17: =IFERROR(AC17*60,"Not reported") -> 3.948 | Z17: Overall CO (g/min) | AC17: 0.0658
A18: Manufacturers Instructions to lab | B18: Reported | I18: pg. 14 | L18: Manufacturers Instructions to lab | M18: Reported | T18: pg. 14 | W18: Manufacturers Instructions to lab | X18: Reported | AE18: pg. 14
A19: Efficiency calculations | B19: Reported | L19: Efficiency calculations | M19: Reported | W19: Efficiency calculations | X19: Reported
A20: Burn rate calculations | B20: Reported | L20: Burn rate calculations | M20: Reported | W20: Burn rate calculations | X20: Reported
A21: Raw data sheets | B21: Reported | L21: Raw data sheets | M21: Reported | W21: Raw data sheets | X21: Reported
A22: Conditioning completed by | B22: Lab | I22: Unit received by lab on 3/22/2018, 49 hours conditioning took place on 3/1/2018. Omni staff signature on aging, indicates lab did aging. | L22: Conditioning completed by | M22: Lab | T22: Unit received by lab on 3/22/2018, 49 hours conditioning took place on 3/1/2018. Omni staff signature on aging, indicates lab did aging. | W22: Conditioning completed by | X22: Lab | AE22: Unit received by lab on 3/22/2018, 49 hours conditioning took place on 3/1/2018. Omni staff signature on aging, indicates lab did aging.
A23: Conditioning data | B23: Partially reported | I23: Only 40 hours of condition done with a medium burn rate .79kg/hr (+/-.5kg) | L23: Conditioning data | M23: Partially reported | T23: Only 40 hours of condition done with a medium burn rate .79kg/hr (+/-.5kg) | W23: Conditioning data | X23: Partially reported | AE23: Only 40 hours of condition done with a medium burn rate .79kg/hr (+/-.5kg)
A24: Lab technician notes | B24: Reported | L24: Lab technician notes | M24: Reported | W24: Lab technician notes | X24: Reported
A25: Doc. of run appropriateness | B25: Not reported | I25: statement provided in modified report | L25: Doc. of run appropriateness | M25: Reported | W25: Doc. of run appropriateness | X25: Reported
A26: Doc. of run validity | B26: Not reported | I26: statement provided in modified report | L26: Doc. of run validity | M26: Reported | W26: Doc. of run validity | X26: Reported
A27: Doc. of run anomolies | B27: Not reported | I27: statement provided in modified report | L27: Doc. of run anomolies | M27: Reported | W27: Doc. of run anomolies | X27: Reported
A28: Doc. of run burn rates | B28: Reported | L28: Doc. of run burn rates | M28: Reported | W28: Doc. of run burn rates | X28: Reported
A29: Test Run Data | B29: Determination | I29: Notes | L29: Test Run Data | M29: Determination | T29: Notes | W29: Test Run Data | X29: Determination | AE29: Notes
A30: Run # | C30: 1 | D30: 1 | E30: 1 | L30: Run # | N30: 1 | O30: 1 | P30: 1 | W30: Run # | Y30: 1 | Z30: 1 | AA30: 1
A31: Run Category | C31: High | D31: Medium | E31: Low | L31: Run Category | N31: High | O31: Medium | P31: Low | W31: Run Category | Y31: High | Z31: Medium | AA31: Low
A32: Burn rate (kg/hr) | C32: 2.18 | D32: 0.79 | E32: 0.6 | L32: Burn rate (kg/hr) | N32: 2.18 | O32: 0.79 | P32: 0.6 | W32: Burn rate (kg/hr) | Y32: 2.18 | Z32: 0.79 | AA32: 0.6
A33: Heat output (Btu/hr) | C33: 35278 | D33: 12425 | E33: 9603 | I33: 42500 | L33: Heat output (Btu/hr) | N33: 35278 | O33: 12425 | P33: 9603 | T33: 42500 | W33: Heat output (Btu/hr) | Y33: 35278 | Z33: 12425 | AA33: 9603 | AE33: 42500
A34: CO (g/min) | C34: 0.0468 | D34: 0.0383 | E34: 0.0907 | L34: CO (g/min) | N34: 0.0468 | O34: 0.0383 | P34: 0.0907 | W34: CO (g/min) | Y34: 0.0468 | Z34: 0.0383 | AA34: 0.0907
A35: HHV efficiency (%) | C35: 82.9 | D35: 80.5 | E35: 82.2 | L35: HHV efficiency (%) | N35: 82.9 | O35: 80.5 | P35: 82.2 | W35: HHV efficiency (%) | Y35: 82.9 | Z35: 80.5 | AA35: 82.2
A36: Overall PM emissions (g/hr) | B36: 0.49 | L36: Overall PM emissions (g/hr) | M36: 0.49 | W36: Overall PM emissions (g/hr) | X36: 0.49
A37: PM 1-hr filter pull (g/hr) | B37: 0.96 | L37: PM 1-hr filter pull (g/hr) | M37: 0.96 | W37: PM 1-hr filter pull (g/hr) | X37: 0.96
A38: Filter data | B38: Reported | L38: Filter data | M38: Reported | W38: Filter data | X38: Reported
A39: Train precision (%) | B39: Not reported | I39: Manufacturer states that train precision is not report however they have included gram per kg comparison to page 22 of the modified report. | L39: Train precision (%) | M39: Not reported | T39: ADEC has confirmed with EPA that train precision calculatons and percentage are required, ADEC will not re-calculate unprovided equations to determine compliance. | W39: Train precision (%) | X39: Not reported | AE39: ADEC has confirmed with EPA that train precision calculatons and percentage are required, ADEC will not re-calculate unprovided equations to determine compliance.
A40: Negative weights | B40: Yes | L40: Negative weights | M40: Yes | W40: Negative weights | X40: Yes
A41: Negs handled appropriately | B41: No | L41: Negs handled appropriately | M41: No | W41: Negs handled appropriately | X41: No
A42: Lowest burn rate tested | B42: Cannot be determined | I42: Manufacturer's instructions state,"Dial should be set to 1 and the trim pot should be set to 0." However, photos of settings show a low setting that wasn't used. also need information on fan settings. | L42: Lowest burn rate tested | M42: Cannot be determined | T42: no information provided for fan/air flow settings. This issue has been forwarded to EPA per the decision matrix. ADEC will make a decision following receipt of formal EPA response. | W42: Lowest burn rate tested | X42: Cannot be determined | AE42: no information provided for fan/air flow settings. This issue has been forwarded to EPA per the decision matrix. ADEC will make a decision following receipt of formal EPA response.
A43: All run data | B43: Not reported | L43: All run data | M43: Not reported | W43: All run data | X43: Not reported
A44: Appliance Fueling | B44: Determination | I44: Notes | L44: Appliance Fueling | M44: Determination | T44: Notes | W44: Appliance Fueling | X44: Determination | AE44: Notes
A45: Pellet species/type | B45: Softwood | L45: Pellet species/type | M45: Softwood | W45: Pellet species/type | X45: Softwood
A46: Pellet fuel certification | B46: PFI | L46: Pellet fuel certification | M46: PFI | W46: Pellet fuel certification | X46: PFI
A47: Source of the pellet specification | B47: From an analyzed sample | L47: Source of the pellet specification | M47: From an analyzed sample | W47: Source of the pellet specification | X47: From an analyzed sample
A48: Owners Manual Req. | B48: Determination | I48: Notes | L48: Owners Manual Req. | M48: Determination | T48: Notes | W48: Owners Manual Req. | X48: Determination | AE48: Notes
A49: Stack height | B49: Included | L49: Stack height | M49: Included | W49: Stack height | X49: Included
A50: Location recommendation | B50: Included | L50: Location recommendation | M50: Included | W50: Location recommendation | X50: Included
A51: Guidance on proper draft | B51: Included | L51: Guidance on proper draft | M51: Included | W51: Guidance on proper draft | X51: Included
A52: Fuel loading & reloading | B52: Not applicable | L52: Fuel loading & reloading | M52: Not applicable | W52: Fuel loading & reloading | X52: Not applicable
A53: Fuel selection recomm. | B53: Included | L53: Fuel selection recomm. | M53: Included | W53: Fuel selection recomm. | X53: Included
A54: Improper fuels warnings | B54: Not included | I54: manufacturer refers reviewer to page 13 of the manual which contains fuel tips. | L54: Improper fuels warnings | M54: Not included | T54: No specific reference of what not to burn in the device provided. | W54: Improper fuels warnings | X54: Not included | AE54: No specific reference of what not to burn in the device provided.
A55: Fire starting procedures | B55: Included | L55: Fire starting procedures | M55: Included | W55: Fire starting procedures | X55: Included
A56: Proper use of air controls | B56: Included | L56: Proper use of air controls | M56: Included | W56: Proper use of air controls | X56: Included
A57: Proper operation low | B57: Included | L57: Proper operation low | M57: Included | W57: Proper operation low | X57: Included
A58: Ash removal procedures | B58: Included | L58: Ash removal procedures | M58: Included | W58: Ash removal procedures | X58: Included
A59: Replacement parts | B59: Included | L59: Replacement parts | M59: Included | W59: Replacement parts | X59: Included
A60: Federal warning (C or NC) | B60: Included | L60: Federal warning (C or NC) | M60: Included | W60: Federal warning (C or NC) | X60: Included
A61: Warranty rights | B61: Included | L61: Warranty rights | M61: Included | W61: Warranty rights | X61: Included
A62: Reporting | B62: Determination | I62: Notes | L62: Reporting | M62: Determination | T62: Notes | W62: Reporting | X62: Determination | AE62: Notes
A63: Summary tables complete | B63: All reported | L63: Summary tables complete | M63: All reported | W63: Summary tables complete | X63: All reported
A64: All run data submitted | B64: All reported | L64: All run data submitted | M64: All reported | W64: All run data submitted | X64: All reported
A65: Test report complete | B65: Partially reported minor | L65: Test report complete | M65: Partially reported minor | W65: Test report complete | X65: Partially reported minor
A66: Owner manual complete | B66: Partially reported minor | L66: Owner manual complete | M66: Partially reported minor | W66: Owner manual complete | X66: Partially reported minor
A67: Test dates | B67: 2018-03-28 | L67: Test dates | M67: 2018-03-28 | W67: Test dates | X67: 2018-03-28
A68: 30 Day notice submitted to EPA | B68: No | I68: manufacturer states this is not required in report however, is availible upon request. | L68: 30 Day notice submitted to EPA | M68: No | W68: 30 Day notice submitted to EPA | X68: No
A69: Tested on the proposed date | B69: Cannot Be Determined | L69: Tested on the proposed date | M69: Cannot Be Determined | W69: Tested on the proposed date | X69: Cannot Be Determined
A70: Tested in one day | B70: Yes | L70: Tested in one day | M70: Yes | W70: Tested in one day | X70: Yes
A71: 60 Day report to EPA | B71: No | I71: manufacturer states this is not required in report however, is availible upon request. | L71: 60 Day report to EPA | M71: No | W71: 60 Day report to EPA | X71: No
A72: EPA additional Review Elements | B72: Determination | I72: Notes | L72: EPA additional Review Elements | M72: Determination | T72: Notes | W72: EPA additional Review Elements | X72: Determination | AE72: Notes
A73: check owners manual and highest setting in test are they the same | L73: check owners manual and highest setting in test are they the same | W73: check owners manual and highest setting in test are they the same | X73: partially | AE73: no mention of trim in OM
A74: Test location | L74: Test location | W74: Test location | X74: Lab | AE74: Portland, Oregon
A75: date lab received the unit | L75: date lab received the unit | W75: date lab received the unit | X75: 2018-03-22
A76: date first day of conditioning | L76: date first day of conditioning | W76: date first day of conditioning | X76: 2018-03-01
A77: date first day of testing | L77: date first day of testing | W77: date first day of testing | X77: 2018-03-28
A78: first hour PM emissions reported for all runs | L78: first hour PM emissions reported for all runs | W78: first hour PM emissions reported for all runs | X78: yes
A79: first hour PM emissions reported in grams per hour | L79: first hour PM emissions reported in grams per hour | W79: first hour PM emissions reported in grams per hour | X79: yes
A80: first hour PM emissions zero or negative | L80: first hour PM emissions zero or negative | W80: first hour PM emissions zero or negative | X80: no
A81: first hour PM emissions measured with front and back filter | L81: first hour PM emissions measured with front and back filter | W81: first hour PM emissions measured with front and back filter | X81: no
A82: Zero CO emission reported | L82: Zero CO emission reported | W82: Zero CO emission reported | X82: no
A83: Any incomplete runs | L83: Any incomplete runs | W83: Any incomplete runs | X83: no
A84: Pre-ignition data reported | L84: Pre-ignition data reported | W84: Pre-ignition data reported
A85: filter changes during test run | L85: filter changes during test run | W85: filter changes during test run | X85: no
A86: filter plugged during test run | L86: filter plugged during test run | W86: filter plugged during test run | X86: no
A87: What type of filter used | L87: What type of filter used | W87: What type of filter used | X87: not reported
A88: Negative probe weight >5% of PM | L88: Negative probe weight >5% of PM | W88: Negative probe weight >5% of PM | X88: no negatives
A89: Negative probe value | L89: Negative probe value | W89: Negative probe value | X89: no negatives
A90: Negative room air values | L90: Negative room air values | W90: Negative room air values | X90: no negatives
A91: Ambient background filter data | L91: Ambient background filter data | W91: Ambient background filter data | X91: no negatives
A92: Proportional sampling | L92: Proportional sampling | W92: Proportional sampling | X92: yes with allowable deviations
A93: Leak check - pre-test leak check reported | L93: Leak check - pre-test leak check reported | W93: Leak check - pre-test leak check reported | X93: Meets Specification
A94: Leak check - any filter change | L94: Leak check - any filter change | W94: Leak check - any filter change
A95: Leak check - post leak check reported | L95: Leak check - post leak check reported | W95: Leak check - post leak check reported | X95: Meets Specification
A96: Dilution tunnel schematic meets ASTM 2515 requirements | L96: Dilution tunnel schematic meets ASTM 2515 requirements | W96: Dilution tunnel schematic meets ASTM 2515 requirements | X96: not reported
A97: number of conditioning hours reported in summary | L97: number of conditioning hours reported in summary | W97: number of conditioning hours reported in summary | X97: 50
A98: number of conditioning hours with data | L98: number of conditioning hours with data | W98: number of conditioning hours with data | X98: 50
A99: number of hours at correct conditioning conditions | L99: number of hours at correct conditioning conditions | W99: number of hours at correct conditioning conditions | X99: 40
A100: used lowest air settings for low burn (ASTM 3053) or Cat 1(M28R) | L100: used lowest air settings for low burn (ASTM 3053) or Cat 1(M28R) | W100: used lowest air settings for low burn (ASTM 3053) or Cat 1(M28R) | AE100: see cell I42
A101: Air setting data | B101: High | D101: Medium | F101: Low | L101: Air setting data | M101: High | O101: Medium | Q101: Low | W101: Air setting data | X101: High | Z101: Medium | AB101: Low
X102: Setting 10 | Y102: trim to 4 | Z102: setting 3 | AA102: trim -1 | AB102: setting 1 | AC102: trim 0
A103: medium burn conditions met | L103: medium burn conditions met | W103: medium burn conditions met
A104: high test settings match high in OM | L104: high test settings match high in OM | W104: high test settings match high in OM | X104: yes
A105: Total number of runs | L105: Total number of runs | W105: Total number of runs | X105: 1 | AE105: integrated
A106: run averaging done correctly | L106: run averaging done correctly | W106: run averaging done correctly | X106: yes
A107: Calibration data | L107: Calibration data | W107: Calibration data | X107: partially reported | AE107: Although Calibrations are reported some seem to be outside the 6 month requirement
A108: Milestone Date | B108: 2022-12-06 | I108: missing report elements | L108: Milestone Date | M108: 2022-12-06 | T108: missing report elements | W108: Milestone Date | X108: 2022-12-06
A109: Compliance Date | L109: Compliance Date | W109: Compliance Date | X109: 2018-07-25 | Y109: No EPA Compliance Date
A110: DEC Calculated Certification Expiration | L110: DEC Calculated Certification Expiration | W110: DEC Calculated Certification Expiration | X110: 2023-07-25

Sheet HHT PPC90
A1: Summary of Review | L1: Summary of Review | W1: Summary of Review
A2: Manufacturer | B2: Hearth and Home Technologies, LLC | I2: 2021-03-31 | L2: Manufacturer | M2: Hearth and Home Technologies, LLC | T2: 2021-03-31 | W2: Manufacturer | X2: Hearth and Home Technologies, LLC | AE2: 2021-03-31
A3: Model | B3: PelPro PPC90, PelPro TSC90, and Pleasant Hearth PHC90 | L3: Model | M3: PelPro PPC90, PelPro TSC90, and Pleasant Hearth PHC90 | W3: Model | X3: PelPro PPC90, PelPro TSC90, and Pleasant Hearth PHC90
A4: Prelim review recomm. | B4: Requires a more thorough review | L4: Prelim review recomm. | M4: Requires a more thorough review | W4: Prelim review recomm. | X4: Requires a more thorough review
A5: Red flags | B5: 2 | C5: Orange flags | E5: 6 | F5: Yellow flags | H5: 6 | L5: Red flags | M5: 2 | N5: Orange flags | P5: 6 | Q5: Yellow flags | S5: 6 | W5: Red flags | X5: 2 | Y5: Orange flags | AA5: 6 | AB5: Yellow flags | AD5: 6
A6: Final Determination | B6: Pending - Major | F6: Date: 9/1/2020 | I6: Basis: MD, IDU, IR, NR | L6: Final Determination | M6: Pending - Major | Q6: Date: 9/1/2020 | T6: Basis: MD, IDU, IR, NR | W6: Final Determination | X6: Pending - Major | AB6: Date: 9/1/2020 | AE6: Basis: MD, IDU, IR, NR
A7: AK List Status | B7: Approved List - Pending | L7: AK List Status | M7: No Determination List | W7: AK List Status | X7: No Determination List
A8: Testing Information | B8: Determination | I8: Notes | L8: Testing Information | M8: Determination | T8: Notes | W8: Testing Information | X8: Determination | AE8: Notes
A9: Test method | B9: ASTM 2779 | L9: Test method | M9: ASTM 2779 | W9: Test method | X9: ASTM 2779
A10: Test Lab | B10: OMNI | I10: testing at Omni facility | L10: Test Lab | M10: OMNI | T10: testing at Omni facility | W10: Test Lab | X10: OMNI | AE10: testing at Omni facility
A11: Third-party certifier | B11: Not reported | L11: Third-party certifier | M11: Not reported | W11: Third-party certifier | X11: Not reported
A12: Report certified | B12: Not reported | I12: authorized signatories (Bruce Davis, ALex Tiegs & Sebastian Button) | L12: Report certified | M12: Not reported | T12: authorized signatories (Bruce Davis, ALex Tiegs & Sebastian Button) | W12: Report certified | X12: Not reported | AE12: authorized signatories (Bruce Davis, ALex Tiegs & Sebastian Button)
A13: Test Report Elements | B13: Determination | I13: Notes | L13: Test Report Elements | M13: Determination | T13: Notes | W13: Test Report Elements | X13: Determination | AE13: Notes
A14: Overall PM emissions (g/hr) | B14: 1.11 | D14: PM Highest 1-hr (g/hr) | G14: 3.87 | L14: Overall PM emissions (g/hr) | M14: 1.11 | O14: PM Highest 1-hr (g/hr) | R14: 3.87 | W14: Overall PM emissions (g/hr) | X14: 1.11 | Z14: PM Highest 1-hr (g/hr) | AC14: 3.87
A15: Overall HHV efficiency (%) | B15: 82.3 | I15: 0.88 | L15: Overall HHV efficiency (%) | M15: 82.3 | T15: 0.88 | W15: Overall HHV efficiency (%) | X15: 82.3 | AE15: 0.88
A16: Overall heat output (Btu/hr) | B16: 16781 | L16: Overall heat output (Btu/hr) | M16: 16781 | W16: Overall heat output (Btu/hr) | X16: 16781
A17: Overall CO (g/hr) | B17: =IFERROR(G17*60,"Not reported") -> 25.68 | D17: Overall CO (g/min) | G17: 0.428 | L17: Overall CO (g/hr) | M17: =IFERROR(R17*60,"Not reported") -> 25.68 | O17: Overall CO (g/min) | R17: 0.428 | W17: Overall CO (g/hr) | X17: =IFERROR(AC17*60,"Not reported") -> 25.68 | Z17: Overall CO (g/min) | AC17: 0.428
A18: Manufacturers Instructions to lab | B18: Reported | L18: Manufacturers Instructions to lab | M18: Reported | W18: Manufacturers Instructions to lab | X18: Reported
A19: Efficiency calculations | B19: Reported | L19: Efficiency calculations | M19: Reported | W19: Efficiency calculations | X19: Reported
A20: Burn rate calculations | B20: Reported | L20: Burn rate calculations | M20: Reported | W20: Burn rate calculations | X20: Reported
A21: Raw data sheets | B21: Reported | L21: Raw data sheets | M21: Reported | W21: Raw data sheets | X21: Reported
A22: Conditioning completed by | B22: Not reported | I22: Unit received on 4/19/2016, no mention of who completed conditioning | L22: Conditioning completed by | M22: Not reported | T22: Unit received on 4/19/2016, no mention of who completed conditioning | W22: Conditioning completed by | X22: Not reported | AE22: Unit received on 4/19/2016, no mention of who completed conditioning
A23: Conditioning data | B23: Partially reported | I23: Incomplete conditioning data pg 146 and 147, weight data from one day only. | L23: Conditioning data | M23: Partially reported | T23: Incomplete conditioning data pg 146 and 147, weight data from one day only. | W23: Conditioning data | X23: Reported
A24: Lab technician notes | B24: Reported | L24: Lab technician notes | M24: Reported | W24: Lab technician notes | X24: Reported
A25: Doc. of run appropriateness | B25: Partially reported | I25: not specifically mentioned that the run was appropriate, however, report does state run was acceptable per ASTM... | L25: Doc. of run appropriateness | M25: Partially reported | T25: not specifically mentioned that the run was appropriate, however, report does state run was acceptable per ASTM... | W25: Doc. of run appropriateness | X25: Reported | AE25: added to pg 6
A26: Doc. of run validity | B26: Partially reported | I26: not specifically mentioned that the run was valid, however, report does state run was acceptable per ASTM... | L26: Doc. of run validity | M26: Partially reported | T26: not specifically mentioned that the run was valid, however, report does state run was acceptable per ASTM... | W26: Doc. of run validity | X26: Reported | AE26: added to pg 6
A27: Doc. of run anomolies | B27: Reported | L27: Doc. of run anomolies | M27: Reported | W27: Doc. of run anomolies | X27: Reported
A28: Doc. of run burn rates | B28: Reported | L28: Doc. of run burn rates | M28: Reported | W28: Doc. of run burn rates | X28: Reported
A29: Test Run Data | B29: Determination | I29: Notes | L29: Test Run Data | M29: Determination | T29: Notes | W29: Test Run Data | X29: Determination | AE29: Notes
A30: Run # | C30: 1 | D30: 1 | E30: 1 | L30: Run # | N30: 1 | O30: 1 | P30: 1 | W30: Run # | Y30: 1 | Z30: 1 | AA30: 1
A31: Run Category | C31: High | D31: Medium | E31: Low | L31: Run Category | N31: High | O31: Medium | P31: Low | W31: Run Category | Y31: High | Z31: Medium | AA31: Low
A32: Burn rate (kg/hr) | C32: 2.59 | D32: 1.14 | E32: 0.6 | L32: Burn rate (kg/hr) | N32: 2.59 | O32: 1.14 | P32: 0.6 | W32: Burn rate (kg/hr) | Y32: 2.59 | Z32: 1.14 | AA32: 0.6
A33: Heat output (Btu/hr) | C33: 39482 | D33: 17186 | E33: 8456 | I33: 50000 | L33: Heat output (Btu/hr) | N33: 39482 | O33: 17186 | P33: 8456 | T33: 50000 | W33: Heat output (Btu/hr) | Y33: 39482 | Z33: 17186 | AA33: 8456 | AE33: 50000
A34: CO (g/min) | C34: 1.14 | D34: 0.045 | E34: 0.495 | L34: CO (g/min) | N34: 1.14 | O34: 0.045 | P34: 0.495 | W34: CO (g/min) | Y34: 1.14 | Z34: 0.045 | AA34: 0.495
A35: HHV efficiency (%) | C35: 83.33 | D35: 82.13 | E35: 76.49 | L35: HHV efficiency (%) | N35: 83.33 | O35: 82.13 | P35: 76.49 | W35: HHV efficiency (%) | Y35: 83.33 | Z35: 82.13 | AA35: 76.49
A36: Overall PM emissions (g/hr) | B36: 1.11 | L36: Overall PM emissions (g/hr) | M36: 1.11 | W36: Overall PM emissions (g/hr) | X36: 1.11
A37: PM 1-hr filter pull (g/hr) | B37: 3.87 | L37: PM 1-hr filter pull (g/hr) | M37: 3.87 | W37: PM 1-hr filter pull (g/hr) | X37: 3.87
A38: Filter data | B38: Reported | L38: Filter data | M38: Reported | W38: Filter data | X38: Reported
A39: Train precision (%) | B39: Not reported | L39: Train precision (%) | M39: Not reported | W39: Train precision (%) | X39: Reported
A40: Negative weights | B40: Yes | L40: Negative weights | M40: Yes | W40: Negative weights | X40: Yes
A41: Negs handled appropriately | B41: No | L41: Negs handled appropriately | M41: No | W41: Negs handled appropriately | X41: No | AE41: subtracted from total, explanation found on pg 6
A42: Lowest burn rate tested | B42: Cannot be determined | I42: setting of power level is noted as 1 time at -4 | L42: Lowest burn rate tested | M42: Cannot be determined | T42: setting of power level is noted as 1 time at -4 | W42: Lowest burn rate tested | X42: Cannot be determined | AE42: setting of power level is noted as 1 trim at -4
A43: All run data | B43: Not reported | L43: All run data | M43: Not reported | W43: All run data | X43: Not reported
A44: Appliance Fueling | B44: Determination | I44: Notes | L44: Appliance Fueling | M44: Determination | T44: Notes | W44: Appliance Fueling | X44: Determination | AE44: Notes
A45: Pellet species/type | B45: Softwood | L45: Pellet species/type | M45: Softwood | W45: Pellet species/type | X45: Softwood
A46: Pellet fuel certification | B46: PFI | I46: 0.21 | L46: Pellet fuel certification | M46: PFI | T46: 0.21 | W46: Pellet fuel certification | X46: PFI | AE46: 0.21
A47: Source of the pellet specification | B47: From an analyzed sample | L47: Source of the pellet specification | M47: From an analyzed sample | W47: Source of the pellet specification | X47: From an analyzed sample
A48: Owners Manual Req. | B48: Determination | I48: Notes | L48: Owners Manual Req. | M48: Determination | T48: Notes | W48: Owners Manual Req. | X48: Determination | AE48: Notes
A49: Stack height | B49: Included | L49: Stack height | M49: Included | W49: Stack height | X49: Included
A50: Location recommendation | B50: Included | L50: Location recommendation | M50: Included | W50: Location recommendation | X50: Included
A51: Guidance on proper draft | B51: Included | L51: Guidance on proper draft | M51: Included | W51: Guidance on proper draft | X51: Included
A52: Fuel loading & reloading | B52: Not applicable | L52: Fuel loading & reloading | M52: Not applicable | W52: Fuel loading & reloading | X52: Not applicable
A53: Fuel selection recomm. | B53: Included | L53: Fuel selection recomm. | M53: Included | W53: Fuel selection recomm. | X53: Included
A54: Improper fuels warnings | B54: Not included | I54: unable to locate in manual | L54: Improper fuels warnings | M54: Not included | T54: unable to locate in manual | W54: Improper fuels warnings | X54: Not included | AE54: unable to locate in manual
A55: Fire starting procedures | B55: Included | L55: Fire starting procedures | M55: Included | W55: Fire starting procedures | X55: Included
A56: Proper use of air controls | B56: Included | L56: Proper use of air controls | M56: Included | W56: Proper use of air controls | X56: Included
A57: Proper operation low | B57: Included | L57: Proper operation low | M57: Included | W57: Proper operation low | X57: Included
A58: Ash removal procedures | B58: Included | L58: Ash removal procedures | M58: Included | W58: Ash removal procedures | X58: Included
A59: Replacement parts | B59: Included | L59: Replacement parts | M59: Included | W59: Replacement parts | X59: Included
A60: Federal warning (C or NC) | B60: Included | L60: Federal warning (C or NC) | M60: Included | W60: Federal warning (C or NC) | X60: Included
A61: Warranty rights | B61: Included | L61: Warranty rights | M61: Included | W61: Warranty rights | X61: Included
A62: Reporting | B62: Determination | I62: Notes | L62: Reporting | M62: Determination | T62: Notes | W62: Reporting | X62: Determination | AE62: Notes
A63: Summary tables complete | B63: All reported | L63: Summary tables complete | M63: All reported | W63: Summary tables complete | X63: All reported
A64: All run data submitted | B64: All reported | L64: All run data submitted | M64: All reported | W64: All run data submitted | X64: All reported
A65: Test report complete | B65: Partially reported minor | L65: Test report complete | M65: Partially reported minor | W65: Test report complete | X65: Partially reported minor
A66: Owner manual complete | B66: Partially reported minor | L66: Owner manual complete | M66: Partially reported minor | W66: Owner manual complete | X66: Partially reported minor
A67: Test dates | B67: 2016-04-20 | L67: Test dates | M67: 2016-04-20 | W67: Test dates | X67: 2016-04-20
A68: 30 Day notice submitted to EPA | B68: Cannot be determined | L68: 30 Day notice submitted to EPA | M68: Cannot be determined | W68: 30 Day notice submitted to EPA | X68: Cannot be determined
A69: Tested on the proposed date | B69: Cannot Be Determined | L69: Tested on the proposed date | M69: Cannot Be Determined | W69: Tested on the proposed date | X69: Cannot Be Determined
A70: Tested in one day | B70: Yes | L70: Tested in one day | M70: Yes | W70: Tested in one day | X70: Yes
A71: 60 Day report to EPA | B71: Cannot be determined | L71: 60 Day report to EPA | M71: Cannot be determined | W71: 60 Day report to EPA | X71: Cannot be determined
A72: EPA additional Review Elements | B72: Determination | I72: Notes | L72: EPA additional Review Elements | M72: Determination | T72: Notes | W72: EPA additional Review Elements | X72: Determination | AE72: Notes
A73: check owners manual and highest setting in test are they the same | L73: check owners manual and highest setting in test are they the same | M73: partially | T73: no mention of trim setting | W73: check owners manual and highest setting in test are they the same | X73: partially | AE73: no mention of trim setting
A74: Test location | L74: Test location | M74: Lab | T74: Portland, Oregon | W74: Test location | X74: Lab | AE74: Portland, Oregon
A75: date lab received the unit | L75: date lab received the unit | M75: 2016-04-19 | W75: date lab received the unit | X75: 2016-04-19
A76: date first day of conditioning | L76: date first day of conditioning | M76: Not reported | W76: date first day of conditioning | X76: Not reported
A77: date first day of testing | L77: date first day of testing | M77: 2016-04-20 | W77: date first day of testing | X77: 2016-04-20
A78: first hour PM emissions reported for all runs | L78: first hour PM emissions reported for all runs | M78: yes | W78: first hour PM emissions reported for all runs | X78: yes
A79: first hour PM emissions reported in grams per hour | L79: first hour PM emissions reported in grams per hour | M79: yes | W79: first hour PM emissions reported in grams per hour | X79: yes
A80: first hour PM emissions zero or negative | L80: first hour PM emissions zero or negative | M80: no | W80: first hour PM emissions zero or negative | X80: no
A81: first hour PM emissions measured with front and back filter | L81: first hour PM emissions measured with front and back filter | M81: yes | W81: first hour PM emissions measured with front and back filter | X81: yes
A82: Zero CO emission reported | L82: Zero CO emission reported | M82: no | W82: Zero CO emission reported | X82: no
A83: Any incomplete runs | L83: Any incomplete runs | M83: no | W83: Any incomplete runs | X83: no
A84: Pre-ignition data reported | L84: Pre-ignition data reported | M84: not reported | W84: Pre-ignition data reported | X84: not reported
A85: filter changes during test run | L85: filter changes during test run | M85: no | W85: filter changes during test run | X85: no
A86: filter plugged during test run | L86: filter plugged during test run | M86: no | W86: filter plugged during test run | X86: no
A87: What type of filter used | L87: What type of filter used | M87: not reported | W87: What type of filter used | X87: not reported
A88: Negative probe weight >5% of PM | L88: Negative probe weight >5% of PM | M88: no negatives | W88: Negative probe weight >5% of PM | X88: no negatives
A89: Negative probe value | L89: Negative probe value | M89: no negatives | W89: Negative probe value | X89: no negatives
A90: Negative room air values | L90: Negative room air values | M90: no negatives | W90: Negative room air values | X90: no negatives
A91: Ambient background filter data | L91: Ambient background filter data | M91: no negatives | W91: Ambient background filter data | X91: no negatives
A92: Proportional sampling | L92: Proportional sampling | M92: yes with allowable deviations | W92: Proportional sampling | X92: yes with allowable deviations
A93: Leak check - pre-test leak check reported | L93: Leak check - pre-test leak check reported | M93: Meets Specification | W93: Leak check - pre-test leak check reported | X93: Meets Specification
A94: Leak check - any filter change | L94: Leak check - any filter change | M94: no | W94: Leak check - any filter change | X94: no
A95: Leak check - post leak check reported | L95: Leak check - post leak check reported | M95: Meets Specification | W95: Leak check - post leak check reported | X95: Meets Specification
A96: Dilution tunnel schematic meets ASTM 2515 requirements | L96: Dilution tunnel schematic meets ASTM 2515 requirements | M96: not reported | W96: Dilution tunnel schematic meets ASTM 2515 requirements | X96: not reported
A97: number of conditioning hours reported in summary | L97: number of conditioning hours reported in summary | M97: 50 | W97: number of conditioning hours reported in summary | X97: 50
A98: number of conditioning hours with data | L98: number of conditioning hours with data | M98: 50 | W98: number of conditioning hours with data | X98: 50
A99: number of hours at correct conditioning conditions | L99: number of hours at correct conditioning conditions | M99: Cannot be determined | T99: refer to cell I22 | W99: number of hours at correct conditioning conditions | X99: 0 | AE99: All 50 hours of condition had a burn rate above the documented medium burn rate from the test run (2.51 lb/hr or 1.14 kg/hr). Conditioning burnrate averaged at approximately 4lb/hr
A100: used lowest air settings for low burn (ASTM 3053) or Cat 1(M28R) | L100: used lowest air settings for low burn (ASTM 3053) or Cat 1(M28R) | T100: refer to cell I42 | W100: used lowest air settings for low burn (ASTM 3053) or Cat 1(M28R) | X100: not reported | AE100: refer to cell I42
A101: Air setting data | B101: High | D101: Medium | F101: Low | L101: Air setting data | M101: High | O101: Medium | Q101: Low | W101: Air setting data | X101: High | Z101: Medium | AB101: Low
M102: level 5 | N102: trim 5 | O102: ? | P102: ? | Q102: level 1 | R102: trim -4 | X102: level 5 | Y102: trim 4 | Z102: 2 | AA102: trim 0 | AB102: level 1 | AC102: trim -4
A103: medium burn conditions met | L103: medium burn conditions met | W103: medium burn conditions met | X103: yes
A104: high test settings match high in OM | L104: high test settings match high in OM | M104: not reported | T104: no mention of trim setting | W104: high test settings match high in OM | X104: not reported | AE104: no mention of trim setting
A105: Total number of runs | L105: Total number of runs | M105: 1 | T105: integrated | W105: Total number of runs | X105: 1 | AE105: integrated
A106: run averaging done correctly | L106: run averaging done correctly | M106: yes | W106: run averaging done correctly | X106: yes
A107: Calibration data | L107: Calibration data | M107: partially reported | T107: Although reported some are outside the 6 month requirement | W107: Calibration data | X107: partially reported | AE107: Although reported some are outside the 6 month requirement
A108: Milestone Date | B108: 2022-12-06 | I108: missing report elements | L108: Milestone Date | M108: 2022-01-20 | W108: Milestone Date | X108: 2022-01-20
A109: Compliance Date | L109: Compliance Date | M109: 2016-05-09 | N109: No EPA Compliance Date | W109: Compliance Date | X109: 2016-05-09 | Y109: No EPA Compliance Date
A110: DEC Calculated Certification Expiration | L110: DEC Calculated Certification Expiration | M110: 2021-05-09 | W110: DEC Calculated Certification Expiration | X110: 2021-05-09

Sheet HHT PP130
A1: Summary of Review | L1: Summary of Review
A2: Manufacturer | B2: Hearth and Home Technologies, LLC dba Pelpro | I2: 2021-03-31 | L2: Manufacturer | M2: Hearth and Home Technologies, LLC dba Pelpro | T2: 2021-03-31
A3: Model | B3: PP130-B | L3: Model | M3: PP130-B
A4: Prelim review recomm. | B4: Requires a more thorough review | L4: Prelim review recomm. | M4: Requires a more thorough review
A5: Red flags | B5: 5 | C5: Orange flags | E5: 6 | F5: Yellow flags | H5: 5 | L5: Red flags | M5: 5 | N5: Orange flags | P5: 6 | Q5: Yellow flags | S5: 5
A6: Final Determination | B6: Pending - Major | F6: Date: 9/1/2020 | I6: Basis: MD, IDU, IR | L6: Final Determination | M6: Pending - Major | Q6: Date: 9/1/2020 | T6: Basis: MD, IDU, IR
A7: AK List Status | B7: Approved List - Pending | L7: AK List Status | M7: Approved List - Pending
A8: Testing Information | B8: Determination | I8: Notes | L8: Testing Information | M8: Determination | T8: Notes
A9: Test method | B9: ASTM 2779 | L9: Test method | M9: ASTM 2779
A10: Test Lab | B10: OMNI | I10: performed at Omni lab | L10: Test Lab | M10: OMNI | T10: performed at Omni lab
A11: Third-party certifier | B11: Not reported | L11: Third-party certifier | M11: Not reported
A12: Report certified | B12: Not reported | I12: authorized signatories (Bruce Davis & Ken Morgan) | L12: Report certified | M12: Not reported | T12: authorized signatories (Bruce Davis & Ken Morgan)
A13: Test Report Elements | B13: Determination | I13: Notes | L13: Test Report Elements | M13: Determination | T13: Notes
A14: Overall PM emissions (g/hr) | B14: 0.53 | D14: PM Highest 1-hr (g/hr) | G14: 0.96 | L14: Overall PM emissions (g/hr) | M14: 0.53 | O14: PM Highest 1-hr (g/hr) | R14: 0.96
A15: Overall HHV efficiency (%) | B15: 81.9 | I15: 0.875 | L15: Overall HHV efficiency (%) | M15: 81.9 | T15: 0.875
A16: Overall heat output (Btu/hr) | B16: 16968 | L16: Overall heat output (Btu/hr) | M16: 16968
A17: Overall CO (g/hr) | B17: =IFERROR(G17*60,"Not reported") -> 9.6 | D17: Overall CO (g/min) | G17: 0.16 | L17: Overall CO (g/hr) | M17: =IFERROR(R17*60,"Not reported") -> 9.6 | O17: Overall CO (g/min) | R17: 0.16
A18: Manufacturers Instructions to lab | B18: Reported | L18: Manufacturers Instructions to lab | M18: Reported
A19: Efficiency calculations | B19: Reported | L19: Efficiency calculations | M19: Reported
A20: Burn rate calculations | B20: Reported | L20: Burn rate calculations | M20: Reported
A21: Raw data sheets | B21: Reported | L21: Raw data sheets | M21: Reported
A22: Conditioning completed by | B22: Not reported | I22: Unit received by lab on 3/22/2018. No mention of who completed conditioning. | L22: Conditioning completed by | M22: Not reported | T22: Unit received by lab on 3/22/2018. No mention of who completed conditioning.
A23: Conditioning data | B23: Partially reported | I23: Conditioning data incomplete, dates and fuel addition data not reported. | L23: Conditioning data | M23: Partially reported | T23: Conditioning data incomplete, dates and fuel addition data not reported.
A24: Lab technician notes | B24: Reported | L24: Lab technician notes | M24: Reported
A25: Doc. of run appropriateness | B25: Not reported | I25: The proportionality results and sample train agreement for the test run was acceptable. | L25: Doc. of run appropriateness | M25: Not reported | T25: The proportionality results and sample train agreement for the test run was acceptable.
A26: Doc. of run validity | B26: Not reported | L26: Doc. of run validity | M26: Not reported
A27: Doc. of run anomolies | B27: Not reported | I27: none specifically mentioned | L27: Doc. of run anomolies | M27: Not reported | T27: none specifically mentioned
A28: Doc. of run burn rates | B28: Reported | L28: Doc. of run burn rates | M28: Reported
A29: Test Run Data | B29: Determination | I29: Notes | L29: Test Run Data | M29: Determination | T29: Notes
A30: Run # | C30: 1 | D30: 1 | E30: 1 | L30: Run # | N30: 1 | O30: 1 | P30: 1
A31: Run Category | C31: High | D31: Medium | E31: Low | L31: Run Category | N31: High | O31: Medium | P31: Low
A32: Burn rate (kg/hr) | C32: 2.53 | D32: 1.03 | E32: 0.6 | L32: Burn rate (kg/hr) | N32: 2.53 | O32: 1.03 | P32: 0.6
A33: Heat output (Btu/hr) | C33: 40637 | D33: 15929 | E33: 9605 | I33: 50000 | L33: Heat output (Btu/hr) | N33: 40637 | O33: 15929 | P33: 9605 | T33: 50000
A34: CO (g/min) | C34: 0.0383 | D34: 0.15 | E34: 0.215 | L34: CO (g/min) | N34: 0.0383 | O34: 0.15 | P34: 0.215
A35: HHV efficiency (%) | C35: 82.6 | D35: 79.6 | E35: 82.3 | L35: HHV efficiency (%) | N35: 82.6 | O35: 79.6 | P35: 82.3
A36: Overall PM emissions (g/hr) | B36: 0.53 | L36: Overall PM emissions (g/hr) | M36: 0.53
A37: PM 1-hr filter pull (g/hr) | B37: 0.96 | L37: PM 1-hr filter pull (g/hr) | M37: 0.96
A38: Filter data | B38: Reported | L38: Filter data | M38: Reported
A39: Train precision (%) | B39: Not reported | L39: Train precision (%) | M39: Not reported
A40: Negative weights | B40: Yes | L40: Negative weights | M40: Yes
A41: Negs handled appropriately | B41: No | L41: Negs handled appropriately | M41: No
A42: Lowest burn rate tested | B42: Cannot be determined | I42: minimum segment was tested at lo heat setting with 0 trim and 1 power level | L42: Lowest burn rate tested | M42: Cannot be determined | T42: minimum segment was tested at lo heat setting with 0 trim and 1 power level
A43: All run data | B43: Not reported | L43: All run data | M43: Not reported
A44: Appliance Fueling | B44: Determination | I44: Notes | L44: Appliance Fueling | M44: Determination | T44: Notes
A45: Pellet species/type | B45: Softwood | I45: Lignetics | L45: Pellet species/type | M45: Softwood | T45: Lignetics
A46: Pellet fuel certification | B46: PFI | I46: 0.34 | L46: Pellet fuel certification | M46: PFI | T46: 0.34
A47: Source of the pellet specification | B47: From an analyzed sample | L47: Source of the pellet specification | M47: From an analyzed sample
A48: Owners Manual Req. | B48: Determination | I48: Notes | L48: Owners Manual Req. | M48: Determination | T48: Notes
A49: Stack height | B49: Included | L49: Stack height | M49: Included
A50: Location recommendation | B50: Included | L50: Location recommendation | M50: Included
A51: Guidance on proper draft | B51: Included | L51: Guidance on proper draft | M51: Included
A52: Fuel loading & reloading | B52: Not applicable | L52: Fuel loading & reloading | M52: Not applicable
A53: Fuel selection recomm. | B53: Included | L53: Fuel selection recomm. | M53: Included
A54: Improper fuels warnings | B54: Not included | I54: unable to locate in manual | L54: Improper fuels warnings | M54: Not included | T54: unable to locate in manual
A55: Fire starting procedures | B55: Included | L55: Fire starting procedures | M55: Included
A56: Proper use of air controls | B56: Included | L56: Proper use of air controls | M56: Included
A57: Proper operation low | B57: Included | L57: Proper operation low | M57: Included
A58: Ash removal procedures | B58: Included | L58: Ash removal procedures | M58: Included
A59: Replacement parts | B59: Included | L59: Replacement parts | M59: Included
A60: Federal warning (C or NC) | B60: Included | L60: Federal warning (C or NC) | M60: Included
A61: Warranty rights | B61: Included | L61: Warranty rights | M61: Included
A62: Reporting | B62: Determination | I62: Notes | L62: Reporting | M62: Determination | T62: Notes
A63: Summary tables complete | B63: All reported | L63: Summary tables complete | M63: All reported
A64: All run data submitted | B64: All reported | L64: All run data submitted | M64: All reported
A65: Test report complete | B65: Partially reported minor | L65: Test report complete | M65: Partially reported minor
A66: Owner manual complete | B66: Partially reported minor | L66: Owner manual complete | M66: Partially reported minor
A67: Test dates | B67: 2018-03-26 | L67: Test dates | M67: 2018-03-26
A68: 30 Day notice submitted to EPA | B68: No | L68: 30 Day notice submitted to EPA | M68: No
A69: Tested on the proposed date | B69: Cannot Be Determined | L69: Tested on the proposed date | M69: Cannot Be Determined
A70: Tested in one day | B70: Yes | L70: Tested in one day | M70: Yes
A71: 60 Day report to EPA | B71: No | L71: 60 Day report to EPA | M71: No
A72: EPA additional Review Elements | B72: Determination | I72: Notes | L72: EPA additional Review Elements | M72: Determination | T72: Notes
A73: check owners manual and highest setting in test are they the same | L73: check owners manual and highest setting in test are they the same
A74: Test location | L74: Test location | M74: Lab | T74: Portland, OR
A75: date lab received the unit | L75: date lab received the unit | M75: 2018-03-22
A76: date first day of conditioning | L76: date first day of conditioning
A77: date first day of testing | L77: date first day of testing | M77: 2021-03-26
A78: first hour PM emissions reported for all runs | L78: first hour PM emissions reported for all runs | M78: yes
A79: first hour PM emissions reported in grams per hour | L79: first hour PM emissions reported in grams per hour | M79: yes
A80: first hour PM emissions zero or negative | L80: first hour PM emissions zero or negative | M80: no
A81: first hour PM emissions measured with front and back filter | L81: first hour PM emissions measured with front and back filter | M81: yes
A82: Zero CO emission reported | L82: Zero CO emission reported | M82: no
A83: Any incomplete runs | L83: Any incomplete runs | M83: no
A84: Pre-ignition data reported | L84: Pre-ignition data reported | M84: yes
A85: filter changes during test run | L85: filter changes during test run | M85: no
A86: filter plugged during test run | L86: filter plugged during test run | M86: no
A87: What type of filter used | L87: What type of filter used | M87: not reported
A88: Negative probe weight >5% of PM | L88: Negative probe weight >5% of PM | M88: no negatives
A89: Negative probe value | L89: Negative probe value | M89: no negatives
A90: Negative room air values | L90: Negative room air values | M90: no negatives
A91: Ambient background filter data | L91: Ambient background filter data | M91: no negatives
A92: Proportional sampling | L92: Proportional sampling | M92: yes with allowable deviations
A93: Leak check - pre-test leak check reported | L93: Leak check - pre-test leak check reported | M93: Meets Specification
A94: Leak check - any filter change | L94: Leak check - any filter change
A95: Leak check - post leak check reported | L95: Leak check - post leak check reported | M95: Meets Specification
A96: Dilution tunnel schematic meets ASTM 2515 requirements | L96: Dilution tunnel schematic meets ASTM 2515 requirements | M96: not reported
A97: number of conditioning hours reported in summary | L97: number of conditioning hours reported in summary | M97: 50
A98: number of conditioning hours with data | L98: number of conditioning hours with data | M98: 0 | T98: see I23
A99: number of hours at correct conditioning conditions | L99: number of hours at correct conditioning conditions | T99: see I23
A100: used lowest air settings for low burn (ASTM 3053) or Cat 1(M28R) | L100: used lowest air settings for low burn (ASTM 3053) or Cat 1(M28R)
A101: Air setting data | B101: High | D101: Medium | F101: Low | L101: Air setting data | M101: High | O101: Medium | Q101: Low
M102: High | N102: 5 | O102: Medium | P102: 2 | Q102: Low | R102: 1
A103: medium burn conditions met | L103: medium burn conditions met
A104: high test settings match high in OM | L104: high test settings match high in OM
A105: Total number of runs | L105: Total number of runs | M105: 1
A106: run averaging done correctly | L106: run averaging done correctly | M106: yes
A107: Calibration data | L107: Calibration data | M107: yes
A108: Milestone Date | B108: 2022-12-06 | I108: missing report elements | L108: Milestone Date | M108: 2022-12-06
A109: Compliance Date | L109: Compliance Date | M109: 2018-07-19 | N109: No EPA Compliance Date
A110: DEC Calculated Certification Expiration | L110: DEC Calculated Certification Expiration | M110: 2023-07-19

Sheet HHT Classic Bay 1200 iC
A1: Summary of Review | L1: Summary of Review
A2: Manufacturer | B2: Hearth and Home Technologies, LLC dba Quadra fire | I2: 2021-03-31 | L2: Manufacturer | M2: Hearth and Home Technologies, LLC dba Quadra fire | T2: 2021-03-31
A3: Model | B3: Classic Bay 1200 i-C | L3: Model | M3: Classic Bay 1200 i-C
A4: Prelim review recomm. | B4: Requires a more thorough review | L4: Prelim review recomm. | M4: Requires a more thorough review
A5: Red flags | B5: 3 | C5: Orange flags | E5: 3 | F5: Yellow flags | H5: 7 | L5: Red flags | M5: 3 | N5: Orange flags | P5: 3 | Q5: Yellow flags | S5: 7
A6: Final Determination | B6: Pending - Major | F6: Date: 9/1/2020 | I6: Basis: MD, IDU, IR, NR | L6: Final Determination | M6: Pending - Major | Q6: Date: 9/1/2020 | T6: Basis: MD, IDU, IR, NR
A7: AK List Status | B7: No Determination List | L7: AK List Status | M7: No Determination List
A8: Testing Information | B8: Determination | I8: Notes | L8: Testing Information | M8: Determination | T8: Notes
A9: Test method | B9: ASTM 2779 | L9: Test method | M9: ASTM 2779
A10: Test Lab | B10: OMNI | I10: did not report test location | L10: Test Lab | M10: OMNI | T10: did not report test location
A11: Third-party certifier | B11: Not reported | L11: Third-party certifier | M11: Not reported
A12: Report certified | B12: Not reported | I12: authorized signatories (Bruce Davis & Alex Tiegs) | L12: Report certified | M12: Not reported | T12: authorized signatories (Bruce Davis & Alex Tiegs)
A13: Test Report Elements | B13: Determination | I13: Notes | L13: Test Report Elements | M13: Determination | T13: Notes
A14: Overall PM emissions (g/hr) | B14: 0.782 | D14: PM Highest 1-hr (g/hr) | G14: 0.987 | L14: Overall PM emissions (g/hr) | M14: 0.782 | O14: PM Highest 1-hr (g/hr) | R14: 0.987
A15: Overall HHV efficiency (%) | B15: 63.6 | I15: 0.676 | L15: Overall HHV efficiency (%) | M15: 63.6 | T15: 0.676
A16: Overall heat output (Btu/hr) | B16: 14239 | L16: Overall heat output (Btu/hr) | M16: 14239
A17: Overall CO (g/hr) | B17: =IFERROR(G17*60,"Not reported") -> 8.4 | D17: Overall CO (g/min) | G17: 0.14 | L17: Overall CO (g/hr) | M17: =IFERROR(R17*60,"Not reported") -> 8.4 | O17: Overall CO (g/min) | R17: 0.14
A18: Manufacturers Instructions to lab | B18: Reported | L18: Manufacturers Instructions to lab | M18: Reported
A19: Efficiency calculations | B19: Reported | L19: Efficiency calculations | M19: Reported
A20: Burn rate calculations | B20: Reported | L20: Burn rate calculations | M20: Reported
A21: Raw data sheets | B21: Reported | L21: Raw data sheets | M21: Reported
A22: Conditioning completed by | B22: Not reported | I22: Report mentions preburn specifications from manufacturer to run preburn at maximum setting. but not who performed the pretest | L22: Conditioning completed by | M22: Not reported | T22: Report mentions preburn specifications from manufacturer to run preburn at maximum setting. but not who performed the pretest
A23: Conditioning data | B23: Partially reported | I23: conditioning data is incomplete and did not report dates on data nor is there scale data. | L23: Conditioning data | M23: Partially reported | T23: conditioning data is incomplete and did not report dates on data nor is there scale data.
A24: Lab technician notes | B24: Reported | L24: Lab technician notes | M24: Reported
A25: Doc. of run appropriateness | B25: Reported | L25: Doc. of run appropriateness | M25: Reported
A26: Doc. of run validity | B26: Reported | L26: Doc. of run validity | M26: Reported
A27: Doc. of run anomolies | B27: Reported | L27: Doc. of run anomolies | M27: Reported
A28: Doc. of run burn rates | B28: Reported | L28: Doc. of run burn rates | M28: Reported
A29: Test Run Data | B29: Determination | I29: Notes | L29: Test Run Data | M29: Determination | T29: Notes
A30: Run # | C30: 1 | D30: 1 | E30: 1 | L30: Run # | N30: 1 | O30: 1 | P30: 1
A31: Run Category | C31: High | D31: Medium | E31: Low | L31: Run Category | N31: High | O31: Medium | P31: Low
A32: Burn rate (kg/hr) | C32: 2.424 | D32: 0.0872 | E32: 0.851 | L32: Burn rate (kg/hr) | N32: 2.424 | O32: 0.0872 | P32: 0.851
A33: Heat output (Btu/hr) | C33: 33925 | D33: 10421 | E33: 10182 | I33: 48500 | L33: Heat output (Btu/hr) | N33: 33925 | O33: 10421 | P33: 10182 | T33: 48500
A34: CO (g/min) | C34: 0.06 | D34: 0.1 | E34: 0.2 | L34: CO (g/min) | N34: 0.06 | O34: 0.1 | P34: 0.2
A35: HHV efficiency (%) | C35: 69.9 | D35: 59.7 | E35: 59.8 | L35: HHV efficiency (%) | N35: 69.9 | O35: 59.7 | P35: 59.8
A36: Overall PM emissions (g/hr) | B36: 0.782 | L36: Overall PM emissions (g/hr) | M36: 0.782
A37: PM 1-hr filter pull (g/hr) | B37: 0.987 | L37: PM 1-hr filter pull (g/hr) | M37: 0.987
A38: Filter data | B38: Reported | L38: Filter data | M38: Reported
A39: Train precision (%) | B39: Not reported | L39: Train precision (%) | M39: Not reported
A40: Negative weights | B40: Yes | L40: Negative weights | M40: Yes
A41: Negs handled appropriately | B41: No | I41: -.9 reported on rear filter, subtracted from total | L41: Negs handled appropriately | M41: No | T41: -.9 reported on rear filter, subtracted from total
A42: Lowest burn rate tested | B42: Cannot be determined | I42: The low burn segment at minimum heat setting, FRAP set to full closed, and the control board switch set to 1. | L42: Lowest burn rate tested | M42: Cannot be determined | T42: The low burn segment at minimum heat setting, FRAP set to full closed, and the control board switch set to 1.
A43: All run data | B43: Not reported | L43: All run data | M43: Not reported
A44: Appliance Fueling | B44: Determination | I44: Notes | L44: Appliance Fueling | M44: Determination | T44: Notes
A45: Pellet species/type | B45: Softwood | I45: pres-to-logs | L45: Pellet species/type | M45: Softwood | T45: pres-to-logs
A46: Pellet fuel certification | B46: PFI | I46: 0.25 | L46: Pellet fuel certification | M46: PFI | T46: 0.25
A47: Source of the pellet specification | B47: From an analyzed sample | L47: Source of the pellet specification | M47: From an analyzed sample
A48: Owners Manual Req. | B48: Determination | I48: Notes | L48: Owners Manual Req. | M48: Determination | T48: Notes
A49: Stack height | B49: Included | L49: Stack height | M49: Included
A50: Location recommendation | B50: Included | L50: Location recommendation | M50: Included
A51: Guidance on proper draft | B51: Included | L51: Guidance on proper draft | M51: Included
A52: Fuel loading & reloading | B52: Not applicable | L52: Fuel loading & reloading | M52: Not applicable
A53: Fuel selection recomm. | B53: Included | L53: Fuel selection recomm. | M53: Included
A54: Improper fuels warnings | B54: Insufficient data | I54: do not burn items listed in separate locations throughout manual | L54: Improper fuels warnings | M54: Insufficient data | T54: do not burn items listed in separate locations throughout manual
A55: Fire starting procedures | B55: Included | L55: Fire starting procedures | M55: Included
A56: Proper use of air controls | B56: Included | L56: Proper use of air controls | M56: Included
A57: Proper operation low | B57: Included | L57: Proper operation low | M57: Included
A58: Ash removal procedures | B58: Included | L58: Ash removal procedures | M58: Included
A59: Replacement parts | B59: Included | L59: Replacement parts | M59: Included
A60: Federal warning (C or NC) | B60: Included | L60: Federal warning (C or NC) | M60: Included
A61: Warranty rights | B61: Included | L61: Warranty rights | M61: Included
A62: Reporting | B62: Determination | I62: Notes | L62: Reporting | M62: Determination | T62: Notes
A63: Summary tables complete | B63: All reported | L63: Summary tables complete | M63: All reported
A64: All run data submitted | B64: All reported | L64: All run data submitted | M64: All reported
A65: Test report complete | B65: Partially reported minor | L65: Test report complete | M65: Partially reported minor
A66: Owner manual complete | B66: Partially reported minor | L66: Owner manual complete | M66: Partially reported minor
A67: Test dates | B67: 2018-12-18 | L67: Test dates | M67: 2018-12-18
A68: 30 Day notice submitted to EPA | B68: No | L68: 30 Day notice submitted to EPA | M68: No
A69: Tested on the proposed date | B69: Cannot Be Determined | L69: Tested on the proposed date | M69: Cannot Be Determined
A70: Tested in one day | B70: Yes | L70: Tested in one day | M70: Yes
A71: 60 Day report to EPA | B71: Cannot be determined | L71: 60 Day report to EPA | M71: Cannot be determined
A72: EPA additional Review Elements | B72: Determination | I72: Notes | L72: EPA additional Review Elements | M72: Determination | T72: Notes
A73: check owners manual and highest setting in test are they the same | L73: check owners manual and highest setting in test are they the same
A74: Test location | L74: Test location | M74: Lab | T74: Portland, OR
A75: date lab received the unit | L75: date lab received the unit | M75: Not Reported
A76: date first day of conditioning | L76: date first day of conditioning | M76: 2018-08-18
A77: date first day of testing | L77: date first day of testing | M77: 2018-12-18
A78: first hour PM emissions reported for all runs | L78: first hour PM emissions reported for all runs | M78: yes
A79: first hour PM emissions reported in grams per hour | L79: first hour PM emissions reported in grams per hour | M79: yes
A80: first hour PM emissions zero or negative | L80: first hour PM emissions zero or negative | M80: no
A81: first hour PM emissions measured with front and back filter | L81: first hour PM emissions measured with front and back filter | M81: yes
A82: Zero CO emission reported | L82: Zero CO emission reported | M82: no
A83: Any incomplete runs | L83: Any incomplete runs | M83: no
A84: Pre-ignition data reported | L84: Pre-ignition data reported | M84: yes
A85: filter changes during test run | L85: filter changes during test run | M85: no
A86: filter plugged during test run | L86: filter plugged during test run | M86: no
A87: What type of filter used | L87: What type of filter used | M87: not reported
A88: Negative probe weight >5% of PM | L88: Negative probe weight >5% of PM | M88: no negatives
A89: Negative probe value | L89: Negative probe value | M89: no negatives
A90: Negative room air values | L90: Negative room air values | M90: no negatives
A91: Ambient background filter data | L91: Ambient background filter data | M91: no negatives
A92: Proportional sampling | L92: Proportional sampling | M92: yes with allowable deviations
A93: Leak check - pre-test leak check reported | L93: Leak check - pre-test leak check reported | M93: Meets Specification
A94: Leak check - any filter change | L94: Leak check - any filter change
A95: Leak check - post leak check reported | L95: Leak check - post leak check reported | M95: Meets Specification
A96: Dilution tunnel schematic meets ASTM 2515 requirements | L96: Dilution tunnel schematic meets ASTM 2515 requirements | M96: not reported
A97: number of conditioning hours reported in summary | L97: number of conditioning hours reported in summary | M97: 50
A98: number of conditioning hours with data | L98: number of conditioning hours with data | M98: 50
A99: number of hours at correct conditioning conditions | L99: number of hours at correct conditioning conditions | T99: see I23
A100: used lowest air settings for low burn (ASTM 3053) or Cat 1(M28R) | L100: used lowest air settings for low burn (ASTM 3053) or Cat 1(M28R)
A101: Air setting data | B101: High | D101: Medium | F101: Low | L101: Air setting data | M101: High | O101: Medium | Q101: Low
M102: Max | N102: 2 | O102: Medium | P102: 2 | Q102: Min | R102: 1
A103: medium burn conditions met | L103: medium burn conditions met
A104: high test settings match high in OM | L104: high test settings match high in OM
A105: Total number of runs | L105: Total number of runs | M105: 1
A106: run averaging done correctly | L106: run averaging done correctly | M106: yes
A107: Calibration data | L107: Calibration data | M107: yes
A108: Milestone Date | B108: 2022-12-06 | I108: missing report elements | L108: Milestone Date | M108: 2022-12-06
A109: Compliance Date | L109: Compliance Date | M109: 2019-03-05 | N109: No EPA Compliance Date
A110: DEC Calculated Certification Expiration | L110: DEC Calculated Certification Expiration | M110: 2024-03-05

Sheet HHT Classic Bay 1200C
A1: Summary of Review | L1: Summary of Review
A2: Manufacturer | B2: Hearth and Home Technologies, LLC dba Quadra fire | I2: 2021-03-31 | L2: Manufacturer | M2: Hearth and Home Technologies, LLC dba Quadra fire | T2: 2021-03-31
A3: Model | B3: Classic Bay 1200 -C | L3: Model | M3: Classic Bay 1200 -C
A4: Prelim review recomm. | B4: Requires a more thorough review | L4: Prelim review recomm. | M4: Requires a more thorough review
A5: Red flags | B5: 2 | C5: Orange flags | E5: 4 | F5: Yellow flags | H5: 7 | L5: Red flags | M5: 2 | N5: Orange flags | P5: 4 | Q5: Yellow flags | S5: 7
A6: Final Determination | B6: Pending - Major | F6: Date: 9/1/2020 | I6: Basis: MD, IDU, IR, NR | L6: Final Determination | M6: Pending - Major | Q6: Date: 9/1/2020 | T6: Basis: MD, IDU, IR, NR
A7: AK List Status | B7: Approved List - Pending | L7: AK List Status | M7: Approved List - Pending
A8: Testing Information | B8: Determination | I8: Notes | L8: Testing Information | M8: Determination | T8: Notes
A9: Test method | B9: ASTM 2779 | L9: Test method | M9: ASTM 2779
A10: Test Lab | B10: OMNI | I10: location of testing not detailed in the report | L10: Test Lab | M10: OMNI | T10: location of testing not detailed in the report
A11: Third-party certifier | B11: Not reported | L11: Third-party certifier | M11: Not reported
A12: Report certified | B12: Not reported | I12: authorized signatories (Bruce Davis & Ken Morgan) | L12: Report certified | M12: Not reported | T12: authorized signatories (Bruce Davis & Ken Morgan)
A13: Test Report Elements | B13: Determination | I13: Notes | L13: Test Report Elements | M13: Determination | T13: Notes
A14: Overall PM emissions (g/hr) | B14: 1.001 | D14: PM Highest 1-hr (g/hr) | G14: 1.297 | L14: Overall PM emissions (g/hr) | M14: 1.001 | O14: PM Highest 1-hr (g/hr) | R14: 1.297
A15: Overall HHV efficiency (%) | B15: 72.7 | I15: 0.778 | L15: Overall HHV efficiency (%) | M15: 72.7 | T15: 0.778
A16: Overall heat output (Btu/hr) | B16: 15454 | L16: Overall heat output (Btu/hr) | M16: 15454
A17: Overall CO (g/hr) | B17: =IFERROR(G17*60,"Not reported") -> 0 | D17: Overall CO (g/min) | G17: 0 | L17: Overall CO (g/hr) | M17: =IFERROR(R17*60,"Not reported") -> 0 | O17: Overall CO (g/min) | R17: 0
A18: Manufacturers Instructions to lab | B18: Reported | L18: Manufacturers Instructions to lab | M18: Reported
A19: Efficiency calculations | B19: Reported | L19: Efficiency calculations | M19: Reported
A20: Burn rate calculations | B20: Reported | L20: Burn rate calculations | M20: Reported
A21: Raw data sheets | B21: Reported | L21: Raw data sheets | M21: Reported
A22: Conditioning completed by | B22: Not reported | I22: No information about when unit was received by lab or who conducted preburn. | L22: Conditioning completed by | M22: Not reported | T22: No information about when unit was received by lab or who conducted preburn.
A23: Conditioning data | B23: Partially reported | I23: conditioning data not accurate for weights added and doesn't include specific dates of tesitng, ranges from 8/28 to 10/11/2018 | L23: Conditioning data | M23: Partially reported | T23: conditioning data not accurate for weights added and doesn't include specific dates of tesitng, ranges from 8/28 to 10/11/2018
A24: Lab technician notes | B24: Reported | L24: Lab technician notes | M24: Reported
A25: Doc. of run appropriateness | B25: Reported | L25: Doc. of run appropriateness | M25: Reported
A26: Doc. of run validity | B26: Reported | L26: Doc. of run validity | M26: Reported
A27: Doc. of run anomolies | B27: Reported | L27: Doc. of run anomolies | M27: Reported
A28: Doc. of run burn rates | B28: Reported | L28: Doc. of run burn rates | M28: Reported
A29: Test Run Data | B29: Determination | I29: Notes | L29: Test Run Data | M29: Determination | T29: Notes
A30: Run # | C30: 1 | D30: 1 | E30: 1 | L30: Run # | N30: 1 | O30: 1 | P30: 1
A31: Run Category | C31: High | D31: Medium | E31: Low | L31: Run Category | N31: High | O31: Medium | P31: Low
A32: Burn rate (kg/hr) | C32: 2.13 | D32: 1 | E32: 0.825 | L32: Burn rate (kg/hr) | N32: 2.13 | O32: 1 | P32: 0.825
A33: Heat output (Btu/hr) | C33: 30851 | D33: 13552 | E33: 11074 | I33: 41200 | L33: Heat output (Btu/hr) | N33: 30851 | O33: 13552 | P33: 11074 | T33: 41200
A34: CO (g/min) | C34: 0.03 | D34: 0 | E34: 0 | L34: CO (g/min) | N34: 0.03 | O34: 0 | P34: 0
A35: HHV efficiency (%) | C35: 75 | D35: 70.1 | E35: 69.6 | L35: HHV efficiency (%) | N35: 75 | O35: 70.1 | P35: 69.6
A36: Overall PM emissions (g/hr) | B36: 1.001 | L36: Overall PM emissions (g/hr) | M36: 1.001
A37: PM 1-hr filter pull (g/hr) | B37: 1.297 | L37: PM 1-hr filter pull (g/hr) | M37: 1.297
A38: Filter data | B38: Reported | L38: Filter data | M38: Reported
A39: Train precision (%) | B39: Not reported | L39: Train precision (%) | M39: Not reported
A40: Negative weights | B40: yes | L40: Negative weights | M40: yes
A41: Negs handled appropriately | B41: No | I41: .2 on rear filter subtracted from total | L41: Negs handled appropriately | M41: No | T41: .2 on rear filter subtracted from total
A42: Lowest burn rate tested | B42: Yes | I42: stated in manufacturer's instructions | L42: Lowest burn rate tested | M42: Yes | T42: stated in manufacturer's instructions
A43: All run data | B43: Not reported | L43: All run data | M43: Not reported
A44: Appliance Fueling | B44: Determination | I44: Notes | L44: Appliance Fueling | M44: Determination | T44: Notes
A45: Pellet species/type | B45: Softwood | I45: lignetics | L45: Pellet species/type | M45: Softwood | T45: lignetics
A46: Pellet fuel certification | B46: PFI | I46: 0.25 | L46: Pellet fuel certification | M46: PFI | T46: 0.25
A47: Source of the pellet specification | B47: From an analyzed sample | L47: Source of the pellet specification | M47: From an analyzed sample
A48: Owners Manual Req. | B48: Determination | I48: Notes | L48: Owners Manual Req. | M48: Determination | T48: Notes
A49: Stack height | B49: Included | L49: Stack height | M49: Included
A50: Location recommendation | B50: Included | L50: Location recommendation | M50: Included
A51: Guidance on proper draft | B51: Included | L51: Guidance on proper draft | M51: Included
A52: Fuel loading & reloading | B52: Not applicable | L52: Fuel loading & reloading | M52: Not applicable
A53: Fuel selection recomm. | B53: Included | L53: Fuel selection recomm. | M53: Included
A54: Improper fuels warnings | B54: Insufficient data | I54: do not burn materials listed throughout the manual | L54: Improper fuels warnings | M54: Insufficient data | T54: do not burn materials listed throughout the manual
A55: Fire starting procedures | B55: Included | L55: Fire starting procedures | M55: Included
A56: Proper use of air controls | B56: Included | L56: Proper use of air controls | M56: Included
A57: Proper operation low | B57: Included | L57: Proper operation low | M57: Included
A58: Ash removal procedures | B58: Included | L58: Ash removal procedures | M58: Included
A59: Replacement parts | B59: Included | L59: Replacement parts | M59: Included
A60: Federal warning (C or NC) | B60: Included | L60: Federal warning (C or NC) | M60: Included
A61: Warranty rights | B61: Included | L61: Warranty rights | M61: Included
A62: Reporting | B62: Determination | I62: Notes | L62: Reporting | M62: Determination | T62: Notes
A63: Summary tables complete | B63: All reported | L63: Summary tables complete | M63: All reported
A64: All run data submitted | B64: All reported | L64: All run data submitted | M64: All reported
A65: Test report complete | B65: Partially reported minor | L65: Test report complete | M65: Partially reported minor
A66: Owner manual complete | B66: Partially reported minor | L66: Owner manual complete | M66: Partially reported minor
A67: Test dates | B67: 2018-10-30 | L67: Test dates | M67: 2018-10-30
A68: 30 Day notice submitted to EPA | B68: No | L68: 30 Day notice submitted to EPA | M68: No
A69: Tested on the proposed date | B69: Cannot Be Determined | L69: Tested on the proposed date | M69: Cannot Be Determined
A70: Tested in one day | B70: Yes | L70: Tested in one day | M70: Yes
A71: 60 Day report to EPA | B71: No | L71: 60 Day report to EPA | M71: No
A72: EPA additional Review Elements | B72: Determination | I72: Notes | L72: EPA additional Review Elements | M72: Determination | T72: Notes
A73: check owners manual and highest setting in test are they the same | L73: check owners manual and highest setting in test are they the same
A74: Test location | L74: Test location | M74: Lab | T74: Portland, OR
A75: date lab received the unit | L75: date lab received the unit | M75: Not Reported
A76: date first day of conditioning | L76: date first day of conditioning | M76: 8/27/2018 - 10/11/2018
A77: date first day of testing | L77: date first day of testing | M77: 2018-12-18
A78: first hour PM emissions reported for all runs | L78: first hour PM emissions reported for all runs | M78: yes
A79: first hour PM emissions reported in grams per hour | L79: first hour PM emissions reported in grams per hour | M79: yes
A80: first hour PM emissions zero or negative | L80: first hour PM emissions zero or negative | M80: no
A81: first hour PM emissions measured with front and back filter | L81: first hour PM emissions measured with front and back filter | M81: yes
A82: Zero CO emission reported | L82: Zero CO emission reported | M82: yes
A83: Any incomplete runs | L83: Any incomplete runs | M83: no
A84: Pre-ignition data reported | L84: Pre-ignition data reported | M84: yes
A85: filter changes during test run | L85: filter changes during test run | M85: no
A86: filter plugged during test run | L86: filter plugged during test run | M86: no
A87: What type of filter used | L87: What type of filter used | M87: not reported
A88: Negative probe weight >5% of PM | L88: Negative probe weight >5% of PM | M88: no negatives
A89: Negative probe value | L89: Negative probe value | M89: no negatives
A90: Negative room air values | L90: Negative room air values | M90: no negatives
A91: Ambient background filter data | L91: Ambient background filter data | M91: no negatives
A92: Proportional sampling | L92: Proportional sampling | M92: yes with allowable deviations
A93: Leak check - pre-test leak check reported | L93: Leak check - pre-test leak check reported | M93: Meets Specification
A94: Leak check - any filter change | L94: Leak check - any filter change
A95: Leak check - post leak check reported | L95: Leak check - post leak check reported | M95: Meets Specification
A96: Dilution tunnel schematic meets ASTM 2515 requirements | L96: Dilution tunnel schematic meets ASTM 2515 requirements | M96: not reported
A97: number of conditioning hours reported in summary | L97: number of conditioning hours reported in summary | M97: 50
A98: number of conditioning hours with data | L98: number of conditioning hours with data | M98: 0 | T98: see I23
A99: number of hours at correct conditioning conditions | L99: number of hours at correct conditioning conditions | T99: see I23
A100: used lowest air settings for low burn (ASTM 3053) or Cat 1(M28R) | L100: used lowest air settings for low burn (ASTM 3053) or Cat 1(M28R)
A101: Air setting data | B101: High | D101: Medium | F101: Low | L101: Air setting data | M101: High | O101: Medium | Q101: Low
M102: Maximum | N102: 2 | O102: Medium | P102: 1 | Q102: Minimum | R102: 1
A103: medium burn conditions met | L103: medium burn conditions met
A104: high test settings match high in OM | L104: high test settings match high in OM
A105: Total number of runs | L105: Total number of runs
A106: run averaging done correctly | L106: run averaging done correctly | M106: yes
A107: Calibration data | L107: Calibration data | M107: partially reported | T107: Although reported some of the calibration certificates are outside of the 6 month requirement
A108: Milestone Date | B108: 2022-12-06 | I108: missing report elements | L108: Milestone Date | M108: 2022-12-06
A109: Compliance Date | L109: Compliance Date | M109: 2019-03-05 | N109: No EPA Compliance Date
A110: DEC Calculated Certification Expiration | L110: DEC Calculated Certification Expiration | M110: 2024-03-05

Sheet HHT PS35-C
A1: Summary of Review | L1: Summary of Review
A2: Manufacturer | B2: Hearth and Home Technologies, LLC dba Heatilator EcoChoice | I2: 2021-03-31 | L2: Manufacturer | M2: Hearth and Home Technologies, LLC dba Heatilator EcoChoice | T2: 2021-03-31
A3: Model | B3: PS35-C, ECO Choice PS35-C, Quadra-Fire PS35-C | L3: Model | M3: PS35-C
A4: Prelim review recomm. | B4: Requires a more thorough review | L4: Prelim review recomm. | M4: Requires a more thorough review
A5: Red flags | B5: 5 | C5: Orange flags | E5: 3 | F5: Yellow flags | H5: 9 | L5: Red flags | M5: 5 | N5: Orange flags | P5: 3 | Q5: Yellow flags | S5: 9
A6: Final Determination | B6: Pending - Major | F6: Date: 9/1/2020 | I6: Basis: IDU, IR | L6: Final Determination | M6: Pending - Major | Q6: Date: 9/1/2020 | T6: Basis: IDU, IR
A7: AK List Status | B7: No Determination List | L7: AK List Status | M7: No Determination List
A8: Testing Information | B8: Determination | I8: Notes | L8: Testing Information | M8: Determination | T8: Notes
A9: Test method | B9: ASTM 2779 | L9: Test method | M9: ASTM 2779
A10: Test Lab | B10: OMNI | I10: location of testing not detailed in the report | L10: Test Lab | M10: OMNI | T10: location of testing not detailed in the report
A11: Third-party certifier | B11: Not reported | L11: Third-party certifier | M11: Not reported
A12: Report certified | B12: Not reported | I12: authorized signatories Bruce Davis & Ken Morgan | L12: Report certified | M12: Not reported | T12: authorized signatories Bruce Davis & Ken Morgan
A13: Test Report Elements | B13: Determination | I13: Notes | L13: Test Report Elements | M13: Determination | T13: Notes
A14: Overall PM emissions (g/hr) | B14: 1.02 | D14: PM Highest 1-hr (g/hr) | G14: 2.04 | I14: missing 1-hr filter data from R1 | L14: Overall PM emissions (g/hr) | M14: 1.02 | O14: PM Highest 1-hr (g/hr) | R14: 2.04 | T14: missing 1-hr filter data from R1
A15: Overall HHV efficiency (%) | B15: 68.8 | I15: 0.78 | L15: Overall HHV efficiency (%) | M15: 68.8 | T15: 0.78
A16: Overall heat output (Btu/hr) | B16: 13667 | L16: Overall heat output (Btu/hr) | M16: 13667
A17: Overall CO (g/hr) | B17: =IFERROR(G17*60,"Not reported") -> 9 | D17: Overall CO (g/min) | G17: 0.15 | L17: Overall CO (g/hr) | M17: =IFERROR(R17*60,"Not reported") -> 9 | O17: Overall CO (g/min) | R17: 0.15
A18: Manufacturers Instructions to lab | B18: Reported | L18: Manufacturers Instructions to lab | M18: Reported
A19: Efficiency calculations | B19: Reported | L19: Efficiency calculations | M19: Reported
A20: Burn rate calculations | B20: Reported | L20: Burn rate calculations | M20: Reported
A21: Raw data sheets | B21: Reported | L21: Raw data sheets | M21: Reported
A22: Conditioning completed by | B22: Not reported | I22: no mention of who completed preburn, only that manufacturer specified operating at maximum heat setting. | L22: Conditioning completed by | M22: Not reported | T22: no mention of who completed preburn, only that manufacturer specified operating at maximum heat setting.
A23: Conditioning data | B23: Not reported | I23: no conditioning data included in report, date of preburn is same date as R1. Preburn reportedly only lasted 78 min however only data for 68 is reported. | L23: Conditioning data | M23: Not reported | T23: no conditioning data included in report, date of preburn is same date as R1. Preburn reportedly only lasted 78 min however only data for 68 is reported.
A24: Lab technician notes | B24: Reported | L24: Lab technician notes | M24: Reported
A25: Doc. of run appropriateness | B25: Reported | L25: Doc. of run appropriateness | M25: Reported
A26: Doc. of run validity | B26: Reported | L26: Doc. of run validity | M26: Reported
A27: Doc. of run anomolies | B27: Reported | I27: Report states "The fire went out during run 1 (per the definitions of ASTM E2779), so the test run was aborted. The FRAP position was determined as the cause, so a second test run was performed. | L27: Doc. of run anomolies | M27: Reported | T27: Report states "The fire went out during run 1 (per the definitions of ASTM E2779), so the test run was aborted. The FRAP position was determined as the cause, so a second test run was performed.
A28: Doc. of run burn rates | B28: Reported | L28: Doc. of run burn rates | M28: Reported
A29: Test Run Data | B29: Determination | I29: Notes | L29: Test Run Data | M29: Determination | T29: Notes
A30: Run # | C30: 2 | D30: 2 | E30: 2 | F30: 1 | G30: 1 | H30: 1 | I30: I can find no cite in 2779 for fire going out | L30: Run # | N30: 2 | O30: 2 | P30: 2 | Q30: 1 | R30: 1 | S30: 1 | T30: I can find no cite in 2779 for fire going out
A31: Run Category | C31: High | D31: Medium | E31: Low | F31: High | G31: Medium | H31: Low | I31: Run 1 performance requires clarification | L31: Run Category | N31: High | O31: Medium | P31: Low | Q31: High | R31: Medium | S31: Low | T31: Run 1 performance requires clarification
A32: Burn rate (kg/hr) | C32: 2.232 | D32: 1.04 | E32: 0.671 | F32: NR | G32: NR | H32: NR | I32: where is 1 hr filter data for R1 - 121 mg? | L32: Burn rate (kg/hr) | N32: 2.232 | O32: 1.04 | P32: 0.671 | Q32: NR | R32: NR | S32: NR | T32: where is 1 hr filter data for R1 - 121 mg?
A33: Heat output (Btu/hr) | C33: 29680 | D33: 12938 | E33: 8649 | F33: NR | G33: NR | H33: NR | I33: 34000 | L33: Heat output (Btu/hr) | N33: 29680 | O33: 12938 | P33: 8649 | Q33: NR | R33: NR | S33: NR | T33: 34000
A34: CO (g/min) | C34: 0.04 | D34: 0.15 | E34: 0.17 | F34: NR | G34: NR | H34: NR | L34: CO (g/min) | N34: 0.04 | O34: 0.15 | P34: 0.17 | Q34: NR | R34: NR | S34: NR
A35: HHV efficiency (%) | C35: 70.8 | D35: 66.2 | E35: 68.6 | F35: NR | G35: NR | H35: NR | L35: HHV efficiency (%) | N35: 70.8 | O35: 66.2 | P35: 68.6 | Q35: NR | R35: NR | S35: NR
A36: Overall PM emissions (g/hr) | B36: 1.02 | L36: Overall PM emissions (g/hr) | M36: 1.02
A37: PM 1-hr filter pull (g/hr) | B37: 2.04 | L37: PM 1-hr filter pull (g/hr) | M37: 2.04
A38: Filter data | B38: Reported | L38: Filter data | M38: Reported
A39: Train precision (%) | B39: Not reported | L39: Train precision (%) | M39: Not reported
A40: Negative weights | B40: Yes | I40: all filter catches for run 1 were reported negative, after subtracting filter weights | L40: Negative weights | M40: Yes | T40: all filter catches for run 1 were reported negative, after subtracting filter weights
A41: Negs handled appropriately | B41: No | L41: Negs handled appropriately | M41: No
A42: Lowest burn rate tested | B42: No | I42: Identical settings were used for the High and Medium segments, and the trim and heat setting were the same for the Low segment, but the FRAP position was altered to 3/8” open. | L42: Lowest burn rate tested | M42: No | T42: Identical settings were used for the High and Medium segments, and the trim and heat setting were the same for the Low segment, but the FRAP position was altered to 3/8” open.
A43: All run data | B43: Not reported | L43: All run data | M43: Not reported
A44: Appliance Fueling | B44: Determination | I44: Notes | L44: Appliance Fueling | M44: Determination | T44: Notes
A45: Pellet species/type | B45: Hardwood | L45: Pellet species/type | M45: Hardwood
A46: Pellet fuel certification | B46: Not reported | L46: Pellet fuel certification | M46: Not reported
A47: Source of the pellet specification | B47: From an analyzed sample | L47: Source of the pellet specification | M47: From an analyzed sample
A48: Owners Manual Req. | B48: Determination | I48: Notes | L48: Owners Manual Req. | M48: Determination | T48: Notes
A49: Stack height | B49: Included | L49: Stack height | M49: Included
A50: Location recommendation | B50: Included | L50: Location recommendation | M50: Included
A51: Guidance on proper draft | B51: Included | L51: Guidance on proper draft | M51: Included
A52: Fuel loading & reloading | B52: Not applicable | L52: Fuel loading & reloading | M52: Not applicable
A53: Fuel selection recomm. | B53: Included | L53: Fuel selection recomm. | M53: Included
A54: Improper fuels warnings | B54: Insufficient data | I54: do not burn materials are throughout the manual | L54: Improper fuels warnings | M54: Insufficient data | T54: do not burn materials are throughout the manual
A55: Fire starting procedures | B55: Included | L55: Fire starting procedures | M55: Included
A56: Proper use of air controls | B56: Included | L56: Proper use of air controls | M56: Included
A57: Proper operation low | B57: Included | L57: Proper operation low | M57: Included
A58: Ash removal procedures | B58: Included | L58: Ash removal procedures | M58: Included
A59: Replacement parts | B59: Included | L59: Replacement parts | M59: Included
A60: Federal warning (C or NC) | B60: Included | L60: Federal warning (C or NC) | M60: Included
A61: Warranty rights | B61: Included | L61: Warranty rights | M61: Included
A62: Reporting | B62: Determination | I62: Notes | L62: Reporting | M62: Determination | T62: Notes
A63: Summary tables complete | B63: Partially reported | I63: run 1 data not included | L63: Summary tables complete | M63: Partially reported | T63: run 1 data not included
A64: All run data submitted | B64: All reported | L64: All run data submitted | M64: All reported
A65: Test report complete | B65: Partially reported minor | L65: Test report complete | M65: Partially reported minor
A66: Owner manual complete | B66: Partially reported minor | L66: Owner manual complete | M66: Partially reported minor
A67: Test dates | B67: 2/27 & 2/28/18 | L67: Test dates | M67: 2/27 & 2/28/18
A68: 30 Day notice submitted to EPA | B68: Cannot be determined | L68: 30 Day notice submitted to EPA | M68: Cannot be determined
A69: Tested on the proposed date | B69: Cannot Be Determined | L69: Tested on the proposed date | M69: Cannot Be Determined
A70: Tested in one day | B70: Yes | L70: Tested in one day | M70: Yes
A71: 60 Day report to EPA | B71: Cannot be determined | L71: 60 Day report to EPA | M71: Cannot be determined
A72: EPA additional Review Elements | B72: Determination | I72: Notes | L72: EPA additional Review Elements | M72: Determination | T72: Notes
A73: check owners manual and highest setting in test are they the same | L73: check owners manual and highest setting in test are they the same
A74: Test location | L74: Test location | M74: Not reported
A75: date lab received the unit | L75: date lab received the unit | M75: Not reported
A76: date first day of conditioning | L76: date first day of conditioning | M76: Not reported
A77: date first day of testing | L77: date first day of testing | M77: 2019-02-27
A78: first hour PM emissions reported for all runs | L78: first hour PM emissions reported for all runs | M78: no
A79: first hour PM emissions reported in grams per hour | L79: first hour PM emissions reported in grams per hour | M79: yes
A80: first hour PM emissions zero or negative | L80: first hour PM emissions zero or negative | M80: not reported
A81: first hour PM emissions measured with front and back filter | L81: first hour PM emissions measured with front and back filter | M81: no
A82: Zero CO emission reported | L82: Zero CO emission reported | M82: not reported
A83: Any incomplete runs | L83: Any incomplete runs | M83: yes
A84: Pre-ignition data reported | L84: Pre-ignition data reported | M84: yes
A85: filter changes during test run | L85: filter changes during test run | M85: no
A86: filter plugged during test run | L86: filter plugged during test run | M86: no
A87: What type of filter used | L87: What type of filter used | M87: not reported
A88: Negative probe weight >5% of PM | L88: Negative probe weight >5% of PM | M88: no negatives
A89: Negative probe value | L89: Negative probe value | M89: no negatives
A90: Negative room air values | L90: Negative room air values | M90: no negatives
A91: Ambient background filter data | L91: Ambient background filter data | M91: no negatives
A92: Proportional sampling | L92: Proportional sampling | M92: yes with deviation issues | T92: pgs 17, 20, 21 of report shows deviation outside the allowable - showing ten minute averages higher that 230
A93: Leak check - pre-test leak check reported | L93: Leak check - pre-test leak check reported | M93: Meets Specification
A94: Leak check - any filter change | L94: Leak check - any filter change
A95: Leak check - post leak check reported | L95: Leak check - post leak check reported | M95: Meets Specification
A96: Dilution tunnel schematic meets ASTM 2515 requirements | L96: Dilution tunnel schematic meets ASTM 2515 requirements | M96: not reported
A97: number of conditioning hours reported in summary | L97: number of conditioning hours reported in summary | M97: 50
A98: number of conditioning hours with data | L98: number of conditioning hours with data | M98: 0
A99: number of hours at correct conditioning conditions | L99: number of hours at correct conditioning conditions | T99: see cell I23
A100: used lowest air settings for low burn (ASTM 3053) or Cat 1(M28R) | L100: used lowest air settings for low burn (ASTM 3053) or Cat 1(M28R) | T100: see cell I42
A101: Air setting data | B101: High | D101: Medium | F101: Low | L101: Air setting data | M101: High | O101: Medium | Q101: Low
M102: high | N102: 3 | O102: Medium | P102: 2 | Q102: low | R102: 2
A103: medium burn conditions met | L103: medium burn conditions met
A104: high test settings match high in OM | L104: high test settings match high in OM
A105: Total number of runs | L105: Total number of runs | M105: 2
A106: run averaging done correctly | L106: run averaging done correctly | T106: email sent to EPA about run averaging on 1/7/22
A107: Calibration data | L107: Calibration data | M107: partially reported | T107: Although calibration data is reported some certifications are outside the 6 month requirement
A108: Milestone Date | B108: 2022-12-06 | I108: missing report elements | L108: Milestone Date | M108: 2022-12-06
A109: Compliance Date | B109: 2020-02-13 | L109: Compliance Date | M109: 2020-02-13 | N109: No EPA Compliance Date
A110: DEC Calculated Certification Expiration | L110: DEC Calculated Certification Expiration | M110: 2025-02-13

Sheet HHT P43-C
A1: Summary of Review | L1: Summary of Review
A2: Manufacturer | B2: Hearth and Home Technologies, LLC dba Pelpro | I2: 2021-03-31 | L2: Manufacturer | M2: Hearth and Home Technologies, LLC dba Pelpro | T2: 2021-03-31
A3: Model | B3: P43-C | L3: Model | M3: P43-C
A4: Prelim review recomm. | B4: Requires a more thorough review | L4: Prelim review recomm. | M4: Requires a more thorough review
A5: Red flags | B5: 2 | C5: Orange flags | E5: 3 | F5: Yellow flags | H5: 5 | L5: Red flags | M5: 2 | N5: Orange flags | P5: 3 | Q5: Yellow flags | S5: 5
A6: Final Determination | B6: Pending - Major | F6: Date: 9/1/2020 | I6: Basis: MD, IDU, IR, NR | L6: Final Determination | M6: Pending - Major | Q6: Date: 9/1/2020 | T6: Basis: MD, IDU, IR, NR
A7: AK List Status | B7: No Determination List | L7: AK List Status | M7: No Determination List
A8: Testing Information | B8: Determination | I8: Notes | L8: Testing Information | M8: Determination | T8: Notes
A9: Test method | B9: ASTM 2779 | L9: Test method | M9: ASTM 2779
A10: Test Lab | B10: OMNI | I10: performed at Omni lab | L10: Test Lab | M10: OMNI | T10: performed at Omni lab
A11: Third-party certifier | B11: Not reported | L11: Third-party certifier | M11: Not reported
A12: Report certified | B12: Not reported | I12: authorized signatories (Aaron Kravitz & Ken Morgan) | L12: Report certified | M12: Not reported | T12: authorized signatories (Aaron Kravitz & Ken Morgan)
A13: Test Report Elements | B13: Determination | I13: Notes | L13: Test Report Elements | M13: Determination | T13: Notes
A14: Overall PM emissions (g/hr) | B14: 0.946 | D14: PM Highest 1-hr (g/hr) | G14: 1.603 | L14: Overall PM emissions (g/hr) | M14: 0.946 | O14: PM Highest 1-hr (g/hr) | R14: 1.603
A15: Overall HHV efficiency (%) | B15: 77.9 | I15: 0.835 | L15: Overall HHV efficiency (%) | M15: 77.9 | T15: 0.835
A16: Overall heat output (Btu/hr) | B16: 18430 | L16: Overall heat output (Btu/hr) | M16: 18430
A17: Overall CO (g/hr) | B17: =IFERROR(G17*60,"Not reported") -> 19.2 | D17: Overall CO (g/min) | G17: 0.32 | L17: Overall CO (g/hr) | M17: =IFERROR(R17*60,"Not reported") -> 19.2 | O17: Overall CO (g/min) | R17: 0.32
A18: Manufacturers Instructions to lab | B18: Reported | L18: Manufacturers Instructions to lab | M18: Reported
A19: Efficiency calculations | B19: Reported | L19: Efficiency calculations | M19: Reported
A20: Burn rate calculations | B20: Reported | L20: Burn rate calculations | M20: Reported
A21: Raw data sheets | B21: Reported | L21: Raw data sheets | M21: Reported
A22: Conditioning completed by | B22: Not reported | I22: It is not noted when unit was received by lab nor who conducted the conditioning. | L22: Conditioning completed by | M22: Not reported | T22: It is not noted when unit was received by lab nor who conducted the conditioning.
A23: Conditioning data | B23: Partially reported | I23: Data reported does not include dates of aging (states january 2018) nor does it provide data when fuel was added. It also lacks scale readings for change in weight. | L23: Conditioning data | M23: Partially reported | T23: Data reported does not include dates of aging (states january 2018) nor does it provide data when fuel was added. It also lacks scale readings for change in weight.
A24: Lab technician notes | B24: Reported | L24: Lab technician notes | M24: Reported
A25: Doc. of run appropriateness | B25: Reported | L25: Doc. of run appropriateness | M25: Reported
A26: Doc. of run validity | B26: Reported | L26: Doc. of run validity | M26: Reported
A27: Doc. of run anomolies | B27: Reported | L27: Doc. of run anomolies | M27: Reported
A28: Doc. of run burn rates | B28: Reported | L28: Doc. of run burn rates | M28: Reported
A29: Test Run Data | B29: Determination | I29: Notes | L29: Test Run Data | M29: Determination | T29: Notes
A30: Run # | C30: 1 | D30: 1 | E30: 1 | L30: Run # | N30: 1 | O30: 1 | P30: 1
A31: Run Category | C31: High | D31: Medium | E31: Low | L31: Run Category | N31: High | O31: Medium | P31: Low
A32: Burn rate (kg/hr) | C32: 2.332 | D32: 0.968 | E32: 1.107 | L32: Burn rate (kg/hr) | N32: 2.332 | O32: 0.968 | P32: 1.107
A33: Heat output (Btu/hr) | C33: 30879 | D33: 14412 | E33: 16606 | I33: 43500 | L33: Heat output (Btu/hr) | N33: 30879 | O33: 14412 | P33: 16606 | T33: 43500
A34: CO (g/min) | C34: 0.11 | D34: 0.18 | E34: 0.48 | L34: CO (g/min) | N34: 0.11 | O34: 0.18 | P34: 0.48
A35: HHV efficiency (%) | C35: 71.1 | D35: 79.9 | E35: 80.5 | L35: HHV efficiency (%) | N35: 71.1 | O35: 79.9 | P35: 80.5
A36: Overall PM emissions (g/hr) | B36: 0.946 | L36: Overall PM emissions (g/hr) | M36: 0.946
A37: PM 1-hr filter pull (g/hr) | B37: 1.603 | L37: PM 1-hr filter pull (g/hr) | M37: 1.603
A38: Filter data | B38: Reported | L38: Filter data | M38: Reported
A39: Train precision (%) | B39: Not reported | L39: Train precision (%) | M39: Not reported
A40: Negative weights | B40: Yes | L40: Negative weights | M40: Yes
A41: Negs handled appropriately | B41: No | I41: -.1 rear filter of both train 1 & 2 | L41: Negs handled appropriately | M41: No | T41: -.1 rear filter of both train 1 & 2
A42: Lowest burn rate tested | B42: Yes | I42: the low burn segment at the minimum heat dial setting (fixed stop). These settings were used for the test run, as specified. No home user could achieve a lower burn rate than that tested via manipulation of any of these settings | L42: Lowest burn rate tested | M42: Yes | T42: the low burn segment at the minimum heat dial setting (fixed stop). These settings were used for the test run, as specified. No home user could achieve a lower burn rate than that tested via manipulation of any of these settings
A43: All run data | B43: Not reported | L43: All run data | M43: Not reported
A44: Appliance Fueling | B44: Determination | I44: Notes | L44: Appliance Fueling | M44: Determination | T44: Notes
A45: Pellet species/type | B45: Hardwood | L45: Pellet species/type | M45: Hardwood
